Workbook

Sheet Calendrier général
B1: CALENDRIER BENJAMINS | J1: CALENDRIER MINIMES | R1: CALENDRIER LYCEE
A2: Date | B2: Match | C2: Equipe A | D2: Equipe B | E2: Lieux | F2: Résultats | I2: Date | J2: Match | K2: Equipe A | L2: Equipe B | M2: Lieux | N2: Résultats | Q2: Date | R2: Match | S2: Equipe A | T2: Equipe B | U2: Lieux | V2: Résultats
A3: 2021-11-17 | B3: DIVISION 1 | I3: 2021-11-17 | J3: DIVISION 1 | Q3: 2021-11-17 | R3: CADETS
B4: 5 | C4: ='Calendrier BG'!C4 -> LBSI | D4: ='Calendrier BG'!D4 -> FEN 1 | E4: LBSI à 14h | F4: ='Calendrier BG'!F4 -> 13 | G4: ='Calendrier BG'!G4 -> 4 | R4: 1 | S4: ='Calendriers CG'!C4 -> SBE | T4: ='Calendriers CG'!D4 -> SMP | U4: LR à 14h | V4: 30 | W4: 26
B5: 15 | C5: ='Calendrier BG'!C5 -> LBSI | D5: ='Calendrier BG'!D5 -> MASS 1 | F5: ='Calendrier BG'!F5 -> 22 | G5: ='Calendrier BG'!G5 -> 4 | R5: 2 | S5: ='Calendriers CG'!C5 -> SBE | T5: ='Calendriers CG'!D5 -> LR | V5: 53 | W5: 10
B6: 3 | C6: ='Calendrier BG'!C6 -> MASS 1 | D6: ='Calendrier BG'!D6 -> FEN 1 | F6: ='Calendrier BG'!F6 -> 12 | G6: ='Calendrier BG'!G6 -> 2 | J6: DIVISION 2 | R6: 3 | S6: ='Calendriers CG'!C6 -> SMP | T6: ='Calendriers CG'!D6 -> LR | V6: 57 | W6: 27
B7: DIVISION 2 | J7: 51 | K7: ='Calendrier MG'!C7 -> LBSI | L7: ='Calendrier MG'!D7 -> MASS 2 | M7: LBSI à 14h | N7: ='Calendrier MG'!F7 -> 18 | O7: ='Calendrier MG'!G7 -> 4
B8: 54 | C8: ='Calendrier BG'!C8 -> SJFF 2 | D8: ='Calendrier BG'!D8 -> MASS 2 | E8: Croix de Nivert TA à 14h | F8: ='Calendrier BG'!F8 -> 0 | G8: ='Calendrier BG'!G8 -> 6 | J8: 54 | K8: ='Calendrier MG'!C8 -> FEN 2 | L8: ='Calendrier MG'!D8 -> LBSI | N8: ='Calendrier MG'!F8 -> 2 | O8: ='Calendrier MG'!G8 -> 18
B9: 51 | C9: ='Calendrier BG'!C9 -> FEN 2 | D9: ='Calendrier BG'!D9 -> MASS 2 | F9: ='Calendrier BG'!F9 -> 0 | G9: ='Calendrier BG'!G9 -> 7 | J9: 57 | K9: ='Calendrier MG'!C9 -> FEN 2 | L9: ='Calendrier MG'!D9 -> MASS 2 | N9: ='Calendrier MG'!F9 -> 4 | O9: ='Calendrier MG'!G9 -> 20
B10: 43 | C10: ='Calendrier BG'!C10 -> SJFF 2 | D10: ='Calendrier BG'!D10 -> FEN 2 | F10: ='Calendrier BG'!F10 -> 4 | G10: ='Calendrier BG'!G10 -> 6 | J10: DIVISION FILLE
B11: 52 | C11: ='Calendrier BG'!C11 -> SJG | D11: ='Calendrier BG'!D11 -> NDF | E11: Japy à 14h | F11: ='Calendrier BG'!F11 -> 27 | G11: ='Calendrier BG'!G11 -> 13
B12: DIVISION MIXTE
B13: 75 | C13: ='Calendrier BG'!C13 -> SJFF 3 (F) | D13: ='Calendrier BG'!D13 -> MASS 3 | E13: Croix de Nivert TB à 14h | F13: ='Calendrier BG'!F13 -> 14 | G13: ='Calendrier BG'!G13 -> 4 | I13: 2021-11-24 | J13: DIVISION 1
J14: 7 | K14: ='Calendrier MG'!C14 -> SBE 1 | L14: ='Calendrier MG'!D14 -> SBE 2 | M14: SMP à 14h | N14: ='Calendrier MG'!F14 -> 0 | O14: ='Calendrier MG'!G14 -> 0
A15: 2021-11-24 | B15: DIVISION 1
J17: DIVISION 2
B18: DIVISION 2 | J18: 55 | K18: ='Calendrier MG'!C18 -> SJG | L18: ='Calendrier MG'!D18 -> SJFF 2 | M18: SJFF à 14h | N18: ='Calendrier MG'!F18 -> 30 | O18: ='Calendrier MG'!G18 -> 4
B19: 46 | C19: ='Calendrier BG'!C19 -> FEN 2 | D19: ='Calendrier BG'!D19 -> NDF | E19: Fragonard à 14h | F19: ='Calendrier BG'!F19 -> 0 | G19: ='Calendrier BG'!G19 -> 30 | N19: =IFERROR(VLOOKUP($B18,'Cls B2'!$A$1:$G$15,4,FALSE),"") ->  | O19: =IFERROR(VLOOKUP($B18,'Cls B2'!$A$1:$G$15,5,FALSE),"") -> 
F20: ='Calendrier BG'!F20 ->  | G20: ='Calendrier BG'!G20 ->  | J20: DIVISION FILLE
F21: ='Calendrier BG'!F21 ->  | G21: ='Calendrier BG'!G21 -> 
B22: DIVISION MIXTE | J22: 102 | K22: ='Calendrier MG'!C22 -> SJFF | L22: ='Calendrier MG'!D22 -> SJG | M22: SJFF à 14h | N22: ='Calendrier MG'!F22 -> 12 | O22: ='Calendrier MG'!G22 -> 4
I23: 2021-12-01 | J23: DIVISION 1
J24: 11 | K24: ='Calendrier MG'!C24 -> MASS 1 | L24: ='Calendrier MG'!D24 -> FEN 1 | M24: Japy à 14h | N24: ='Calendrier MG'!F24 -> 21 | O24: ='Calendrier MG'!G24 -> 7 | Q24: 2021-12-01 | R24: 7 | S24: ='Calendriers CG'!C14 -> SBE | T24: ='Calendriers CG'!D14 -> SMSM | U24: SMSM à 14h | V24: 36 | W24: 29
A25: 2021-12-01 | B25: DIVISION 1
B26: 18 | C26: ='Calendrier BG'!C26 -> SJFF 1 | D26: ='Calendrier BG'!D26 -> MASS 1 | E26: Japy à 14h | F26: ='Calendrier BG'!F26 -> 10 | G26: ='Calendrier BG'!G26 -> 3 | J26: DIVISION 2
B27: 19 | C27: ='Calendrier BG'!C27 -> FEN 1 | D27: ='Calendrier BG'!D27 -> SMSM | E27: SMSM à 14h | F27: ='Calendrier BG'!F27 -> 12 | G27: ='Calendrier BG'!G27 -> 7 | J27: 48 | K27: ='Calendrier MG'!C27 -> SJG | L27: ='Calendrier MG'!D27 -> LBSI | M27: LBSI à 14h | N27: ='Calendrier MG'!F27 -> 11 | O27: ='Calendrier MG'!G27 -> 30
B28: DIVISION 2 | J28: 45 | K28: ='Calendrier MG'!C28 -> MASS 2 | L28: ='Calendrier MG'!D28 -> SJFF 2 | M28: SJFF à 14h | N28: ='Calendrier MG'!F28 -> 22 | O28: ='Calendrier MG'!G28 -> 0
B29: 50 | C29: ='Calendrier BG'!C29 -> NDF | D29: ='Calendrier BG'!D29 -> SJFF 2 | E29: SJFF à 14h | F29: ='Calendrier BG'!F29 -> 16 | G29: ='Calendrier BG'!G29 -> 0 | J29: 67 | K29: ='Calendrier MG'!C29 -> SJFF 2 | L29: ='Calendrier MG'!D29 -> MASS 3 | N29: ='Calendrier MG'!F29 -> 4 | O29: ='Calendrier MG'!G29 -> 6
J30: 63 | K30: ='Calendrier MG'!C30 -> SMSM | L30: ='Calendrier MG'!D30 -> FEN 2 | M30: SMSM à 14h | N30: ='Calendrier MG'!F30 -> 9 | O30: ='Calendrier MG'!G30 -> 4
B31: DIVISION MIXTE | J31: DIVISION FILLE
A34: 2021-12-08 | B34: DIVISION 1 | I34: 2021-12-08 | J34: DIVISION 1
B35: 10 | C35: ='Calendrier BG'!C35 -> FEN 1 | D35: ='Calendrier BG'!D35 -> LR | E35: LR à 14h | F35: ='Calendrier BG'!F35 -> 12 | G35: ='Calendrier BG'!G35 -> 10 | J35: 3 | K35: ='Calendrier MG'!C35 -> FEN 1 | L35: ='Calendrier MG'!D35 -> SBE 1 | M35: Fragonard à 14h | N35: ='Calendrier MG'!F35 -> 14 | O35: ='Calendrier MG'!G35 -> 9
J36: 9 | K36: ='Calendrier MG'!C36 -> SBE 2 | L36: ='Calendrier MG'!D36 -> MASS 1 | N36: ='Calendrier MG'!F36 -> 4 | O36: ='Calendrier MG'!G36 -> 15
B37: DIVISION 2 | J37: 12 | K37: ='Calendrier MG'!C37 -> SBE 1 | L37: ='Calendrier MG'!D37 -> MASS 1 | N37: ='Calendrier MG'!F37 -> 14 | O37: ='Calendrier MG'!G37 -> 17
B38: 47 | C38: ='Calendrier BG'!C38 -> SJG | D38: ='Calendrier BG'!D38 -> MASS 2 | E38: LBSI à 14h | F38: ='Calendrier BG'!F38 -> 42 | G38: ='Calendrier BG'!G38 -> 2 | J38: 15 | K38: ='Calendrier MG'!C38 -> FEN 1 | L38: ='Calendrier MG'!D38 -> SBE 2 | N38: ='Calendrier MG'!F38 -> 10 | O38: ='Calendrier MG'!G38 -> 15
F39: =IFERROR(VLOOKUP($B39,'Cls B2'!$A$1:$G$15,4,FALSE),"") ->  | G39: =IFERROR(VLOOKUP($B39,'Cls B2'!$A$1:$G$15,5,FALSE),"") ->  | J39: DIVISION 2
B40: DIVISION MIXTE | J40: 69 | K40: ='Calendrier MG'!C40 -> LBSI | L40: ='Calendrier MG'!D40 -> MASS 3 | M40: LBSI à 14h | N40: ='Calendrier MG'!F40 -> 41 | O40: ='Calendrier MG'!G40 -> 8
J41: 68 | K41: ='Calendrier MG'!C41 -> SJG | L41: ='Calendrier MG'!D41 -> MASS 3 | N41: ='Calendrier MG'!F41 -> 39 | O41: ='Calendrier MG'!G41 -> 2
J42: 52 | K42: ='Calendrier MG'!C42 -> SJFF 2 | L42: ='Calendrier MG'!D42 -> LR | M42: LR à 14h | N42: ='Calendrier MG'!F42 -> 6 | O42: ='Calendrier MG'!G42 -> 16
A43: 2021-12-15 | B43: DIVISION 1 | J43: 47 | K43: ='Calendrier MG'!C43 -> FEN 2 | L43: ='Calendrier MG'!D43 -> SJFF 2 | N43: ='Calendrier MG'!F43 -> 5 | O43: ='Calendrier MG'!G43 -> 6
B44: 7 | C44: ='Calendrier BG'!C44 -> FEN 1 | D44: ='Calendrier BG'!D44 -> SJFF 1 | E44: Japy à 14h | F44: ='Calendrier BG'!F44 -> 18 | G44: ='Calendrier BG'!G44 -> 20 | J44: 43 | K44: ='Calendrier MG'!C44 -> LR | L44: ='Calendrier MG'!D44 -> FEN 2 | N44: ='Calendrier MG'!F44 -> 18 | O44: ='Calendrier MG'!G44 -> 10
B45: 16 | C45: ='Calendrier BG'!C45 -> LR | D45: ='Calendrier BG'!D45 -> SMSM | E45: SMSM à 14h | F45: ='Calendrier BG'!F45 -> 6 | G45: ='Calendrier BG'!G45 -> 4 | J45: DIVISION FILLE
B46: 20 | C46: ='Calendrier BG'!C46 -> MASS 1 | D46: ='Calendrier BG'!D46 -> LR | F46: ='Calendrier BG'!F46 -> 4 | G46: ='Calendrier BG'!G46 -> 16
B47: 9 | C47: ='Calendrier BG'!C47 -> SMSM | D47: ='Calendrier BG'!D47 -> MASS 1 | F47: ='Calendrier BG'!F47 -> 5 | G47: ='Calendrier BG'!G47 -> 4
B48: DIVISION 2 | I48: 2021-12-15 | J48: DIVISION 1
B49: 55 | C49: ='Calendrier BG'!C49 -> FEN 2 | D49: ='Calendrier BG'!D49 -> SJG | E49: Japy à 14h | F49: ='Calendrier BG'!F49 -> 0 | G49: ='Calendrier BG'!G49 -> 74
B50: 56 | C50: ='Calendrier BG'!C50 -> NDF | D50: ='Calendrier BG'!D50 -> MASS 2 | F50: ='Calendrier BG'!F50 -> 21 | G50: ='Calendrier BG'!G50 -> 4
B51: DIVISION MIXTE | J51: DIVISION 2
B52: 73 | C52: ='Calendrier BG'!C52 -> LR 2 (F) | D52: ='Calendrier BG'!D52 -> MASS 3 | E52: SMSM à 14h | F52: ='Calendrier BG'!F52 -> 16 | G52: ='Calendrier BG'!G52 -> 4 | J52: 46 | K52: ='Calendrier MG'!C52 -> SMSM | L52: ='Calendrier MG'!D52 -> LR | M52: SMSM à 14h | N52: ='Calendrier MG'!F52 -> 0 | O52: ='Calendrier MG'!G52 -> 8
F53: ='Calendrier BG'!F53 ->  | G53: ='Calendrier BG'!G53 ->  | J53: 59 | K53: ='Calendrier MG'!C53 -> FEN 2 | L53: ='Calendrier MG'!D53 -> SJG | M53: Japy à 14h | N53: ='Calendrier MG'!F53 -> 2 | O53: ='Calendrier MG'!G53 -> 44
J54: DIVISION FILLE
A57: 2021-03-09 | B57: ENTRAINEMENT | I57: 2022-03-09 | J57: ENTRAINEMENT
A63: 2022-03-16 | B63: DIVISION 1 | I63: 2022-03-16 | J63: DIVISION 1
B64: 4 | C64: ='Calendrier BG'!C61 -> SJFF 1 | D64: ='Calendrier BG'!D61 -> LR | E64: Croix de Nivert 14h | F64: =IFERROR(VLOOKUP($B64,'Cls B1'!$A$1:$G$45,4,FALSE),"") -> 0 | G64: =IFERROR(VLOOKUP($B64,'Cls B1'!$A$1:$G$45,5,FALSE),"") -> 0 | J64: 6 | K64: ='Calendrier MG'!C64 -> SJFF 1 | L64: ='Calendrier MG'!D64 -> FEN 1 | M64: SJFF à 14h
B65: 12 | C65: ='Calendrier BG'!C62 -> LBSI | D65: ='Calendrier BG'!D62 -> SMSM | E65: LBSI à 14h | F65: =IFERROR(VLOOKUP($B65,'Cls B1'!$A$1:$G$45,4,FALSE),"") -> 0 | G65: =IFERROR(VLOOKUP($B65,'Cls B1'!$A$1:$G$45,5,FALSE),"") -> 0 | J65: 24 | K65: ='Calendrier MG'!C65 -> MASS 1 | L65: ='Calendrier MG'!D65 -> SBE 2 | M65: Japy à 14h
B66: 36 | C66: ='Calendrier BG'!C63 -> MASS 1 | D66: ='Calendrier BG'!D63 -> LBSI | F66: =IFERROR(VLOOKUP($B66,'Cls B1'!$A$1:$G$45,4,FALSE),"") -> 0 | G66: =IFERROR(VLOOKUP($B66,'Cls B1'!$A$1:$G$45,5,FALSE),"") -> 0 | J66: 27 | K66: ='Calendrier MG'!C66 -> MASS 1 | L66: ='Calendrier MG'!D66 -> SBE 1
B67: DIVISION 2 | J67: DIVISION 2
B68: 58 | C68: ='Calendrier BG'!C65 -> FEN 2 | D68: ='Calendrier BG'!D65 -> SJFF 2 | E68: SJFF à 14h | F68: =IFERROR(VLOOKUP($B68,'Cls B2'!$A$1:$G$33,4,FALSE),"") -> 0 | G68: =IFERROR(VLOOKUP($B68,'Cls B2'!$A$1:$G$33,5,FALSE),"") -> 0 | J68: 56 | K68: ='Calendrier MG'!C68 -> LBSI | L68: ='Calendrier MG'!D68 -> SMSM | M68: LBSI à 14h
B69: 67 | C69: ='Calendrier BG'!C66 -> NDF | D69: ='Calendrier BG'!D66 -> SJG | E69: Croix de Nivert 14h | F69: =IFERROR(VLOOKUP($B69,'Cls B2'!$A$1:$G$33,4,FALSE),"") -> 0 | G69: =IFERROR(VLOOKUP($B69,'Cls B2'!$A$1:$G$33,5,FALSE),"") -> 0 | J69: 50 | K69: ='Calendrier MG'!C69 -> SJG | L69: ='Calendrier MG'!D69 -> LR | M69: Croix de Nivert 14h
B70: DIVISION MIXTE | J70: 94 | K70: ='Calendrier MG'!C70 -> MASS 3 | L70: ='Calendrier MG'!D70 -> FEN 2 | M70: Japy à 14h
B71: 77 | C71: ='Calendrier BG'!C68 -> SJFF 3 (F) | D71: ='Calendrier BG'!D68 -> LR 2 (F) | E71: Croix de Nivert 14h | F71: =IFERROR(VLOOKUP($B71,'Cls BMixte'!$A$1:$G$15,4,FALSE),"") -> 0 | G71: =IFERROR(VLOOKUP($B71,'Cls BMixte'!$A$1:$G$15,5,FALSE),"") -> 0 | J71: 85 | K71: ='Calendrier MG'!C71 -> MASS 2 | L71: ='Calendrier MG'!D71 -> FEN 2
F72: =IFERROR(VLOOKUP($B72,'Cls BMixte'!$A$1:$G$15,4,FALSE),"") ->  | G72: =IFERROR(VLOOKUP($B72,'Cls BMixte'!$A$1:$G$15,5,FALSE),"") ->  | J72: DIVISION FILLE
A73: 2022-03-23 | B73: DIVISION 1 | I73: 2022-03-23 | J73: DIVISION 1
B74: 1 | C74: ='Calendrier BG'!C71 -> LR | D74: ='Calendrier BG'!D71 -> LBSI | E74: LBSI à 13h45 | F74: =IFERROR(VLOOKUP($B74,'Cls B1'!$A$1:$G$45,4,FALSE),"") -> 0 | G74: =IFERROR(VLOOKUP($B74,'Cls B1'!$A$1:$G$45,5,FALSE),"") -> 0 | J74: 4 | K74: ='Calendrier MG'!C76 -> SBE 2 | L74: ='Calendrier MG'!D76 -> SJFF 1 | M74: SMSM à 14h | N74: =IFERROR(VLOOKUP($B76,'Cls M1'!$A$1:$G$33,4,FALSE),"") ->  | O74: =IFERROR(VLOOKUP($B76,'Cls M1'!$A$1:$G$33,5,FALSE),"") -> 
B75: 24 | C75: ='Calendrier BG'!C72 -> FEN 1 | D75: ='Calendrier BG'!D72 -> MASS 1 | E75: Fragonard à 14h | F75: =IFERROR(VLOOKUP($B75,'Cls B1'!$A$1:$G$45,4,FALSE),"") -> 0 | G75: =IFERROR(VLOOKUP($B75,'Cls B1'!$A$1:$G$45,5,FALSE),"") -> 0 | J75: 8 | K75: ='Calendrier MG'!C77 -> SJFF 1 | L75: ='Calendrier MG'!D77 -> SBE 1 | N75: =IFERROR(VLOOKUP($B77,'Cls M1'!$A$1:$G$33,4,FALSE),"") ->  | O75: =IFERROR(VLOOKUP($B77,'Cls M1'!$A$1:$G$33,5,FALSE),"") -> 
B76: DIVISION 2 | J76: DIVISION 2
B77: 49 | C77: ='Calendrier BG'!C74 -> SJG | D77: ='Calendrier BG'!D74 -> SJFF 2 | E77: SJFF à 14h | F77: =IFERROR(VLOOKUP($B77,'Cls B2'!$A$1:$G$33,4,FALSE),"") -> 0 | G77: =IFERROR(VLOOKUP($B77,'Cls B2'!$A$1:$G$33,5,FALSE),"") -> 0 | J77: 58 | K77: ='Calendrier MG'!C79 -> LR | L77: ='Calendrier MG'!D79 -> LBSI | M77: LBSI à 13h45
B78: 65 | C78: ='Calendrier BG'!C75 -> SJFF 2 | D78: ='Calendrier BG'!D75 -> NDF | F78: =IFERROR(VLOOKUP($B78,'Cls B2'!$A$1:$G$33,4,FALSE),"") -> 0 | G78: =IFERROR(VLOOKUP($B78,'Cls B2'!$A$1:$G$33,5,FALSE),"") -> 0 | J78: 62 | K78: ='Calendrier MG'!C80 -> MASS 2 | L78: ='Calendrier MG'!D80 -> LR
B79: 66 | C79: ='Calendrier BG'!C76 -> MASS 2 | D79: ='Calendrier BG'!D76 -> FEN 2 | E79: Fragonard à 14h | F79: =IFERROR(VLOOKUP($B79,'Cls B2'!$A$1:$G$33,4,FALSE),"") -> 0 | G79: =IFERROR(VLOOKUP($B79,'Cls B2'!$A$1:$G$33,5,FALSE),"") -> 0 | J79: 79 | K79: ='Calendrier MG'!C81 -> MASS 2 | L79: ='Calendrier MG'!D81 -> LBSI
B80: DIVISION MIXTE | J80: 49 | K80: ='Calendrier MG'!C82 -> SJFF 2 | L80: ='Calendrier MG'!D82 -> SMSM | M80: SMSM à 14h
B81: 79 | C81: ='Calendrier BG'!C78 -> MASS 3 | D81: ='Calendrier BG'!D78 -> LR 2 (F) | E81: LBSI à 13h45 | F81: =IFERROR(VLOOKUP($B81,'Cls BMixte'!$A$1:$G$15,4,FALSE),"") -> 0 | G81: =IFERROR(VLOOKUP($B81,'Cls BMixte'!$A$1:$G$15,5,FALSE),"") -> 0 | J81: 66 | K81: ='Calendrier MG'!C83 -> FEN 2 | L81: ='Calendrier MG'!D83 -> MASS 3 | M81: Fragonard à 14h
F82: =IFERROR(VLOOKUP($B82,'Cls BMixte'!$A$1:$G$15,4,FALSE),"") ->  | G82: =IFERROR(VLOOKUP($B82,'Cls BMixte'!$A$1:$G$15,5,FALSE),"") ->  | J82: DIVISION FILLE
A83: 2022-03-30 | B83: DIVISION 1 | J83: 99 | K83: ='Calendrier MG'!C85 -> SBE | L83: ='Calendrier MG'!D85 -> SJFF | M83: SMSM à 14h
B84: 28 | C84: ='Calendrier BG'!C81 -> SJFF 1 | D84: ='Calendrier BG'!D81 -> FEN 1 | E84: SJFF à 14h | F84: =IFERROR(VLOOKUP($B84,'Cls B1'!$A$1:$G$45,4,FALSE),"") -> 0 | G84: =IFERROR(VLOOKUP($B84,'Cls B1'!$A$1:$G$45,5,FALSE),"") -> 0 | I84: 2022-03-30 | J84: DIVISION 1
B85: 22 | C85: ='Calendrier BG'!C82 -> LBSI | D85: ='Calendrier BG'!D82 -> LR | E85: LR à 14h | F85: =IFERROR(VLOOKUP($B85,'Cls B1'!$A$1:$G$45,4,FALSE),"") -> 0 | G85: =IFERROR(VLOOKUP($B85,'Cls B1'!$A$1:$G$45,5,FALSE),"") -> 0 | J85: 21 | K85: ='Calendrier MG'!C88 -> FEN 1 | L85: ='Calendrier MG'!D88 -> SJFF 1 | M85: Japy à 14h | N85: =IFERROR(VLOOKUP($B88,'Cls M1'!$A$1:$G$33,4,FALSE),"") ->  | O85: =IFERROR(VLOOKUP($B88,'Cls M1'!$A$1:$G$33,5,FALSE),"") -> 
B86: DIVISION 2 | J86: 18 | K86: ='Calendrier MG'!C89 -> SBE 1 | L86: ='Calendrier MG'!D89 -> FEN 1 | N86: =IFERROR(VLOOKUP($B89,'Cls M1'!$A$1:$G$33,4,FALSE),"") ->  | O86: =IFERROR(VLOOKUP($B89,'Cls M1'!$A$1:$G$33,5,FALSE),"") -> 
B87: 58 | C87: ='Calendrier BG'!C84 -> FEN 2 | D87: ='Calendrier BG'!D84 -> SJFF 2 | E87: SJFF à 14h | F87: =IFERROR(VLOOKUP($B87,'Cls B2'!$A$1:$G$33,4,FALSE),"") -> 0 | G87: =IFERROR(VLOOKUP($B87,'Cls B2'!$A$1:$G$33,5,FALSE),"") -> 0 | J87: 19 | K87: ='Calendrier MG'!C90 -> SJFF 1 | L87: ='Calendrier MG'!D90 -> SBE 2 | N87: =IFERROR(VLOOKUP($B90,'Cls M1'!$A$1:$G$33,4,FALSE),"") ->  | O87: =IFERROR(VLOOKUP($B90,'Cls M1'!$A$1:$G$33,5,FALSE),"") -> 
B88: 61 | C88: ='Calendrier BG'!C85 -> NDF | D88: ='Calendrier BG'!D85 -> FEN 2 | F88: =IFERROR(VLOOKUP($B88,'Cls B2'!$A$1:$G$33,4,FALSE),"") -> 0 | G88: =IFERROR(VLOOKUP($B88,'Cls B2'!$A$1:$G$33,5,FALSE),"") -> 0 | J88: DIVISION 2
B89: DIVISION MIXTE | J89: 75 | K89: ='Calendrier MG'!C92 -> SJFF 2 | L89: ='Calendrier MG'!D92 -> FEN 2 | M89: SJFF à 14h | N89: =IFERROR(VLOOKUP($B92,'Cls M2'!$A$1:$G$54,4,FALSE),"") ->  | O89: =IFERROR(VLOOKUP($B92,'Cls M2'!$A$1:$G$54,5,FALSE),"") -> 
F90: =IFERROR(VLOOKUP($B90,'Cls BMixte'!$A$1:$G$15,4,FALSE),"") ->  | G90: =IFERROR(VLOOKUP($B90,'Cls BMixte'!$A$1:$G$15,5,FALSE),"") ->  | J90: 86 | K90: ='Calendrier MG'!C93 -> LBSI | L90: ='Calendrier MG'!D93 -> LR | M90: LR à 14h | N90: =IFERROR(VLOOKUP($B93,'Cls M2'!$A$1:$G$54,4,FALSE),"") ->  | O90: =IFERROR(VLOOKUP($B93,'Cls M2'!$A$1:$G$54,5,FALSE),"") -> 
F91: =IFERROR(VLOOKUP($B91,'Cls BMixte'!$A$1:$G$15,4,FALSE),"") ->  | G91: =IFERROR(VLOOKUP($B91,'Cls BMixte'!$A$1:$G$15,5,FALSE),"") ->  | J91: 76 | K91: ='Calendrier MG'!C94 -> LBSI | L91: ='Calendrier MG'!D94 -> SJG | N91: =IFERROR(VLOOKUP($B94,'Cls M2'!$A$1:$G$54,4,FALSE),"") ->  | O91: =IFERROR(VLOOKUP($B94,'Cls M2'!$A$1:$G$54,5,FALSE),"") -> 
J92: 78 | K92: ='Calendrier MG'!C95 -> LR | L92: ='Calendrier MG'!D95 -> SJG | N92: =IFERROR(VLOOKUP($B95,'Cls M2'!$A$1:$G$54,4,FALSE),"") ->  | O92: =IFERROR(VLOOKUP($B95,'Cls M2'!$A$1:$G$54,5,FALSE),"") -> 
J93: DIVISION FILLE
J94: 105 | K94: ='Calendrier MG'!C97 -> SJFF | L94: ='Calendrier MG'!D97 -> SBE | M94: Japy à 14h

Sheet Calendrier BG
B1: CALENDRIER BENJAMINS | J1: POULES ET MATCHS BENJAMINS
A2: Date | B2: Match | C2: Equipe A | D2: Equipe B | E2: Lieux | F2: Résultats | H2: Indisponibilités | J2: DIVISION 1 | P2: DIVISION 2 | V2: DIVISION MIXTE
A3: 2021-11-17 | B3: DIVISION 1 | J3: Etablissements | P3: Etablissements | V3: Etablissements
B4: 5 | C4: =VLOOKUP($B4,$J$13:$N$55,4) -> LBSI | D4: =VLOOKUP($B4,$J$13:$N$55,5) -> FEN 1 | E4: LBSI à 14h | F4: =IFERROR(VLOOKUP($B4,'Cls B1'!$A$1:$G$45,4,FALSE),"") -> 13 | G4: =IFERROR(VLOOKUP($B4,'Cls B1'!$A$1:$G$45,5,FALSE),"") -> 4 | J4: 1 | K4: SJFF 1 | P4: 1 | Q4: SMP 2 | V4: 1 | W4: SMP 3 (F)
B5: 15 | C5: =VLOOKUP($B5,$J$13:$N$55,4) -> LBSI | D5: =VLOOKUP($B5,$J$13:$N$55,5) -> MASS 1 | F5: =IFERROR(VLOOKUP($B5,'Cls B1'!$A$1:$G$45,4,FALSE),"") -> 22 | G5: =IFERROR(VLOOKUP($B5,'Cls B1'!$A$1:$G$45,5,FALSE),"") -> 4 | J5: 2 | K5: LR | P5: 2 | Q5: SJFF 2 | V5: 2 | W5: SJFF 3 (F)
B6: 3 | C6: =VLOOKUP($B6,$J$13:$N$55,4) -> MASS 1 | D6: =VLOOKUP($B6,$J$13:$N$55,5) -> FEN 1 | F6: =IFERROR(VLOOKUP($B6,'Cls B1'!$A$1:$G$45,4,FALSE),"") -> 12 | G6: =IFERROR(VLOOKUP($B6,'Cls B1'!$A$1:$G$45,5,FALSE),"") -> 2 | J6: 3 | K6: LBSI | P6: 3 | Q6: FEN 2 | V6: 3 | W6: LR 2 (F)
B7: DIVISION 2 | J7: 4 | K7: FEN 1 | P7: 4 | Q7: NDF | V7: 4 | W7: MASS 3
B8: 54 | C8: =VLOOKUP($B8,$P$13:$T$43,4) -> SJFF 2 | D8: =VLOOKUP($B8,$P$13:$T$43,5) -> MASS 2 | E8: Croix de Nivert TA à 14h | F8: =IFERROR(VLOOKUP($B8,'Cls B2'!$A$1:$G$33,4,FALSE),"") -> 0 | G8: =IFERROR(VLOOKUP($B8,'Cls B2'!$A$1:$G$33,5,FALSE),"") -> 6 | J8: 5 | K8: SMP 1 | P8: 5 | Q8: SJG | V8: 5
B9: 51 | C9: =VLOOKUP($B9,$P$13:$T$43,4) -> FEN 2 | D9: =VLOOKUP($B9,$P$13:$T$43,5) -> MASS 2 | F9: =IFERROR(VLOOKUP($B9,'Cls B2'!$A$1:$G$33,4,FALSE),"") -> 0 | G9: =IFERROR(VLOOKUP($B9,'Cls B2'!$A$1:$G$33,5,FALSE),"") -> 7 | J9: 6 | K9: SMSM | P9: 6 | Q9: MASS 2
B10: 43 | C10: =VLOOKUP($B10,$P$13:$T$43,4) -> SJFF 2 | D10: =VLOOKUP($B10,$P$13:$T$43,5) -> FEN 2 | F10: =IFERROR(VLOOKUP($B10,'Cls B2'!$A$1:$G$33,4,FALSE),"") -> 4 | G10: =IFERROR(VLOOKUP($B10,'Cls B2'!$A$1:$G$33,5,FALSE),"") -> 6 | J10: 7 | K10: MASS 1 | P10: 7
B11: 52 | C11: =VLOOKUP($B11,$P$13:$T$43,4) -> SJG | D11: =VLOOKUP($B11,$P$13:$T$43,5) -> NDF | E11: Japy à 14h | F11: =IFERROR(VLOOKUP($B11,'Cls B2'!$A$1:$G$33,4,FALSE),"") -> 27 | G11: =IFERROR(VLOOKUP($B11,'Cls B2'!$A$1:$G$33,5,FALSE),"") -> 13 | P11: 8
B12: DIVISION MIXTE
B13: 75 | C13: =VLOOKUP($B13,$V$13:$Z$31,4) -> SJFF 3 (F) | D13: =VLOOKUP($B13,$V$13:$Z$31,5) -> MASS 3 | E13: Croix de Nivert TB à 14h | F13: =IFERROR(VLOOKUP($B13,'Cls BMixte'!$A$1:$G$15,4,FALSE),"") -> 14 | G13: =IFERROR(VLOOKUP($B13,'Cls BMixte'!$A$1:$G$15,5,FALSE),"") -> 4 | J13: N° Match | K13: Equipe A | L13: Equipe B | M13: Match | P13: N° Match | Q13: Equipe A | R13: Equipe B | S13: Match | V13: N° Match | W13: Equipe A | X13: Equipe B | Y13: Match
C14: =VLOOKUP($B14,$V$13:$Z$31,4) ->  | D14: =VLOOKUP($B14,$V$13:$Z$31,5) ->  | E14: LR à 14h | F14: =IFERROR(VLOOKUP($B14,'Cls BMixte'!$A$1:$G$15,4,FALSE),"") ->  | G14: =IFERROR(VLOOKUP($B14,'Cls BMixte'!$A$1:$G$15,5,FALSE),"") ->  | J14: 1 | K14: 2 | L14: 3 | M14: =VLOOKUP(K14,$J$2:$K$10,2) -> LR | N14: =VLOOKUP(L14,$J$2:$K$10,2) -> LBSI | P14: 43 | Q14: 2 | R14: 3 | S14: =VLOOKUP(Q14,$P$2:$Q$10,2) -> SJFF 2 | T14: =VLOOKUP(R14,$P$2:$Q$10,2) -> FEN 2 | V14: 72 | W14: 1 | X14: 2 | Y14: =VLOOKUP(W14,$V$2:$W$11,2) -> SMP 3 (F) | Z14: =VLOOKUP(X14,$V$2:$W$11,2) -> SJFF 3 (F)
A15: 2021-11-24 | B15: DIVISION 1 | J15: 2 | K15: 1 | L15: 5 | M15: =VLOOKUP(K15,$J$2:$K$10,2) -> SJFF 1 | N15: =VLOOKUP(L15,$J$2:$K$10,2) -> SMP 1 | P15: 44 | Q15: 1 | R15: 5 | S15: =VLOOKUP(Q15,$P$2:$Q$10,2) -> SMP 2 | T15: =VLOOKUP(R15,$P$2:$Q$10,2) -> SJG | V15: 73 | W15: 3 | X15: 4 | Y15: =VLOOKUP(W15,$V$2:$W$11,2) -> LR 2 (F) | Z15: =VLOOKUP(X15,$V$2:$W$11,2) -> MASS 3
J16: 3 | K16: 7 | L16: 4 | M16: MASS 1 | N16: FEN 1 | P16: 45 | Q16: 1 | R16: 2 | S16: SMP 2 | T16: SJFF 2 | V16: 74 | W16: 1 | X16: 3 | Y16: SMP 3 (F) | Z16: LR 2 (F)
J17: 4 | K17: 1 | L17: 2 | M17: SJFF 1 | N17: LR | P17: 46 | Q17: 3 | R17: 4 | S17: FEN 2 | T17: NDF | V17: 75 | W17: 2 | X17: 4 | Y17: SJFF 3 (F) | Z17: MASS 3
B18: DIVISION 2 | J18: 5 | K18: 3 | L18: 4 | M18: LBSI | N18: FEN 1 | P18: 47 | Q18: 5 | R18: 6 | S18: SJG | T18: MASS 2 | V18: 76 | W18: 1 | X18: 4 | Y18: SMP 3 (F) | Z18: MASS 3
B19: 46 | C19: =VLOOKUP($B19,$P$13:$T$43,4) -> FEN 2 | D19: =VLOOKUP($B19,$P$13:$T$43,5) -> NDF | E19: Fragonard à 14h | F19: =IFERROR(VLOOKUP($B19,'Cls B2'!$A$1:$G$33,4,FALSE),"") -> 0 | G19: =IFERROR(VLOOKUP($B19,'Cls B2'!$A$1:$G$33,5,FALSE),"") -> 30 | J19: 6 | K19: 5 | L19: 6 | M19: SMP 1 | N19: SMSM | P19: 48 | Q19: 4 | R19: 1 | S19: NDF | T19: SMP 2 | V19: 77 | W19: 2 | X19: 3 | Y19: SJFF 3 (F) | Z19: LR 2 (F)
C20: =VLOOKUP($B20,$P$13:$T$43,4) ->  | D20: =VLOOKUP($B20,$P$13:$T$43,5) ->  | F20: =IFERROR(VLOOKUP($B20,'Cls B2'!$A$1:$G$33,4,FALSE),"") ->  | G20: =IFERROR(VLOOKUP($B20,'Cls B2'!$A$1:$G$33,5,FALSE),"") ->  | J20: 7 | K20: 4 | L20: 1 | M20: FEN 1 | N20: SJFF 1 | P20: 49 | Q20: 5 | R20: 2 | S20: SJG | T20: SJFF 2 | V20: 78 | W20: 2 | X20: 1 | Y20: SJFF 3 (F) | Z20: SMP 3 (F)
C21: =VLOOKUP($B21,$P$13:$T$43,4) ->  | D21: =VLOOKUP($B21,$P$13:$T$43,5) ->  | F21: =IFERROR(VLOOKUP($B21,'Cls B2'!$A$1:$G$33,4,FALSE),"") ->  | G21: =IFERROR(VLOOKUP($B21,'Cls B2'!$A$1:$G$33,5,FALSE),"") ->  | J21: 8 | K21: 5 | L21: 2 | M21: SMP 1 | N21: LR | P21: 50 | Q21: 4 | R21: 2 | S21: NDF | T21: SJFF 2 | V21: 79 | W21: 4 | X21: 3 | Y21: MASS 3 | Z21: LR 2 (F)
B22: DIVISION MIXTE | J22: 9 | K22: 6 | L22: 7 | M22: SMSM | N22: MASS 1 | P22: 51 | Q22: 3 | R22: 6 | S22: FEN 2 | T22: MASS 2 | V22: 80 | W22: 3 | X22: 1 | Y22: LR 2 (F) | Z22: SMP 3 (F)
J23: 10 | K23: 4 | L23: 2 | M23: FEN 1 | N23: LR | P23: 52 | Q23: 5 | R23: 4 | S23: SJG | T23: NDF | V23: 81 | W23: 4 | X23: 2 | Y23: MASS 3 | Z23: SJFF 3 (F)
J24: 11 | K24: 7 | L24: 5 | M24: MASS 1 | N24: SMP 1 | P24: 53 | Q24: 6 | R24: 1 | S24: MASS 2 | T24: SMP 2 | V24: 82 | W24: 4 | X24: 1 | Y24: MASS 3 | Z24: SMP 3 (F)
A25: 2021-12-01 | B25: DIVISION 1 | J25: 12 | K25: 3 | L25: 6 | M25: LBSI | N25: SMSM | P25: 54 | Q25: 2 | R25: 6 | S25: SJFF 2 | T25: MASS 2 | V25: 83 | W25: 3 | X25: 2 | Y25: LR 2 (F) | Z25: SJFF 3 (F)
B26: 18 | C26: =VLOOKUP($B26,$J$13:$N$55,4) -> SJFF 1 | D26: =VLOOKUP($B26,$J$13:$N$55,5) -> MASS 1 | E26: Japy à 14h | F26: =IFERROR(VLOOKUP($B26,'Cls B1'!$A$1:$G$45,4,FALSE),"") -> 10 | G26: =IFERROR(VLOOKUP($B26,'Cls B1'!$A$1:$G$45,5,FALSE),"") -> 3 | J26: 13 | K26: 5 | L26: 4 | M26: SMP 1 | N26: FEN 1 | P26: 55 | Q26: 3 | R26: 5 | S26: FEN 2 | T26: SJG | V26: 84 | Y26: =VLOOKUP(W26,$V$2:$W$11,2) ->  | Z26: =VLOOKUP(X26,$V$2:$W$11,2) -> 
B27: 19 | C27: =VLOOKUP($B27,$J$13:$N$55,4) -> FEN 1 | D27: =VLOOKUP($B27,$J$13:$N$55,5) -> SMSM | E27: SMSM à 14h | F27: =IFERROR(VLOOKUP($B27,'Cls B1'!$A$1:$G$45,4,FALSE),"") -> 12 | G27: =IFERROR(VLOOKUP($B27,'Cls B1'!$A$1:$G$45,5,FALSE),"") -> 7 | J27: 14 | K27: 6 | L27: 1 | M27: SMSM | N27: SJFF 1 | P27: 56 | Q27: 4 | R27: 6 | S27: NDF | T27: MASS 2 | V27: 85
B28: DIVISION 2 | J28: 15 | K28: 3 | L28: 7 | M28: LBSI | N28: MASS 1 | P28: 57 | Q28: 1 | R28: 3 | S28: SMP 2 | T28: FEN 2 | V28: 86
B29: 50 | C29: =VLOOKUP($B29,$P$13:$T$43,4) -> NDF | D29: =VLOOKUP($B29,$P$13:$T$43,5) -> SJFF 2 | E29: SJFF à 14h | F29: =IFERROR(VLOOKUP($B29,'Cls B2'!$A$1:$G$33,4,FALSE),"") -> 16 | G29: =IFERROR(VLOOKUP($B29,'Cls B2'!$A$1:$G$33,5,FALSE),"") -> 0 | J29: 16 | K29: 2 | L29: 6 | M29: LR | N29: SMSM | P29: 58 | Q29: 3 | R29: 2 | S29: FEN 2 | T29: SJFF 2 | V29: 87
J30: 17 | K30: 3 | L30: 5 | M30: LBSI | N30: SMP 1 | P30: 59 | Q30: 5 | R30: 1 | S30: SJG | T30: SMP 2 | V30: 88
B31: DIVISION MIXTE | J31: 18 | K31: 1 | L31: 7 | M31: SJFF 1 | N31: MASS 1 | P31: 60 | Q31: 2 | R31: 1 | S31: SJFF 2 | T31: SMP 2 | V31: 89
J32: 19 | K32: 4 | L32: 6 | M32: FEN 1 | N32: SMSM | P32: 61 | Q32: 4 | R32: 3 | S32: NDF | T32: FEN 2
J33: 20 | K33: 7 | L33: 2 | M33: MASS 1 | N33: LR | P33: 62 | Q33: 6 | R33: 5 | S33: MASS 2 | T33: SJG
A34: 2021-12-08 | B34: DIVISION 1 | J34: 21 | K34: 1 | L34: 3 | M34: SJFF 1 | N34: LBSI | P34: 63 | Q34: 1 | R34: 4 | S34: SMP 2 | T34: NDF
B35: 10 | C35: =VLOOKUP($B35,$J$13:$N$55,4) -> FEN 1 | D35: =VLOOKUP($B35,$J$13:$N$55,5) -> LR | E35: LR à 14h | F35: =IFERROR(VLOOKUP($B35,'Cls B1'!$A$1:$G$45,4,FALSE),"") -> 12 | G35: =IFERROR(VLOOKUP($B35,'Cls B1'!$A$1:$G$45,5,FALSE),"") -> 10 | J35: 22 | K35: 3 | L35: 2 | M35: LBSI | N35: LR | P35: 64 | Q35: 2 | R35: 5 | S35: SJFF 2 | T35: SJG
J36: 23 | K36: 5 | L36: 1 | M36: SMP 1 | N36: SJFF 1 | P36: 65 | Q36: 2 | R36: 4 | S36: SJFF 2 | T36: NDF
B37: DIVISION 2 | J37: 24 | K37: 4 | L37: 7 | M37: FEN 1 | N37: MASS 1 | P37: 66 | Q37: 6 | R37: 3 | S37: MASS 2 | T37: FEN 2
B38: 47 | C38: =VLOOKUP($B38,$P$13:$T$43,4) -> SJG | D38: =VLOOKUP($B38,$P$13:$T$43,5) -> MASS 2 | E38: LBSI à 14h | F38: =IFERROR(VLOOKUP($B38,'Cls B2'!$A$1:$G$33,4,FALSE),"") -> 42 | G38: =IFERROR(VLOOKUP($B38,'Cls B2'!$A$1:$G$33,5,FALSE),"") -> 2 | J38: 25 | K38: 2 | L38: 1 | M38: LR | N38: SJFF 1 | P38: 67 | Q38: 4 | R38: 5 | S38: NDF | T38: SJG
F39: =IFERROR(VLOOKUP($B39,'Cls B2'!$A$1:$G$15,4,FALSE),"") ->  | G39: =IFERROR(VLOOKUP($B39,'Cls B2'!$A$1:$G$15,5,FALSE),"") ->  | J39: 26 | K39: 4 | L39: 3 | M39: FEN 1 | N39: LBSI | P39: 68 | Q39: 1 | R39: 6 | S39: SMP 2 | T39: MASS 2
B40: DIVISION MIXTE | J40: 27 | K40: 6 | L40: 5 | M40: SMSM | N40: SMP 1 | P40: 69 | Q40: 6 | R40: 2 | S40: MASS 2 | T40: SJFF 2
J41: 28 | K41: 1 | L41: 4 | M41: SJFF 1 | N41: FEN 1 | P41: 70 | Q41: 5 | R41: 3 | S41: SJG | T41: FEN 2
J42: 29 | K42: 2 | L42: 5 | M42: LR | N42: SMP 1 | P42: 71 | Q42: 6 | R42: 4 | S42: MASS 2 | T42: NDF
A43: 2021-12-15 | B43: DIVISION 1 | J43: 30 | K43: 7 | L43: 6 | M43: MASS 1 | N43: SMSM | P43: 72 | Q43: 3 | R43: 1 | S43: FEN 2 | T43: SMP 2
B44: 7 | C44: =VLOOKUP($B44,$J$13:$N$55,4) -> FEN 1 | D44: =VLOOKUP($B44,$J$13:$N$55,5) -> SJFF 1 | E44: Japy à 14h | F44: =IFERROR(VLOOKUP($B44,'Cls B1'!$A$1:$G$45,4,FALSE),"") -> 18 | G44: =IFERROR(VLOOKUP($B44,'Cls B1'!$A$1:$G$45,5,FALSE),"") -> 20 | H44: LBSI | J44: 31 | K44: 2 | L44: 4 | M44: LR | N44: FEN 1
B45: 16 | C45: =VLOOKUP($B45,$J$13:$N$55,4) -> LR | D45: =VLOOKUP($B45,$J$13:$N$55,5) -> SMSM | E45: SMSM à 14h | F45: =IFERROR(VLOOKUP($B45,'Cls B1'!$A$1:$G$45,4,FALSE),"") -> 6 | G45: =IFERROR(VLOOKUP($B45,'Cls B1'!$A$1:$G$45,5,FALSE),"") -> 4 | J45: 32 | K45: 5 | L45: 7 | M45: SMP 1 | N45: MASS 1
B46: 20 | C46: =VLOOKUP($B46,$J$13:$N$55,4) -> MASS 1 | D46: =VLOOKUP($B46,$J$13:$N$55,5) -> LR | F46: =IFERROR(VLOOKUP($B46,'Cls B1'!$A$1:$G$45,4,FALSE),"") -> 4 | G46: =IFERROR(VLOOKUP($B46,'Cls B1'!$A$1:$G$45,5,FALSE),"") -> 16 | J46: 33 | K46: 6 | L46: 3 | M46: SMSM | N46: LBSI
B47: 9 | C47: =VLOOKUP($B47,$J$13:$N$55,4) -> SMSM | D47: =VLOOKUP($B47,$J$13:$N$55,5) -> MASS 1 | F47: =IFERROR(VLOOKUP($B47,'Cls B1'!$A$1:$G$45,4,FALSE),"") -> 5 | G47: =IFERROR(VLOOKUP($B47,'Cls B1'!$A$1:$G$45,5,FALSE),"") -> 4 | J47: 34 | K47: 4 | L47: 5 | M47: FEN 1 | N47: SMP 1
B48: DIVISION 2 | J48: 35 | K48: 1 | L48: 6 | M48: SJFF 1 | N48: SMSM
B49: 55 | C49: =VLOOKUP($B49,$P$13:$T$43,4) -> FEN 2 | D49: =VLOOKUP($B49,$P$13:$T$43,5) -> SJG | E49: Japy à 14h | F49: =IFERROR(VLOOKUP($B49,'Cls B2'!$A$1:$G$33,4,FALSE),"") -> 0 | G49: =IFERROR(VLOOKUP($B49,'Cls B2'!$A$1:$G$33,5,FALSE),"") -> 74 | J49: 36 | K49: 7 | L49: 3 | M49: MASS 1 | N49: LBSI
B50: 56 | C50: =VLOOKUP($B50,$P$13:$T$43,4) -> NDF | D50: =VLOOKUP($B50,$P$13:$T$43,5) -> MASS 2 | F50: =IFERROR(VLOOKUP($B50,'Cls B2'!$A$1:$G$33,4,FALSE),"") -> 21 | G50: =IFERROR(VLOOKUP($B50,'Cls B2'!$A$1:$G$33,5,FALSE),"") -> 4 | J50: 37 | K50: 6 | L50: 2 | M50: SMSM | N50: LR
B51: DIVISION MIXTE | J51: 38 | K51: 5 | L51: 3 | M51: SMP 1 | N51: LBSI
B52: 73 | C52: =VLOOKUP($B52,$V$13:$Z$31,4) -> LR 2 (F) | D52: =VLOOKUP($B52,$V$13:$Z$31,5) -> MASS 3 | E52: SMSM à 14h | F52: =IFERROR(VLOOKUP($B52,'Cls BMixte'!$A$1:$G$15,4,FALSE),"") -> 16 | G52: =IFERROR(VLOOKUP($B52,'Cls BMixte'!$A$1:$G$15,5,FALSE),"") -> 4 | J52: 39 | K52: 7 | L52: 1 | M52: MASS 1 | N52: SJFF 1
F53: =IFERROR(VLOOKUP($B53,'Cls BMixte'!$A$1:$G$15,4,FALSE),"") ->  | G53: =IFERROR(VLOOKUP($B53,'Cls BMixte'!$A$1:$G$15,5,FALSE),"") ->  | J53: 40 | K53: 6 | L53: 4 | M53: SMSM | N53: FEN 1
A54: 2021-03-09 | B54: ENTRAINEMENT | J54: 41 | K54: 2 | L54: 7 | M54: LR | N54: MASS 1
J55: 42 | K55: 3 | L55: 1 | M55: LBSI | N55: SJFF 1
A60: 2022-03-16 | B60: DIVISION 1
B61: 4 | C61: =VLOOKUP($B61,$J$13:$N$55,4) -> SJFF 1 | D61: =VLOOKUP($B61,$J$13:$N$55,5) -> LR | E61: Croix de Nivert 14h | F61: =IFERROR(VLOOKUP($B61,'Cls B1'!$A$1:$G$45,4,FALSE),"") -> 0 | G61: =IFERROR(VLOOKUP($B61,'Cls B1'!$A$1:$G$45,5,FALSE),"") -> 0
B62: 12 | C62: =VLOOKUP($B62,$J$13:$N$55,4) -> LBSI | D62: =VLOOKUP($B62,$J$13:$N$55,5) -> SMSM | E62: LBSI à 14h | F62: =IFERROR(VLOOKUP($B62,'Cls B1'!$A$1:$G$45,4,FALSE),"") -> 0 | G62: =IFERROR(VLOOKUP($B62,'Cls B1'!$A$1:$G$45,5,FALSE),"") -> 0
B63: 36 | C63: =VLOOKUP($B63,$J$13:$N$55,4) -> MASS 1 | D63: =VLOOKUP($B63,$J$13:$N$55,5) -> LBSI | F63: =IFERROR(VLOOKUP($B63,'Cls B1'!$A$1:$G$45,4,FALSE),"") -> 0 | G63: =IFERROR(VLOOKUP($B63,'Cls B1'!$A$1:$G$45,5,FALSE),"") -> 0
B64: DIVISION 2
B65: 58 | C65: =VLOOKUP($B65,$P$13:$T$43,4) -> FEN 2 | D65: =VLOOKUP($B65,$P$13:$T$43,5) -> SJFF 2 | E65: SJFF à 14h | F65: =IFERROR(VLOOKUP($B65,'Cls B2'!$A$1:$G$33,4,FALSE),"") -> 0 | G65: =IFERROR(VLOOKUP($B65,'Cls B2'!$A$1:$G$33,5,FALSE),"") -> 0
B66: 67 | C66: =VLOOKUP($B66,$P$13:$T$43,4) -> NDF | D66: =VLOOKUP($B66,$P$13:$T$43,5) -> SJG | E66: Croix de Nivert 14h | F66: =IFERROR(VLOOKUP($B66,'Cls B2'!$A$1:$G$33,4,FALSE),"") -> 0 | G66: =IFERROR(VLOOKUP($B66,'Cls B2'!$A$1:$G$33,5,FALSE),"") -> 0
B67: DIVISION MIXTE
B68: 77 | C68: =VLOOKUP($B68,$V$13:$Z$31,4) -> SJFF 3 (F) | D68: =VLOOKUP($B68,$V$13:$Z$31,5) -> LR 2 (F) | E68: Croix de Nivert 14h | F68: =IFERROR(VLOOKUP($B68,'Cls BMixte'!$A$1:$G$15,4,FALSE),"") -> 0 | G68: =IFERROR(VLOOKUP($B68,'Cls BMixte'!$A$1:$G$15,5,FALSE),"") -> 0
F69: =IFERROR(VLOOKUP($B69,'Cls BMixte'!$A$1:$G$15,4,FALSE),"") ->  | G69: =IFERROR(VLOOKUP($B69,'Cls BMixte'!$A$1:$G$15,5,FALSE),"") -> 
A70: 2022-03-23 | B70: DIVISION 1
B71: 1 | C71: =VLOOKUP($B71,$J$13:$N$55,4) -> LR | D71: =VLOOKUP($B71,$J$13:$N$55,5) -> LBSI | E71: LBSI à 13h45 | F71: =IFERROR(VLOOKUP($B71,'Cls B1'!$A$1:$G$45,4,FALSE),"") -> 0 | G71: =IFERROR(VLOOKUP($B71,'Cls B1'!$A$1:$G$45,5,FALSE),"") -> 0
B72: 24 | C72: =VLOOKUP($B72,$J$13:$N$55,4) -> FEN 1 | D72: =VLOOKUP($B72,$J$13:$N$55,5) -> MASS 1 | E72: Fragonard à 14h | F72: =IFERROR(VLOOKUP($B72,'Cls B1'!$A$1:$G$45,4,FALSE),"") -> 0 | G72: =IFERROR(VLOOKUP($B72,'Cls B1'!$A$1:$G$45,5,FALSE),"") -> 0
B73: DIVISION 2
B74: 49 | C74: =VLOOKUP($B74,$P$13:$T$43,4) -> SJG | D74: =VLOOKUP($B74,$P$13:$T$43,5) -> SJFF 2 | E74: SJFF à 14h | F74: =IFERROR(VLOOKUP($B74,'Cls B2'!$A$1:$G$33,4,FALSE),"") -> 0 | G74: =IFERROR(VLOOKUP($B74,'Cls B2'!$A$1:$G$33,5,FALSE),"") -> 0
B75: 65 | C75: =VLOOKUP($B75,$P$13:$T$43,4) -> SJFF 2 | D75: =VLOOKUP($B75,$P$13:$T$43,5) -> NDF | F75: =IFERROR(VLOOKUP($B75,'Cls B2'!$A$1:$G$33,4,FALSE),"") -> 0 | G75: =IFERROR(VLOOKUP($B75,'Cls B2'!$A$1:$G$33,5,FALSE),"") -> 0
B76: 66 | C76: =VLOOKUP($B76,$P$13:$T$43,4) -> MASS 2 | D76: =VLOOKUP($B76,$P$13:$T$43,5) -> FEN 2 | E76: Fragonard à 14h | F76: =IFERROR(VLOOKUP($B76,'Cls B2'!$A$1:$G$33,4,FALSE),"") -> 0 | G76: =IFERROR(VLOOKUP($B76,'Cls B2'!$A$1:$G$33,5,FALSE),"") -> 0
B77: DIVISION MIXTE
B78: 79 | C78: =VLOOKUP($B78,$V$13:$Z$31,4) -> MASS 3 | D78: =VLOOKUP($B78,$V$13:$Z$31,5) -> LR 2 (F) | E78: LBSI à 13h45 | F78: =IFERROR(VLOOKUP($B78,'Cls BMixte'!$A$1:$G$15,4,FALSE),"") -> 0 | G78: =IFERROR(VLOOKUP($B78,'Cls BMixte'!$A$1:$G$15,5,FALSE),"") -> 0
F79: =IFERROR(VLOOKUP($B79,'Cls BMixte'!$A$1:$G$15,4,FALSE),"") ->  | G79: =IFERROR(VLOOKUP($B79,'Cls BMixte'!$A$1:$G$15,5,FALSE),"") -> 
A80: 2022-03-30 | B80: DIVISION 1
B81: 28 | C81: =VLOOKUP($B81,$J$13:$N$55,4) -> SJFF 1 | D81: =VLOOKUP($B81,$J$13:$N$55,5) -> FEN 1 | E81: SJFF à 14h | F81: =IFERROR(VLOOKUP($B81,'Cls B1'!$A$1:$G$45,4,FALSE),"") -> 0 | G81: =IFERROR(VLOOKUP($B81,'Cls B1'!$A$1:$G$45,5,FALSE),"") -> 0 | H81: MASS
B82: 22 | C82: =VLOOKUP($B82,$J$13:$N$55,4) -> LBSI | D82: =VLOOKUP($B82,$J$13:$N$55,5) -> LR | E82: LR à 14h | F82: =IFERROR(VLOOKUP($B82,'Cls B1'!$A$1:$G$45,4,FALSE),"") -> 0 | G82: =IFERROR(VLOOKUP($B82,'Cls B1'!$A$1:$G$45,5,FALSE),"") -> 0
B83: DIVISION 2
B84: 58 | C84: =VLOOKUP($B84,$P$13:$T$43,4) -> FEN 2 | D84: =VLOOKUP($B84,$P$13:$T$43,5) -> SJFF 2 | E84: SJFF à 14h | F84: =IFERROR(VLOOKUP($B84,'Cls B2'!$A$1:$G$33,4,FALSE),"") -> 0 | G84: =IFERROR(VLOOKUP($B84,'Cls B2'!$A$1:$G$33,5,FALSE),"") -> 0 | H84: MASS
B85: 61 | C85: =VLOOKUP($B85,$P$13:$T$43,4) -> NDF | D85: =VLOOKUP($B85,$P$13:$T$43,5) -> FEN 2 | F85: =IFERROR(VLOOKUP($B85,'Cls B2'!$A$1:$G$33,4,FALSE),"") -> 0 | G85: =IFERROR(VLOOKUP($B85,'Cls B2'!$A$1:$G$33,5,FALSE),"") -> 0
B86: DIVISION MIXTE
F87: =IFERROR(VLOOKUP($B87,'Cls BMixte'!$A$1:$G$15,4,FALSE),"") ->  | G87: =IFERROR(VLOOKUP($B87,'Cls BMixte'!$A$1:$G$15,5,FALSE),"") ->  | H87: MASS
F88: =IFERROR(VLOOKUP($B88,'Cls BMixte'!$A$1:$G$15,4,FALSE),"") ->  | G88: =IFERROR(VLOOKUP($B88,'Cls BMixte'!$A$1:$G$15,5,FALSE),"") -> 

Sheet Cls B1
A1: BENJAMINS DIVISION 1
A3: N° Match | B3: Equipe A | C3: Equipe B | D3: Scores | F3: Vainqueur | G3: Perdant | J3: SIGLE | K3: Etablissement | L3: Matchs joués | M3: Victoires | N3: Nuls | O3: Défaites | P3: Points Pour | Q3: Points Contre | R3: Différence | S3: Points
A4: 1 | B4: ='Calendrier BG'!M14 -> LR | C4: ='Calendrier BG'!N14 -> LBSI | F4: =IF(D4<>"",IF(D4>E4,B4,IF(D4<E4,C4,"nul")),"") ->  | G4: =IF(E4<>"",IF(E4<D4,C4,IF(E4>D4,B4,"nul")),"") ->  | I4: =RANK(T4,$T$4:$T$9) -> 5 | J4: SJFF 1 | K4: Saint Joseph 1 | L4: =COUNT(D7,D10,D17,D21,D24,D38,D28,D31,D42,D45) -> 2 | M4: =COUNTIF($F$3:$F$45,J4) -> 2 | N4: =L4-M4-O4 -> 0 | O4: =COUNTIF(G3:G45,J4) -> 0 | P4: =SUM(D5,D7,E10,E17,D21,E26,D24,D38,E28,D31,E42,D45) -> 30 | Q4: =SUM(E5,E7,D10,D17,E21,D26,E24,E38,D28,E31,D42,E45) -> 21 | R4: =P4-Q4 -> 9 | S4: =M4*3+N4*2+O4*1 -> 6 | T4: =SUM(S4*1000000+R4*10000+P4*100+L4*10) -> 6093020
A5: 2 | B5: ='Calendrier BG'!M15 -> SJFF 1 | C5: ='Calendrier BG'!N15 -> SMP 1 | F5: =IF(D5<>"",IF(D5>E5,B5,IF(D5<E5,C5,"nul")),"") ->  | G5: =IF(E5<>"",IF(E5<D5,C5,IF(E5>D5,B5,"nul")),"") ->  | I5: =RANK(T5,$T$4:$T$9) -> 2 | J5: LR | K5: La Rochefoucauld | L5: =COUNT(D4,D7,D13,D19,D25,D23,D34,D28,D40,D44) -> 3 | M5: =COUNTIF($F$3:$F$45,J5) -> 2 | N5: 0 | O5: =COUNTIF(G4:G46,J5) -> 1 | P5: =SUM(D4,E7,E11,E13,D19,E25,E23,D34,D28,D32,E40,D44) -> 32 | Q5: =SUM(E4,D7,D11,D13,E19,D25,D23,E34,E28,E32,D40,E44) -> 20 | R5: =P5-Q5 -> 12 | S5: =M5*3+N5*2+O5*1 -> 7 | T5: =SUM(S5*1000000+R5*10000+P5*100+L5*10) -> 7123230
A6: 3 | B6: ='Calendrier BG'!M16 -> MASS 1 | C6: ='Calendrier BG'!N16 -> FEN 1 | D6: 12 | E6: 2 | F6: MASS 1 | G6: FEN 1 | I6: 4 | J6: LBSI | K6: La Bruyère Sainte Isabelle | L6: =COUNT(D4,D8,D15,D18,D29,D25,D36,D39,D45,D47,D24) -> 2 | M6: 2 | N6: 0 | O6: 0 | P6: =SUM(E4,D8,D15,D18,D20,E29,D25,E41,E36,E39,D45,E24) -> 35 | Q6: =SUM(D4,E8,E15,E18,E20,D29,E25,D41,D36,D39,E45,D24) -> 8 | R6: =P6-Q6 -> 27 | S6: 6 | T6: 6273520
A7: 4 | B7: ='Calendrier BG'!M17 -> SJFF 1 | C7: ='Calendrier BG'!N17 -> LR | I7: 1 | J7: FEN 1 | K7: Fénelon Ste Marie 1 | L7: =COUNT(D6,D8,D10,D13,D22,D29,D27,D43,D31,D34) -> 5 | M7: 2 | N7: 0 | O7: 3 | P7: =SUM(E6,E8,D10,D13,D22,D29,D27,E43,E31,E34) -> 48 | Q7: =SUM(D6,D8,E10,E13,E22,E29,E27,D43,D31,D34) -> 62 | R7: -14 | S7: 9 | T7: 8864850
A8: 5 | B8: ='Calendrier BG'!M18 -> LBSI | C8: ='Calendrier BG'!N18 -> FEN 1 | D8: 13 | E8: 4 | F8: LBSI | G8: FEN 1 | I8: 6 | J8: SMSM | K8: Saint Michel Saint Mandé | L8: =COUNT(D19,D12,D15,D22,D17,D40,D38,D43,D33,D36) -> 3 | M8: 1 | N8: =L8-M8-O8 -> 0 | O8: 2 | P8: =SUM(E19,D12,E15,E22,D17,D40,E38,D43,E33,D36) -> 16 | Q8: =SUM(D19,E12,D15,D22,E17,E40,D38,E43,D33,E36) -> 22 | R8: =P8-Q8 -> -6 | S8: =M8*3+N8*2+O8*1 -> 5 | T8: =SUM(S8*1000000+R8*10000+P8*100+L8*10) -> 4941630
A9: 6 | B9: ='Calendrier BG'!M19 -> SMP 1 | C9: ='Calendrier BG'!N19 -> SMSM | I9: 3 | J9: MASS 1 | K9: Massillon 1 | L9: =COUNT(D6,D12,D18,D21,D23,D33,D27,D44,D39,D42) -> 5 | M9: 1 | N9: =L9-M9-O9 -> 0 | O9: 4 | P9: =SUM(D6,E12,E18,E21,D23,D33,E27,E44,D39,D42) -> 27 | Q9: =SUM(E6,D12,D18,D21,E23,E33,D27,D44,E39,E42) -> 55 | R9: =P9-Q9 -> -28 | S9: =M9*3+N9*2+O9*1 -> 7 | T9: =SUM(S9*1000000+R9*10000+P9*100+L9*10) -> 6722750
A10: 7 | B10: ='Calendrier BG'!M20 -> FEN 1 | C10: ='Calendrier BG'!N20 -> SJFF 1 | D10: 18 | E10: 20 | F10: SJFF 1 | G10: FEN 1
A11: 8 | B11: ='Calendrier BG'!M21 -> SMP 1 | C11: ='Calendrier BG'!N21 -> LR | I11: Classement | J11: SIGLE | K11: Etablissement | L11: Matchs joués | M11: Victoires | N11: Nuls | O11: Défaites | P11: Points Pour | Q11: Points Contre | R11: Différence | S11: Points
A12: 9 | B12: ='Calendrier BG'!M22 -> SMSM | C12: ='Calendrier BG'!N22 -> MASS 1 | D12: 5 | E12: 4 | F12: SMSM | G12: MASS 1 | I12: 1 | J12: =VLOOKUP($I12,$I$3:$S$9,COLUMNS($J11:J11)+1,FALSE) -> FEN 1 | K12: =VLOOKUP($I12,$I$3:$S$9,COLUMNS($J11:K11)+1,FALSE) -> Fénelon Ste Marie 1 | L12: =VLOOKUP($I12,$I$3:$S$9,COLUMNS($J11:L11)+1,FALSE) -> 5 | M12: =VLOOKUP($I12,$I$3:$S$9,COLUMNS($J11:M11)+1,FALSE) -> 2 | N12: =VLOOKUP($I12,$I$3:$S$9,COLUMNS($J11:N11)+1,FALSE) -> 0 | O12: =VLOOKUP($I12,$I$3:$S$9,COLUMNS($J11:O11)+1,FALSE) -> 3 | P12: =VLOOKUP($I12,$I$3:$S$9,COLUMNS($J11:P11)+1,FALSE) -> 48 | Q12: =VLOOKUP($I12,$I$3:$S$9,COLUMNS($J11:Q11)+1,FALSE) -> 62 | R12: =VLOOKUP($I12,$I$3:$S$9,COLUMNS($J11:R11)+1,FALSE) -> -14 | S12: =VLOOKUP($I12,$I$3:$S$9,COLUMNS($J11:S11)+1,FALSE) -> 9
A13: 10 | B13: ='Calendrier BG'!M23 -> FEN 1 | C13: ='Calendrier BG'!N23 -> LR | D13: 12 | E13: 10 | F13: FEN 1 | G13: LR | I13: 2 | J13: =VLOOKUP($I13,$I$3:$S$9,COLUMNS($J12:J12)+1,FALSE) -> LR | K13: =VLOOKUP($I13,$I$3:$S$9,COLUMNS($J12:K12)+1,FALSE) -> La Rochefoucauld | L13: =VLOOKUP($I13,$I$3:$S$9,COLUMNS($J12:L12)+1,FALSE) -> 3 | M13: =VLOOKUP($I13,$I$3:$S$9,COLUMNS($J12:M12)+1,FALSE) -> 2 | N13: =VLOOKUP($I13,$I$3:$S$9,COLUMNS($J12:N12)+1,FALSE) -> 0 | O13: =VLOOKUP($I13,$I$3:$S$9,COLUMNS($J12:O12)+1,FALSE) -> 1 | P13: =VLOOKUP($I13,$I$3:$S$9,COLUMNS($J12:P12)+1,FALSE) -> 32 | Q13: =VLOOKUP($I13,$I$3:$S$9,COLUMNS($J12:Q12)+1,FALSE) -> 20 | R13: =VLOOKUP($I13,$I$3:$S$9,COLUMNS($J12:R12)+1,FALSE) -> 12 | S13: =VLOOKUP($I13,$I$3:$S$9,COLUMNS($J12:S12)+1,FALSE) -> 7
A14: 11 | B14: ='Calendrier BG'!M24 -> MASS 1 | C14: ='Calendrier BG'!N24 -> SMP 1 | I14: 3 | J14: =VLOOKUP($I14,$I$3:$S$9,COLUMNS($J13:J13)+1,FALSE) -> MASS 1 | K14: =VLOOKUP($I14,$I$3:$S$9,COLUMNS($J13:K13)+1,FALSE) -> Massillon 1 | L14: =VLOOKUP($I14,$I$3:$S$9,COLUMNS($J13:L13)+1,FALSE) -> 5 | M14: =VLOOKUP($I14,$I$3:$S$9,COLUMNS($J13:M13)+1,FALSE) -> 1 | N14: =VLOOKUP($I14,$I$3:$S$9,COLUMNS($J13:N13)+1,FALSE) -> 0 | O14: =VLOOKUP($I14,$I$3:$S$9,COLUMNS($J13:O13)+1,FALSE) -> 4 | P14: =VLOOKUP($I14,$I$3:$S$9,COLUMNS($J13:P13)+1,FALSE) -> 27 | Q14: =VLOOKUP($I14,$I$3:$S$9,COLUMNS($J13:Q13)+1,FALSE) -> 55 | R14: =VLOOKUP($I14,$I$3:$S$9,COLUMNS($J13:R13)+1,FALSE) -> -28 | S14: =VLOOKUP($I14,$I$3:$S$9,COLUMNS($J13:S13)+1,FALSE) -> 7
A15: 12 | B15: ='Calendrier BG'!M25 -> LBSI | C15: ='Calendrier BG'!N25 -> SMSM | I15: 4 | J15: =VLOOKUP($I15,$I$3:$S$9,COLUMNS($J14:J14)+1,FALSE) -> LBSI | K15: =VLOOKUP($I15,$I$3:$S$9,COLUMNS($J14:K14)+1,FALSE) -> La Bruyère Sainte Isabelle | L15: =VLOOKUP($I15,$I$3:$S$9,COLUMNS($J14:L14)+1,FALSE) -> 2 | M15: =VLOOKUP($I15,$I$3:$S$9,COLUMNS($J14:M14)+1,FALSE) -> 2 | N15: =VLOOKUP($I15,$I$3:$S$9,COLUMNS($J14:N14)+1,FALSE) -> 0 | O15: =VLOOKUP($I15,$I$3:$S$9,COLUMNS($J14:O14)+1,FALSE) -> 0 | P15: =VLOOKUP($I15,$I$3:$S$9,COLUMNS($J14:P14)+1,FALSE) -> 35 | Q15: =VLOOKUP($I15,$I$3:$S$9,COLUMNS($J14:Q14)+1,FALSE) -> 8 | R15: =VLOOKUP($I15,$I$3:$S$9,COLUMNS($J14:R14)+1,FALSE) -> 27 | S15: =VLOOKUP($I15,$I$3:$S$9,COLUMNS($J14:S14)+1,FALSE) -> 6
A16: 13 | B16: ='Calendrier BG'!M26 -> SMP 1 | C16: ='Calendrier BG'!N26 -> FEN 1 | I16: 5 | J16: =VLOOKUP($I16,$I$3:$S$9,COLUMNS($J15:J15)+1,FALSE) -> SJFF 1 | K16: =VLOOKUP($I16,$I$3:$S$9,COLUMNS($J15:K15)+1,FALSE) -> Saint Joseph 1 | L16: =VLOOKUP($I16,$I$3:$S$9,COLUMNS($J15:L15)+1,FALSE) -> 2 | M16: =VLOOKUP($I16,$I$3:$S$9,COLUMNS($J15:M15)+1,FALSE) -> 2 | N16: =VLOOKUP($I16,$I$3:$S$9,COLUMNS($J15:N15)+1,FALSE) -> 0 | O16: =VLOOKUP($I16,$I$3:$S$9,COLUMNS($J15:O15)+1,FALSE) -> 0 | P16: =VLOOKUP($I16,$I$3:$S$9,COLUMNS($J15:P15)+1,FALSE) -> 30 | Q16: =VLOOKUP($I16,$I$3:$S$9,COLUMNS($J15:Q15)+1,FALSE) -> 21 | R16: =VLOOKUP($I16,$I$3:$S$9,COLUMNS($J15:R15)+1,FALSE) -> 9 | S16: =VLOOKUP($I16,$I$3:$S$9,COLUMNS($J15:S15)+1,FALSE) -> 6
A17: 14 | B17: ='Calendrier BG'!M27 -> SMSM | C17: ='Calendrier BG'!N27 -> SJFF 1 | I17: 6 | J17: =VLOOKUP($I17,$I$3:$S$9,COLUMNS($J16:J16)+1,FALSE) -> SMSM | K17: =VLOOKUP($I17,$I$3:$S$9,COLUMNS($J16:K16)+1,FALSE) -> Saint Michel Saint Mandé | L17: =VLOOKUP($I17,$I$3:$S$9,COLUMNS($J16:L16)+1,FALSE) -> 3 | M17: =VLOOKUP($I17,$I$3:$S$9,COLUMNS($J16:M16)+1,FALSE) -> 1 | N17: =VLOOKUP($I17,$I$3:$S$9,COLUMNS($J16:N16)+1,FALSE) -> 0 | O17: =VLOOKUP($I17,$I$3:$S$9,COLUMNS($J16:O16)+1,FALSE) -> 2 | P17: =VLOOKUP($I17,$I$3:$S$9,COLUMNS($J16:P16)+1,FALSE) -> 16 | Q17: =VLOOKUP($I17,$I$3:$S$9,COLUMNS($J16:Q16)+1,FALSE) -> 22 | R17: =VLOOKUP($I17,$I$3:$S$9,COLUMNS($J16:R16)+1,FALSE) -> -6 | S17: =VLOOKUP($I17,$I$3:$S$9,COLUMNS($J16:S16)+1,FALSE) -> 5
A18: 15 | B18: ='Calendrier BG'!M28 -> LBSI | C18: ='Calendrier BG'!N28 -> MASS 1 | D18: 22 | E18: 4 | F18: LBSI | G18: MASS 1
A19: 16 | B19: ='Calendrier BG'!M29 -> LR | C19: ='Calendrier BG'!N29 -> SMSM | D19: 6 | E19: 4 | F19: LR | G19: SMSM
A20: 17 | B20: ='Calendrier BG'!M30 -> LBSI | C20: ='Calendrier BG'!N30 -> SMP 1
A21: 18 | B21: ='Calendrier BG'!M31 -> SJFF 1 | C21: ='Calendrier BG'!N31 -> MASS 1 | D21: 10 | E21: 3 | F21: SJFF 1 | G21: MASS 1
A22: 19 | B22: ='Calendrier BG'!M32 -> FEN 1 | C22: ='Calendrier BG'!N32 -> SMSM | D22: 12 | E22: 7 | F22: FEN 1 | G22: SMSM
A23: 20 | B23: ='Calendrier BG'!M33 -> MASS 1 | C23: ='Calendrier BG'!N33 -> LR | D23: 4 | E23: 16 | F23: LR | G23: MASS 1
A24: 21 | B24: ='Calendrier BG'!M34 -> SJFF 1 | C24: ='Calendrier BG'!N34 -> LBSI
A25: 22 | B25: ='Calendrier BG'!M35 -> LBSI | C25: ='Calendrier BG'!N35 -> LR
A26: 23 | B26: ='Calendrier BG'!M36 -> SMP 1 | C26: ='Calendrier BG'!N36 -> SJFF 1
A27: 24 | B27: ='Calendrier BG'!M37 -> FEN 1 | C27: ='Calendrier BG'!N37 -> MASS 1
A28: 25 | B28: ='Calendrier BG'!M38 -> LR | C28: ='Calendrier BG'!N38 -> SJFF 1
A29: 26 | B29: ='Calendrier BG'!M39 -> FEN 1 | C29: ='Calendrier BG'!N39 -> LBSI
A30: 27 | B30: ='Calendrier BG'!M40 -> SMSM | C30: ='Calendrier BG'!N40 -> SMP 1
A31: 28 | B31: ='Calendrier BG'!M41 -> SJFF 1 | C31: ='Calendrier BG'!N41 -> FEN 1
A32: 29 | B32: ='Calendrier BG'!M42 -> LR | C32: ='Calendrier BG'!N42 -> SMP 1
A33: 30 | B33: ='Calendrier BG'!M43 -> MASS 1 | C33: ='Calendrier BG'!N43 -> SMSM
A34: 31 | B34: ='Calendrier BG'!M44 -> LR | C34: ='Calendrier BG'!N44 -> FEN 1
A35: 32 | B35: ='Calendrier BG'!M45 -> SMP 1 | C35: ='Calendrier BG'!N45 -> MASS 1
A36: 33 | B36: ='Calendrier BG'!M46 -> SMSM | C36: ='Calendrier BG'!N46 -> LBSI
A37: 34 | B37: ='Calendrier BG'!M47 -> FEN 1 | C37: ='Calendrier BG'!N47 -> SMP 1
A38: 35 | B38: ='Calendrier BG'!M48 -> SJFF 1 | C38: ='Calendrier BG'!N48 -> SMSM
A39: 36 | B39: ='Calendrier BG'!M49 -> MASS 1 | C39: ='Calendrier BG'!N49 -> LBSI
A40: 37 | B40: ='Calendrier BG'!M50 -> SMSM | C40: ='Calendrier BG'!N50 -> LR
A41: 38 | B41: ='Calendrier BG'!M51 -> SMP 1 | C41: ='Calendrier BG'!N51 -> LBSI
A42: 39 | B42: ='Calendrier BG'!M52 -> MASS 1 | C42: ='Calendrier BG'!N52 -> SJFF 1
A43: 40 | B43: ='Calendrier BG'!M53 -> SMSM | C43: ='Calendrier BG'!N53 -> FEN 1
A44: 41 | B44: ='Calendrier BG'!M54 -> LR | C44: ='Calendrier BG'!N54 -> MASS 1
A45: 42 | B45: ='Calendrier BG'!M55 -> LBSI | C45: ='Calendrier BG'!N55 -> SJFF 1

Sheet Cls B2
A1: BENJAMINS DIVISION 2 POULE A
A3: N° Match | B3: Match | D3: Scores | F3: Vainqueur | G3: Perdant | J3: SIGLE | K3: Etablissement | L3: Matchs joués | M3: Victoires | N3: Nuls | O3: Défaites | P3: Points Pour | Q3: Points Contre | R3: Différence | S3: Points
A4: 43 | B4: ='Calendrier BG'!S14 -> SJFF 2 | C4: ='Calendrier BG'!T14 -> FEN 2 | D4: 4 | E4: 6 | F4: =IF(D4<>"",IF(D4>E4,B4,IF(D4<E4,C4,"nul")),"") -> FEN 2 | G4: =IF(E4<>"",IF(E4<D4,C4,IF(E4>D4,B4,"nul")),"") -> SJFF 2 | I4: =RANK(T4,$T$4:$T$8) -> 5 | J4: SJFF 2 | K4: Saint Joseph 2 | L4: =COUNT(D4,D10,D11,D15,D19,D25,D26,D30) -> 3 | M4: =COUNTIF($F$3:$F$33,J4) -> 0 | N4: =L4-M4-O4 -> 0 | O4: =COUNTIF($G$3:$G$33,J4) -> 3 | P4: =SUM(D4,E10,E11,D15,E19,D25,D26,E30) -> 4 | Q4: =SUM(E4,D10,D11,E15,D19,E25,E26,D30) -> 28 | R4: =P4-Q4 -> -24 | S4: =M4*3+N4*2+O4*1 -> 3 | T4: =SUM(S4*1000000+R4*10000+P4*100+L4*10) -> 2760430
A5: 44 | B5: ='Calendrier BG'!S15 -> SMP 2 | C5: ='Calendrier BG'!T15 -> SJG | F5: =IF(D5<>"",IF(D5>E5,B5,IF(D5<E5,C5,"nul")),"") ->  | G5: =IF(E5<>"",IF(E5<D5,C5,IF(E5>D5,B5,"nul")),"") ->  | I5: =RANK(T5,$T$4:$T$8) -> 4 | J5: FEN 2 | K5: Fénelon 2 | L5: =COUNT(D4,D7,D12,D16,D19,D22,D27,D31) -> 4 | M5: =COUNTIF($F$3:$F$33,J5) -> 1 | N5: =L5-M5-O5 -> 0 | O5: =COUNTIF($G$3:$G$33,J5) -> 3 | P5: =SUM(E4,D7,D12,D16,D19,E22,E27,E31) -> 6 | Q5: =SUM(D4,E7,E12,E16,E19,D22,D27,D31) -> 115 | R5: =P5-Q5 -> -109 | S5: =M5*3+N5*2+O5*1 -> 6 | T5: 4910640
A6: 45 | B6: ='Calendrier BG'!S16 -> SMP 2 | C6: ='Calendrier BG'!T16 -> SJFF 2 | I6: =RANK(T6,$T$4:$T$8) -> 1 | J6: NDF | K6: Notre Dame de France | L6: =COUNT(D7,D11,D13,D17,D22,D26,D28,D32) -> 4 | M6: =COUNTIF($F$3:$F$33,J6) -> 3 | N6: 0 | O6: =COUNTIF($G$3:$G$33,J6) -> 1 | P6: =SUM(E7,D11,E13,D17,D22,E26,D28,E32) -> 80 | Q6: =SUM(D7,E11,D13,E17,E22,D26,E28,D32) -> 31 | R6: 49 | S6: 10 | T6: 10498040
A7: 46 | B7: ='Calendrier BG'!S17 -> FEN 2 | C7: ='Calendrier BG'!T17 -> NDF | D7: 0 | E7: 30 | F7: NDF | G7: FEN 2 | I7: =RANK(T7,$T$4:$T$8) -> 2 | J7: SJG | K7: Saint Jean Gabriel | L7: =COUNT(D10,D8,D13,D16,D23,D25,D28,D31) -> 3 | M7: =COUNTIF($F$3:$F$33,J7) -> 3 | N7: 0 | O7: =COUNTIF($G$3:$G$33,J7) -> 0 | P7: =SUM(D10,D8,D13,E16,E23,E25,E28,D31) -> 143 | Q7: =SUM(E10,E8,E13,D16,D23,D25,D28,E31) -> 15 | R7: 128 | S7: 9 | T7: =SUM(S7*1000000+R7*10000+P7*100+L7*10) -> 10294330
A8: 47 | B8: ='Calendrier BG'!S18 -> SJG | C8: ='Calendrier BG'!T18 -> MASS 2 | D8: 42 | E8: 2 | F8: SJG | G8: MASS 2 | I8: =RANK(T8,$T$4:$T$8) -> 3 | J8: MASS 2 | K8: Massillon 2 | L8: =COUNT(D8,D15,D32,D23,D30,D12,D17,D27) -> 4 | M8: 2 | N8: 0 | O8: 2 | P8: =SUM(E8,E15,D32,D23,D30,E12,E17,D27) -> 19 | Q8: =SUM(D8,D15,E32,E23,E30,D12,D17,E27) -> 63 | R8: -44 | S8: 8 | T8: 7561940
A9: 48 | B9: ='Calendrier BG'!S19 -> NDF | C9: ='Calendrier BG'!T19 -> SMP 2
A10: 49 | B10: ='Calendrier BG'!S20 -> SJG | C10: ='Calendrier BG'!T20 -> SJFF 2
A11: 50 | B11: ='Calendrier BG'!S21 -> NDF | C11: ='Calendrier BG'!T21 -> SJFF 2 | D11: 16 | E11: 0 | F11: NDF | G11: SJFF 2
A12: 51 | B12: ='Calendrier BG'!S22 -> FEN 2 | C12: ='Calendrier BG'!T22 -> MASS 2 | D12: 0 | E12: 7 | F12: MASS 2 | G12: FEN 2
A13: 52 | B13: ='Calendrier BG'!S23 -> SJG | C13: ='Calendrier BG'!T23 -> NDF | D13: 27 | E13: 13 | F13: SJG | G13: NDF
A14: 53 | B14: ='Calendrier BG'!S24 -> MASS 2 | C14: ='Calendrier BG'!T24 -> SMP 2 | F14: =IF(D14<>"",IF(D14>E14,B14,IF(D14<E14,C14,"nul")),"") ->  | G14: =IF(E14<>"",IF(E14<D14,C14,IF(E14>D14,B14,"nul")),"") ->  | I14: Classement | J14: SIGLE | K14: Etablissement | L14: =L3 -> Matchs joués | M14: =M3 -> Victoires | N14: Nuls | O14: Défaites | P14: Points Pour | Q14: Points Contre | R14: Différence | S14: Points
A15: 54 | B15: ='Calendrier BG'!S25 -> SJFF 2 | C15: ='Calendrier BG'!T25 -> MASS 2 | D15: 0 | E15: 6 | F15: MASS 2 | G15: SJFF 2 | I15: 1 | J15: =VLOOKUP($I15,$I$3:$S$8,COLUMNS($J14:J14)+1,FALSE) -> NDF | K15: =VLOOKUP($I15,$I$3:$S$8,COLUMNS($J14:K14)+1,FALSE) -> Notre Dame de France | L15: =VLOOKUP($I15,$I$3:$S$8,COLUMNS($J14:L14)+1,FALSE) -> 4 | M15: =VLOOKUP($I15,$I$3:$S$8,COLUMNS($J14:M14)+1,FALSE) -> 3 | N15: =VLOOKUP($I15,$I$3:$S$8,COLUMNS($J14:N14)+1,FALSE) -> 0 | O15: =VLOOKUP($I15,$I$3:$S$8,COLUMNS($J14:O14)+1,FALSE) -> 1 | P15: =VLOOKUP($I15,$I$3:$S$8,COLUMNS($J14:P14)+1,FALSE) -> 80 | Q15: =VLOOKUP($I15,$I$3:$S$8,COLUMNS($J14:Q14)+1,FALSE) -> 31 | R15: =VLOOKUP($I15,$I$3:$S$8,COLUMNS($J14:R14)+1,FALSE) -> 49 | S15: =VLOOKUP($I15,$I$3:$S$8,COLUMNS($J14:S14)+1,FALSE) -> 10
A16: 55 | B16: ='Calendrier BG'!S26 -> FEN 2 | C16: ='Calendrier BG'!T26 -> SJG | D16: 0 | E16: 74 | F16: =IF(D16<>"",IF(D16>E16,B16,IF(D16<E16,C16,"nul")),"") -> SJG | G16: =IF(E16<>"",IF(E16<D16,C16,IF(E16>D16,B16,"nul")),"") -> FEN 2 | I16: 2 | J16: =VLOOKUP($I16,$I$3:$S$8,COLUMNS($J15:J15)+1,FALSE) -> SJG | K16: =VLOOKUP($I16,$I$3:$S$8,COLUMNS($J15:K15)+1,FALSE) -> Saint Jean Gabriel | L16: =VLOOKUP($I16,$I$3:$S$8,COLUMNS($J15:L15)+1,FALSE) -> 3 | M16: =VLOOKUP($I16,$I$3:$S$8,COLUMNS($J15:M15)+1,FALSE) -> 3 | N16: =VLOOKUP($I16,$I$3:$S$8,COLUMNS($J15:N15)+1,FALSE) -> 0 | O16: =VLOOKUP($I16,$I$3:$S$8,COLUMNS($J15:O15)+1,FALSE) -> 0 | P16: =VLOOKUP($I16,$I$3:$S$8,COLUMNS($J15:P15)+1,FALSE) -> 143 | Q16: =VLOOKUP($I16,$I$3:$S$8,COLUMNS($J15:Q15)+1,FALSE) -> 15 | R16: =VLOOKUP($I16,$I$3:$S$8,COLUMNS($J15:R15)+1,FALSE) -> 128 | S16: =VLOOKUP($I16,$I$3:$S$8,COLUMNS($J15:S15)+1,FALSE) -> 9
A17: 56 | B17: ='Calendrier BG'!S27 -> NDF | C17: ='Calendrier BG'!T27 -> MASS 2 | D17: 21 | E17: 4 | F17: NDF | G17: MASS 2 | I17: 3 | J17: =VLOOKUP($I17,$I$3:$S$8,COLUMNS($J16:J16)+1,FALSE) -> MASS 2 | K17: =VLOOKUP($I17,$I$3:$S$8,COLUMNS($J16:K16)+1,FALSE) -> Massillon 2 | L17: =VLOOKUP($I17,$I$3:$S$8,COLUMNS($J16:L16)+1,FALSE) -> 4 | M17: =VLOOKUP($I17,$I$3:$S$8,COLUMNS($J16:M16)+1,FALSE) -> 2 | N17: =VLOOKUP($I17,$I$3:$S$8,COLUMNS($J16:N16)+1,FALSE) -> 0 | O17: =VLOOKUP($I17,$I$3:$S$8,COLUMNS($J16:O16)+1,FALSE) -> 2 | P17: =VLOOKUP($I17,$I$3:$S$8,COLUMNS($J16:P16)+1,FALSE) -> 19 | Q17: =VLOOKUP($I17,$I$3:$S$8,COLUMNS($J16:Q16)+1,FALSE) -> 63 | R17: =VLOOKUP($I17,$I$3:$S$8,COLUMNS($J16:R16)+1,FALSE) -> -44 | S17: =VLOOKUP($I17,$I$3:$S$8,COLUMNS($J16:S16)+1,FALSE) -> 8
A18: 57 | B18: ='Calendrier BG'!S28 -> SMP 2 | C18: ='Calendrier BG'!T28 -> FEN 2 | I18: 4 | J18: =VLOOKUP($I18,$I$3:$S$8,COLUMNS($J17:J17)+1,FALSE) -> FEN 2 | K18: =VLOOKUP($I18,$I$3:$S$8,COLUMNS($J17:K17)+1,FALSE) -> Fénelon 2 | L18: =VLOOKUP($I18,$I$3:$S$8,COLUMNS($J17:L17)+1,FALSE) -> 4 | M18: =VLOOKUP($I18,$I$3:$S$8,COLUMNS($J17:M17)+1,FALSE) -> 1 | N18: =VLOOKUP($I18,$I$3:$S$8,COLUMNS($J17:N17)+1,FALSE) -> 0 | O18: =VLOOKUP($I18,$I$3:$S$8,COLUMNS($J17:O17)+1,FALSE) -> 3 | P18: =VLOOKUP($I18,$I$3:$S$8,COLUMNS($J17:P17)+1,FALSE) -> 6 | Q18: =VLOOKUP($I18,$I$3:$S$8,COLUMNS($J17:Q17)+1,FALSE) -> 115 | R18: =VLOOKUP($I18,$I$3:$S$8,COLUMNS($J17:R17)+1,FALSE) -> -109 | S18: =VLOOKUP($I18,$I$3:$S$8,COLUMNS($J17:S17)+1,FALSE) -> 6
A19: 58 | B19: ='Calendrier BG'!S29 -> FEN 2 | C19: ='Calendrier BG'!T29 -> SJFF 2 | I19: 5 | J19: =VLOOKUP($I19,$I$3:$S$8,COLUMNS($J18:J18)+1,FALSE) -> SJFF 2 | K19: =VLOOKUP($I19,$I$3:$S$8,COLUMNS($J18:K18)+1,FALSE) -> Saint Joseph 2 | L19: =VLOOKUP($I19,$I$3:$S$8,COLUMNS($J18:L18)+1,FALSE) -> 3 | M19: =VLOOKUP($I19,$I$3:$S$8,COLUMNS($J18:M18)+1,FALSE) -> 0 | N19: =VLOOKUP($I19,$I$3:$S$8,COLUMNS($J18:N18)+1,FALSE) -> 0 | O19: =VLOOKUP($I19,$I$3:$S$8,COLUMNS($J18:O18)+1,FALSE) -> 3 | P19: =VLOOKUP($I19,$I$3:$S$8,COLUMNS($J18:P18)+1,FALSE) -> 4 | Q19: =VLOOKUP($I19,$I$3:$S$8,COLUMNS($J18:Q18)+1,FALSE) -> 28 | R19: =VLOOKUP($I19,$I$3:$S$8,COLUMNS($J18:R18)+1,FALSE) -> -24 | S19: =VLOOKUP($I19,$I$3:$S$8,COLUMNS($J18:S18)+1,FALSE) -> 3
A20: 59 | B20: ='Calendrier BG'!S30 -> SJG | C20: ='Calendrier BG'!T30 -> SMP 2
A21: 60 | B21: ='Calendrier BG'!S31 -> SJFF 2 | C21: ='Calendrier BG'!T31 -> SMP 2
A22: 61 | B22: ='Calendrier BG'!S32 -> NDF | C22: ='Calendrier BG'!T32 -> FEN 2
A23: 62 | B23: ='Calendrier BG'!S33 -> MASS 2 | C23: ='Calendrier BG'!T33 -> SJG
A24: 63 | B24: ='Calendrier BG'!S34 -> SMP 2 | C24: ='Calendrier BG'!T34 -> NDF
A25: 64 | B25: ='Calendrier BG'!S35 -> SJFF 2 | C25: ='Calendrier BG'!T35 -> SJG
A26: 65 | B26: ='Calendrier BG'!S36 -> SJFF 2 | C26: ='Calendrier BG'!T36 -> NDF
A27: 66 | B27: ='Calendrier BG'!S37 -> MASS 2 | C27: ='Calendrier BG'!T37 -> FEN 2
A28: 67 | B28: ='Calendrier BG'!S38 -> NDF | C28: ='Calendrier BG'!T38 -> SJG
A29: 68 | B29: ='Calendrier BG'!S39 -> SMP 2 | C29: ='Calendrier BG'!T39 -> MASS 2
A30: 69 | B30: ='Calendrier BG'!S40 -> MASS 2 | C30: ='Calendrier BG'!T40 -> SJFF 2
A31: 70 | B31: ='Calendrier BG'!S41 -> SJG | C31: ='Calendrier BG'!T41 -> FEN 2
A32: 71 | B32: ='Calendrier BG'!S42 -> MASS 2 | C32: ='Calendrier BG'!T42 -> NDF
A33: 72 | B33: ='Calendrier BG'!S43 -> FEN 2 | C33: ='Calendrier BG'!T43 -> SMP 2

Sheet Cls BMixte
A1: BENJAMINS DIVISION MIXTE
A3: N° Match | B3: Match | D3: Scores | F3: Vainqueur | G3: Perdant | J3: SIGLE | K3: Etablissement | L3: Matchs joués | M3: Victoires | N3: Nuls | O3: Défaites | P3: Points Pour | Q3: Points Contre | R3: Différence | S3: Points
A4: ='Calendrier BG'!V14 -> 72 | B4: ='Calendrier BG'!Y14 -> SMP 3 (F) | C4: ='Calendrier BG'!Z14 -> SJFF 3 (F) | F4: =IF(D4<>"",IF(D4>E4,B4,IF(D4<E4,C4,"nul")),"") ->  | G4: =IF(E4<>"",IF(E4<D4,C4,IF(E4>D4,B4,"nul")),"") ->  | I4: =RANK(T4,$T$4:$T$6) -> 2 | J4: SJFF 3 (F) | K4: Saint Joseph 3 | L4: =COUNT(D7,D9,D13,D15) -> 1 | M4: =COUNTIF($F$3:$F$15,J4) -> 1 | N4: =L4-M4-O4 -> 0 | O4: =COUNTIF(G1:G15,J4) -> 0 | P4: =SUM(D7,D9,E13,E15) -> 14 | Q4: =SUM(E7,E9,D13,D15) -> 4 | R4: =P4-Q4 -> 10 | S4: =M4*3+N4*2+O4*1 -> 3 | T4: =SUM(S4*1000000+R4*10000+P4*100+L4*10) -> 3101410
A5: ='Calendrier BG'!V15 -> 73 | B5: ='Calendrier BG'!Y15 -> LR 2 (F) | C5: ='Calendrier BG'!Z15 -> MASS 3 | D5: 16 | E5: 4 | F5: =IF(D5<>"",IF(D5>E5,B5,IF(D5<E5,C5,"nul")),"") -> LR 2 (F) | G5: =IF(E5<>"",IF(E5<D5,C5,IF(E5>D5,B5,"nul")),"") -> MASS 3 | I5: =RANK(T5,$T$4:$T$6) -> 1 | J5: LR 2 (F) | K5: La Rochefoucauld 2 | L5: =COUNT(D5,D9,D11,D15) -> 1 | M5: =COUNTIF($F$3:$F$15,J5) -> 1 | N5: =L5-M5-O5 -> 0 | O5: =COUNTIF(G2:G15,J5) -> 0 | P5: =SUM(D5,E9,E11,D15) -> 16 | Q5: =SUM(E5,D9,D11,E15) -> 4 | R5: =P5-Q5 -> 12 | S5: =M5*3+N5*2+O5*1 -> 3 | T5: 3121610
A6: ='Calendrier BG'!V16 -> 74 | B6: ='Calendrier BG'!Y16 -> SMP 3 (F) | C6: ='Calendrier BG'!Z16 -> LR 2 (F) | I6: =RANK(T6,$T$4:$T$6) -> 3 | J6: MASS 3 | K6: Massillon 3 | L6: =COUNT(D5,D7,D11,D13) -> 2 | M6: =COUNTIF($F$3:$F$15,J6) -> 0 | N6: 0 | O6: =COUNTIF(G3:G15,J6) -> 2 | P6: =SUM(E5,E7,D11,D13) -> 8 | Q6: =SUM(D5,D7,E11,E13) -> 30 | R6: -22 | S6: 2 | T6: 1780820
A7: ='Calendrier BG'!V17 -> 75 | B7: ='Calendrier BG'!Y17 -> SJFF 3 (F) | C7: ='Calendrier BG'!Z17 -> MASS 3 | D7: 14 | E7: 4 | F7: SJFF 3 (F) | G7: MASS 3
A8: ='Calendrier BG'!V18 -> 76 | B8: ='Calendrier BG'!Y18 -> SMP 3 (F) | C8: ='Calendrier BG'!Z18 -> MASS 3 | I8: Classement | J8: SIGLE | K8: =K3 -> Etablissement | L8: =L3 -> Matchs joués | M8: Victoires | N8: Nuls | O8: Défaites | P8: Points Pour | Q8: Points Contre | R8: Différence | S8: Points
A9: ='Calendrier BG'!V19 -> 77 | B9: ='Calendrier BG'!Y19 -> SJFF 3 (F) | C9: ='Calendrier BG'!Z19 -> LR 2 (F) | I9: 1 | J9: =VLOOKUP($I9,$I$3:$S$6,COLUMNS($J8:J8)+1,FALSE) -> LR 2 (F) | K9: =VLOOKUP($I9,$I$3:$S$6,COLUMNS($J8:K8)+1,FALSE) -> La Rochefoucauld 2 | L9: =VLOOKUP($I9,$I$3:$S$6,COLUMNS($J8:L8)+1,FALSE) -> 1 | M9: =VLOOKUP($I9,$I$3:$S$6,COLUMNS($J8:M8)+1,FALSE) -> 1 | N9: =VLOOKUP($I9,$I$3:$S$6,COLUMNS($J8:N8)+1,FALSE) -> 0 | O9: =VLOOKUP($I9,$I$3:$S$6,COLUMNS($J8:O8)+1,FALSE) -> 0 | P9: =VLOOKUP($I9,$I$3:$S$6,COLUMNS($J8:P8)+1,FALSE) -> 16 | Q9: =VLOOKUP($I9,$I$3:$S$6,COLUMNS($J8:Q8)+1,FALSE) -> 4 | R9: =VLOOKUP($I9,$I$3:$S$6,COLUMNS($J8:R8)+1,FALSE) -> 12 | S9: =VLOOKUP($I9,$I$3:$S$6,COLUMNS($J8:S8)+1,FALSE) -> 3
A10: ='Calendrier BG'!V20 -> 78 | B10: ='Calendrier BG'!Y20 -> SJFF 3 (F) | C10: ='Calendrier BG'!Z20 -> SMP 3 (F) | I10: 2 | J10: =VLOOKUP($I10,$I$3:$S$6,COLUMNS($J9:J9)+1,FALSE) -> SJFF 3 (F) | K10: =VLOOKUP($I10,$I$3:$S$6,COLUMNS($J9:K9)+1,FALSE) -> Saint Joseph 3 | L10: =VLOOKUP($I10,$I$3:$S$6,COLUMNS($J9:L9)+1,FALSE) -> 1 | M10: =VLOOKUP($I10,$I$3:$S$6,COLUMNS($J9:M9)+1,FALSE) -> 1 | N10: =VLOOKUP($I10,$I$3:$S$6,COLUMNS($J9:N9)+1,FALSE) -> 0 | O10: =VLOOKUP($I10,$I$3:$S$6,COLUMNS($J9:O9)+1,FALSE) -> 0 | P10: =VLOOKUP($I10,$I$3:$S$6,COLUMNS($J9:P9)+1,FALSE) -> 14 | Q10: =VLOOKUP($I10,$I$3:$S$6,COLUMNS($J9:Q9)+1,FALSE) -> 4 | R10: =VLOOKUP($I10,$I$3:$S$6,COLUMNS($J9:R9)+1,FALSE) -> 10 | S10: =VLOOKUP($I10,$I$3:$S$6,COLUMNS($J9:S9)+1,FALSE) -> 3
A11: ='Calendrier BG'!V21 -> 79 | B11: ='Calendrier BG'!Y21 -> MASS 3 | C11: ='Calendrier BG'!Z21 -> LR 2 (F) | I11: 3 | J11: =VLOOKUP($I11,$I$3:$S$6,COLUMNS($J10:J10)+1,FALSE) -> MASS 3 | K11: =VLOOKUP($I11,$I$3:$S$6,COLUMNS($J10:K10)+1,FALSE) -> Massillon 3 | L11: =VLOOKUP($I11,$I$3:$S$6,COLUMNS($J10:L10)+1,FALSE) -> 2 | M11: =VLOOKUP($I11,$I$3:$S$6,COLUMNS($J10:M10)+1,FALSE) -> 0 | N11: =VLOOKUP($I11,$I$3:$S$6,COLUMNS($J10:N10)+1,FALSE) -> 0 | O11: =VLOOKUP($I11,$I$3:$S$6,COLUMNS($J10:O10)+1,FALSE) -> 2 | P11: =VLOOKUP($I11,$I$3:$S$6,COLUMNS($J10:P10)+1,FALSE) -> 8 | Q11: =VLOOKUP($I11,$I$3:$S$6,COLUMNS($J10:Q10)+1,FALSE) -> 30 | R11: =VLOOKUP($I11,$I$3:$S$6,COLUMNS($J10:R10)+1,FALSE) -> -22 | S11: =VLOOKUP($I11,$I$3:$S$6,COLUMNS($J10:S10)+1,FALSE) -> 2
A12: ='Calendrier BG'!V22 -> 80 | B12: ='Calendrier BG'!Y22 -> LR 2 (F) | C12: ='Calendrier BG'!Z22 -> SMP 3 (F)
A13: ='Calendrier BG'!V23 -> 81 | B13: ='Calendrier BG'!Y23 -> MASS 3 | C13: ='Calendrier BG'!Z23 -> SJFF 3 (F)
A14: ='Calendrier BG'!V24 -> 82 | B14: ='Calendrier BG'!Y24 -> MASS 3 | C14: ='Calendrier BG'!Z24 -> SMP 3 (F)
A15: ='Calendrier BG'!V25 -> 83 | B15: ='Calendrier BG'!Y25 -> LR 2 (F) | C15: ='Calendrier BG'!Z25 -> SJFF 3 (F)

Sheet Calendrier MG
B1: CALENDRIER MINIMES | J1: POULES ET MATCHS MINIMES
A2: Date | B2: Match | C2: Equipe A | D2: Equipe B | E2: Lieux | F2: Résultats | H2: Indisponibilités | J2: DIVISION 1 | P2: DIVISION 2 | V2: MINIMES FILLES
A3: 2021-11-17 | B3: DIVISION 1 | J3: Etablissements | P3: Etablissements | V3: Etablissements
J4: 1 | K4: FEN 1 | P4: 1 | Q4: SMSM | V4: 1 | W4: SBE
J5: 2 | K5: SBE 1 | P5: 2 | Q5: LR | V5: 2 | W5: SJFF
B6: DIVISION 2 | J6: 3 | K6: SBE 2 | P6: 3 | Q6: FEN 2 | V6: 3 | W6: SMP
B7: 51 | C7: =VLOOKUP($B7,$P$14:$T$63,4) -> LBSI | D7: =VLOOKUP($B7,$P$14:$T$63,5) -> MASS 2 | E7: LBSI à 14h | F7: =IFERROR(VLOOKUP($B7,'Cls M2'!$A$1:$G$54,4,FALSE),"") -> 18 | G7: =IFERROR(VLOOKUP($B7,'Cls M2'!$A$1:$G$54,5,FALSE),"") -> 4 | J7: 4 | K7: SJFF 1 | P7: 4 | Q7: SJFF 2 | V7: 4 | W7: SJG
B8: 54 | C8: FEN 2 | D8: LBSI | F8: =IFERROR(VLOOKUP($B8,'Cls M2'!$A$1:$G$54,4,FALSE),"") -> 2 | G8: =IFERROR(VLOOKUP($B8,'Cls M2'!$A$1:$G$54,5,FALSE),"") -> 18 | J8: 5 | K8: SMP | P8: 5 | Q8: SJG | V8: 5
B9: 57 | C9: FEN 2 | D9: MASS 2 | F9: =IFERROR(VLOOKUP($B9,'Cls M2'!$A$1:$G$54,4,FALSE),"") -> 4 | G9: =IFERROR(VLOOKUP($B9,'Cls M2'!$A$1:$G$54,5,FALSE),"") -> 20 | J9: 6 | K9: MASS 1 | P9: 6 | Q9: LBSI
B10: DIVISION FILLE | P10: 7 | Q10: MASS 2
P11: 8 | Q11: MASS 3
J12: N° Match | K12: Equipe A | L12: Equipe B | M12: Match
A13: 2021-11-24 | B13: DIVISION 1 | J13: 1 | K13: 2 | L13: 3 | M13: =VLOOKUP(K13,$J$2:$K$9,2) -> SBE 1 | N13: =VLOOKUP(L13,$J$2:$K$9,2) -> SBE 2
B14: 1 | C14: =VLOOKUP($B14,$J$12:$N$42,4) -> SBE 1 | D14: =VLOOKUP($B14,$J$12:$N$42,5) -> SBE 2 | E14: SMP à 14h | F14: =IFERROR(VLOOKUP($B14,'Cls M1'!$A$1:$G$33,4,FALSE),"") -> 0 | G14: =IFERROR(VLOOKUP($B14,'Cls M1'!$A$1:$G$33,5,FALSE),"") -> 0 | J14: 2 | K14: 1 | L14: 5 | M14: FEN 1 | N14: SMP | P14: N° Match | Q14: Equipe A | R14: Equipe B | S14: Match | V14: N° Match | W14: Equipe A | X14: Equipe B | Y14: Match
F15: =IFERROR(VLOOKUP($B15,'Cls M1'!$A$1:$G$33,4,FALSE),"") ->  | G15: =IFERROR(VLOOKUP($B15,'Cls M1'!$A$1:$G$33,5,FALSE),"") ->  | J15: 3 | K15: 1 | L15: 2 | M15: FEN 1 | N15: SBE 1 | P15: 43 | Q15: 2 | R15: 3 | S15: =VLOOKUP(Q15,$P$2:$Q$11,2) -> LR | T15: =VLOOKUP(R15,$P$2:$Q$11,2) -> FEN 2 | V15: 99 | W15: 1 | X15: 2 | Y15: =VLOOKUP(W15,$V$2:$W$11,2) -> SBE | Z15: =VLOOKUP(X15,$V$2:$W$11,2) -> SJFF
J16: 4 | K16: 3 | L16: 4 | M16: SBE 2 | N16: SJFF 1 | P16: 44 | Q16: 1 | R16: 5 | S16: =VLOOKUP(Q16,$P$2:$Q$11,2) -> SMSM | T16: =VLOOKUP(R16,$P$2:$Q$11,2) -> SJG | V16: 100 | W16: 3 | X16: 4 | Y16: =VLOOKUP(W16,$V$2:$W$11,2) -> SMP | Z16: SJG
B17: DIVISION 2 | J17: 5 | K17: 5 | L17: 6 | M17: SMP | N17: MASS 1 | P17: 45 | Q17: 7 | R17: 4 | S17: MASS 2 | T17: SJFF 2 | V17: 101 | W17: 1 | X17: 3 | Y17: SBE | Z17: SMP
B18: 55 | C18: =VLOOKUP($B18,$P$14:$T$63,4) -> SJG | D18: =VLOOKUP($B18,$P$14:$T$63,5) -> SJFF 2 | E18: SJFF à 14h | F18: =IFERROR(VLOOKUP($B18,'Cls M2'!$A$1:$G$54,4,FALSE),"") -> 30 | G18: =IFERROR(VLOOKUP($B18,'Cls M2'!$A$1:$G$54,5,FALSE),"") -> 4 | J18: 6 | K18: 4 | L18: 1 | M18: SJFF 1 | N18: FEN 1 | P18: 46 | Q18: 1 | R18: 2 | S18: SMSM | T18: LR | V18: 102 | W18: 2 | X18: 4 | Y18: SJFF | Z18: SJG
F19: =IFERROR(VLOOKUP($B19,'Cls B2'!$A$1:$G$15,4,FALSE),"") ->  | G19: =IFERROR(VLOOKUP($B19,'Cls B2'!$A$1:$G$15,5,FALSE),"") ->  | J19: 7 | K19: 5 | L19: 2 | M19: SMP | N19: SBE 1 | P19: 47 | Q19: 3 | R19: 4 | S19: FEN 2 | T19: SJFF 2 | V19: 103 | W19: 1 | X19: 4 | Y19: SBE | Z19: SJG
B20: DIVISION FILLE | J20: 8 | K20: 4 | L20: 2 | M20: SJFF 1 | N20: SBE 1 | P20: 48 | Q20: 5 | R20: 6 | S20: SJG | T20: LBSI | V20: 104 | W20: 2 | X20: 3 | Y20: SJFF | Z20: SMP
F21: =IFERROR(VLOOKUP($B21,'Cls Mixte'!$A$1:$G$15,4,FALSE),"") ->  | G21: =IFERROR(VLOOKUP($B21,'Cls Mixte'!$A$1:$G$15,5,FALSE),"") ->  | J21: 9 | K21: 3 | L21: 6 | M21: SBE 2 | N21: MASS 1 | P21: 49 | Q21: 4 | R21: 1 | S21: SJFF 2 | T21: SMSM | V21: 105 | W21: 2 | X21: 1 | Y21: SJFF | Z21: SBE
B22: 102 | C22: =VLOOKUP($B22,$V$14:$Z$26,4) -> SJFF | D22: =VLOOKUP($B22,$V$14:$Z$26,5) -> SJG | E22: SJFF à 14h | F22: =IFERROR(VLOOKUP($B22,'Cls Mixte'!$A$1:$G$15,4,FALSE),"") -> 12 | G22: =IFERROR(VLOOKUP($B22,'Cls Mixte'!$A$1:$G$15,5,FALSE),"") -> 4 | J22: 10 | K22: 5 | L22: 4 | M22: SMP | N22: SJFF 1 | P22: 50 | Q22: 5 | R22: 2 | S22: SJG | T22: LR | V22: 106 | W22: 4 | X22: 3 | Y22: SJG | Z22: SMP
A23: 2021-12-01 | B23: DIVISION 1 | J23: 11 | K23: 6 | L23: 1 | M23: MASS 1 | N23: FEN 1 | P23: 51 | Q23: 6 | R23: 7 | S23: LBSI | T23: MASS 2 | V23: 107 | W23: 3 | X23: 1 | Y23: SMP | Z23: SBE
B24: 11 | C24: =VLOOKUP($B24,$J$12:$N$42,4) -> MASS 1 | D24: =VLOOKUP($B24,$J$12:$N$42,5) -> FEN 1 | E24: Japy à 14h | F24: =IFERROR(VLOOKUP($B24,'Cls M1'!$A$1:$G$33,4,FALSE),"") -> 21 | G24: =IFERROR(VLOOKUP($B24,'Cls M1'!$A$1:$G$33,5,FALSE),"") -> 7 | J24: 12 | K24: 2 | L24: 6 | M24: SBE 1 | N24: MASS 1 | P24: 52 | Q24: 4 | R24: 2 | S24: SJFF 2 | T24: LR | V24: 108 | W24: 4 | X24: 2 | Y24: SJG | Z24: SJFF
J25: 13 | K25: 3 | L25: 5 | M25: SBE 2 | N25: SMP | P25: 53 | Q25: 7 | R25: 5 | S25: MASS 2 | T25: SJG | V25: 109 | W25: 4 | X25: 1 | Y25: SJG | Z25: SBE
B26: DIVISION 2 | J26: 14 | K26: 4 | L26: 6 | M26: SJFF 1 | N26: MASS 1 | P26: 54 | Q26: 3 | R26: 6 | S26: FEN 2 | T26: LBSI | V26: 110 | W26: 3 | X26: 2 | Y26: SMP | Z26: SJFF
B27: 48 | C27: =VLOOKUP($B27,$P$14:$T$63,4) -> SJG | D27: =VLOOKUP($B27,$P$14:$T$63,5) -> LBSI | E27: LBSI à 14h | F27: =IFERROR(VLOOKUP($B27,'Cls M2'!$A$1:$G$54,4,FALSE),"") -> 11 | G27: =IFERROR(VLOOKUP($B27,'Cls M2'!$A$1:$G$54,5,FALSE),"") -> 30 | J27: 15 | K27: 1 | L27: 3 | M27: FEN 1 | N27: SBE 2 | P27: 55 | Q27: 5 | R27: 4 | S27: SJG | T27: SJFF 2
B28: 45 | C28: MASS 2 | D28: SJFF 2 | E28: SJFF à 14h | F28: =IFERROR(VLOOKUP($B28,'Cls M2'!$A$1:$G$54,4,FALSE),"") -> 22 | G28: =IFERROR(VLOOKUP($B28,'Cls M2'!$A$1:$G$54,5,FALSE),"") -> 0 | J28: 16 | K28: 3 | L28: 2 | M28: SBE 2 | N28: SBE 1 | P28: 56 | Q28: 6 | R28: 1 | S28: LBSI | T28: SMSM
B29: 67 | C29: SJFF 2 | D29: MASS 3 | F29: =IFERROR(VLOOKUP($B29,'Cls M2'!$A$1:$G$54,4,FALSE),"") -> 4 | G29: =IFERROR(VLOOKUP($B29,'Cls M2'!$A$1:$G$54,5,FALSE),"") -> 6 | J29: 17 | K29: 5 | L29: 1 | M29: SMP | N29: FEN 1 | P29: 57 | Q29: 3 | R29: 7 | S29: FEN 2 | T29: MASS 2
B30: 63 | C30: SMSM | D30: FEN 2 | E30: SMSM à 14h | F30: =IFERROR(VLOOKUP($B30,'Cls M2'!$A$1:$G$54,4,FALSE),"") -> 9 | G30: =IFERROR(VLOOKUP($B30,'Cls M2'!$A$1:$G$54,5,FALSE),"") -> 4 | J30: 18 | K30: 2 | L30: 1 | M30: SBE 1 | N30: FEN 1 | P30: 58 | Q30: 2 | R30: 6 | S30: LR | T30: LBSI
B31: DIVISION FILLE | J31: 19 | K31: 4 | L31: 3 | M31: SJFF 1 | N31: SBE 2 | P31: 59 | Q31: 3 | R31: 5 | S31: FEN 2 | T31: SJG
J32: 20 | K32: 6 | L32: 5 | M32: MASS 1 | N32: SMP | P32: 60 | Q32: 1 | R32: 7 | S32: SMSM | T32: MASS 2
J33: 21 | K33: 1 | L33: 4 | M33: FEN 1 | N33: SJFF 1 | P33: 61 | Q33: 4 | R33: 6 | S33: SJFF 2 | T33: LBSI
A34: 2021-12-08 | B34: DIVISION 1 | J34: 22 | K34: 2 | L34: 5 | M34: SBE 1 | N34: SMP | P34: 62 | Q34: 7 | R34: 2 | S34: MASS 2 | T34: LR
B35: 3 | C35: =VLOOKUP($B35,$J$12:$N$42,4) -> FEN 1 | D35: =VLOOKUP($B35,$J$12:$N$42,5) -> SBE 1 | E35: Fragonard à 14h | F35: =IFERROR(VLOOKUP($B35,'Cls M1'!$A$1:$G$33,4,FALSE),"") -> 14 | G35: =IFERROR(VLOOKUP($B35,'Cls M1'!$A$1:$G$33,5,FALSE),"") -> 9 | J35: 23 | K35: 2 | L35: 4 | M35: SBE 1 | N35: SJFF 1 | P35: 63 | Q35: 1 | R35: 3 | S35: SMSM | T35: FEN 2
B36: 9 | C36: =VLOOKUP($B36,$J$12:$N$42,4) -> SBE 2 | D36: =VLOOKUP($B36,$J$12:$N$42,5) -> MASS 1 | F36: =IFERROR(VLOOKUP($B36,'Cls M1'!$A$1:$G$33,4,FALSE),"") -> 4 | G36: =IFERROR(VLOOKUP($B36,'Cls M1'!$A$1:$G$33,5,FALSE),"") -> 15 | J36: 24 | K36: 6 | L36: 3 | M36: MASS 1 | N36: SBE 2 | P36: 64 | Q36: 1 | R36: 8 | S36: SMSM | T36: MASS 3
B37: 12 | C37: =VLOOKUP($B37,$J$12:$N$42,4) -> SBE 1 | D37: =VLOOKUP($B37,$J$12:$N$42,5) -> MASS 1 | F37: =IFERROR(VLOOKUP($B37,'Cls M1'!$A$1:$G$33,4,FALSE),"") -> 14 | G37: =IFERROR(VLOOKUP($B37,'Cls M1'!$A$1:$G$33,5,FALSE),"") -> 17 | J37: 25 | K37: 4 | L37: 5 | M37: SJFF 1 | N37: SMP | P37: 65 | Q37: 2 | R37: 8 | S37: =VLOOKUP(Q37,$P$2:$Q$11,2) -> LR | T37: =VLOOKUP(R37,$P$2:$Q$11,2) -> MASS 3
B38: 15 | C38: =VLOOKUP($B38,$J$12:$N$42,4) -> FEN 1 | D38: =VLOOKUP($B38,$J$12:$N$42,5) -> SBE 2 | F38: =IFERROR(VLOOKUP($B38,'Cls M1'!$A$1:$G$33,4,FALSE),"") -> 10 | G38: =IFERROR(VLOOKUP($B38,'Cls M1'!$A$1:$G$33,5,FALSE),"") -> 15 | J38: 26 | K38: 1 | L38: 6 | M38: FEN 1 | N38: MASS 1 | P38: 66 | Q38: 3 | R38: 8 | S38: FEN 2 | T38: MASS 3
B39: DIVISION 2 | J39: 27 | K39: 6 | L39: 2 | M39: MASS 1 | N39: SBE 1 | P39: 67 | Q39: 4 | R39: 8 | S39: SJFF 2 | T39: MASS 3
B40: 69 | C40: =VLOOKUP($B40,$P$14:$T$63,4) -> LBSI | D40: =VLOOKUP($B40,$P$14:$T$63,5) -> MASS 3 | E40: LBSI à 14h | F40: =IFERROR(VLOOKUP($B40,'Cls M2'!$A$1:$G$54,4,FALSE),"") -> 41 | G40: =IFERROR(VLOOKUP($B40,'Cls M2'!$A$1:$G$54,5,FALSE),"") -> 8 | J40: 28 | K40: 5 | L40: 3 | M40: SMP | N40: SBE 2 | P40: 68 | Q40: 5 | R40: 8 | S40: SJG | T40: MASS 3
B41: 68 | C41: SJG | D41: MASS 3 | F41: =IFERROR(VLOOKUP($B41,'Cls M2'!$A$1:$G$54,4,FALSE),"") -> 39 | G41: =IFERROR(VLOOKUP($B41,'Cls M2'!$A$1:$G$54,5,FALSE),"") -> 2 | J41: 29 | K41: 6 | L41: 4 | M41: MASS 1 | N41: SJFF 1 | P41: 69 | Q41: 6 | R41: 8 | S41: LBSI | T41: MASS 3
B42: 52 | C42: SJFF 2 | D42: LR | E42: LR à 14h | F42: =IFERROR(VLOOKUP($B42,'Cls M2'!$A$1:$G$54,4,FALSE),"") -> 6 | G42: =IFERROR(VLOOKUP($B42,'Cls M2'!$A$1:$G$54,5,FALSE),"") -> 16 | J42: 30 | K42: 3 | L42: 1 | M42: SBE 2 | N42: FEN 1 | P42: 70 | Q42: 7 | R42: 8 | S42: MASS 2 | T42: MASS 3
B43: 47 | C43: FEN 2 | D43: SJFF 2 | F43: =IFERROR(VLOOKUP($B43,'Cls M2'!$A$1:$G$54,4,FALSE),"") -> 5 | G43: =IFERROR(VLOOKUP($B43,'Cls M2'!$A$1:$G$54,5,FALSE),"") -> 6 | P43: 71 | Q43: 3 | R43: 2 | S43: FEN 2 | T43: LR
B44: 43 | C44: LR | D44: FEN 2 | F44: =IFERROR(VLOOKUP($B44,'Cls M2'!$A$1:$G$54,4,FALSE),"") -> 18 | G44: =IFERROR(VLOOKUP($B44,'Cls M2'!$A$1:$G$54,5,FALSE),"") -> 10 | P44: 72 | Q44: 5 | R44: 1 | S44: SJG | T44: SMSM
B45: DIVISION FILLE | P45: 73 | Q45: 4 | R45: 7 | S45: SJFF 2 | T45: MASS 2
P46: 74 | Q46: 2 | R46: 1 | S46: LR | T46: SMSM
P47: 75 | Q47: 4 | R47: 3 | S47: SJFF 2 | T47: FEN 2
A48: 2021-12-15 | B48: DIVISION 1 | P48: 76 | Q48: 6 | R48: 5 | S48: LBSI | T48: SJG
H49: SBE / Gym LR / SJFF / LBSI | P49: 77 | Q49: 1 | R49: 4 | S49: SMSM | T49: SJFF 2
P50: 78 | Q50: 2 | R50: 5 | S50: LR | T50: SJG
B51: DIVISION 2 | P51: 79 | Q51: 7 | R51: 6 | S51: MASS 2 | T51: LBSI
B52: 46 | C52: =VLOOKUP($B52,$P$14:$T$63,4) -> SMSM | D52: =VLOOKUP($B52,$P$14:$T$63,5) -> LR | E52: SMSM à 14h | F52: =IFERROR(VLOOKUP($B52,'Cls M2'!$A$1:$G$54,4,FALSE),"") -> 0 | G52: =IFERROR(VLOOKUP($B52,'Cls M2'!$A$1:$G$54,5,FALSE),"") -> 8 | P52: 80 | Q52: 2 | R52: 4 | S52: LR | T52: SJFF 2
B53: 59 | C53: FEN 2 | D53: SJG | E53: Japy à 14h | F53: =IFERROR(VLOOKUP($B53,'Cls M2'!$A$1:$G$54,4,FALSE),"") -> 2 | G53: =IFERROR(VLOOKUP($B53,'Cls M2'!$A$1:$G$54,5,FALSE),"") -> 44 | P53: 81 | Q53: 5 | R53: 7 | S53: SJG | T53: MASS 2
B54: DIVISION FILLE | P54: 82 | Q54: 6 | R54: 3 | S54: LBSI | T54: FEN 2
H55: SJFF | P55: 83 | Q55: 4 | R55: 5 | S55: SJFF 2 | T55: SJG
P56: 84 | Q56: 1 | R56: 6 | S56: SMSM | T56: LBSI
A57: 2022-03-09 | B57: ENTRAINEMENT | P57: 85 | Q57: 7 | R57: 3 | S57: MASS 2 | T57: FEN 2
P58: 86 | Q58: 6 | R58: 2 | S58: LBSI | T58: LR
P59: 87 | Q59: 5 | R59: 3 | S59: SJG | T59: FEN 2
P60: 88 | Q60: 7 | R60: 1 | S60: MASS 2 | T60: SMSM
P61: 89 | Q61: 6 | R61: 4 | S61: LBSI | T61: SJFF 2
P62: 90 | Q62: 2 | R62: 7 | S62: LR | T62: MASS 2
A63: 2022-03-16 | B63: DIVISION 1 | P63: 91 | Q63: 3 | R63: 1 | S63: FEN 2 | T63: SMSM
B64: 6 | C64: =VLOOKUP($B64,$J$12:$N$42,4) -> SJFF 1 | D64: =VLOOKUP($B64,$J$12:$N$42,5) -> FEN 1 | E64: SJFF à 14h | F64: =IFERROR(VLOOKUP($B64,'Cls M1'!$A$1:$G$33,4,FALSE),"") -> 0 | G64: =IFERROR(VLOOKUP($B64,'Cls M1'!$A$1:$G$33,5,FALSE),"") -> 0 | P64: 92 | Q64: 8 | R64: 1 | S64: =VLOOKUP(Q64,$P$2:$Q$11,2) -> MASS 3 | T64: =VLOOKUP(R64,$P$2:$Q$11,2) -> SMSM
B65: 24 | C65: =VLOOKUP($B65,$J$12:$N$42,4) -> MASS 1 | D65: =VLOOKUP($B65,$J$12:$N$42,5) -> SBE 2 | E65: Japy à 14h | F65: =IFERROR(VLOOKUP($B65,'Cls M1'!$A$1:$G$33,4,FALSE),"") -> 0 | G65: =IFERROR(VLOOKUP($B65,'Cls M1'!$A$1:$G$33,5,FALSE),"") -> 0 | P65: 93 | Q65: 8 | R65: 2 | S65: MASS 3 | T65: LR
B66: 27 | C66: MASS 1 | D66: SBE 1 | F66: =IFERROR(VLOOKUP($B66,'Cls M1'!$A$1:$G$33,4,FALSE),"") -> 0 | G66: =IFERROR(VLOOKUP($B66,'Cls M1'!$A$1:$G$33,5,FALSE),"") -> 0 | P66: 94 | Q66: 8 | R66: 3 | S66: MASS 3 | T66: FEN 2
B67: DIVISION 2 | P67: 95 | Q67: 8 | R67: 4 | S67: MASS 3 | T67: SJFF 2
B68: 56 | C68: =VLOOKUP($B68,$P$14:$T$70,4) -> LBSI | D68: =VLOOKUP($B68,$P$14:$T$70,5) -> SMSM | E68: LBSI à 14h | F68: =IFERROR(VLOOKUP($B68,'Cls M2'!$A$1:$G$54,4,FALSE),"") -> 0 | G68: =IFERROR(VLOOKUP($B68,'Cls M2'!$A$1:$G$54,5,FALSE),"") -> 0 | P68: 96 | Q68: 8 | R68: 5 | S68: MASS 3 | T68: SJG
B69: 50 | C69: =VLOOKUP($B69,$P$14:$T$70,4) -> SJG | D69: =VLOOKUP($B69,$P$14:$T$70,5) -> LR | E69: Croix de Nivert 14h | F69: =IFERROR(VLOOKUP($B69,'Cls M2'!$A$1:$G$54,4,FALSE),"") -> 0 | G69: =IFERROR(VLOOKUP($B69,'Cls M2'!$A$1:$G$54,5,FALSE),"") -> 0 | P69: 97 | Q69: 8 | R69: 6 | S69: MASS 3 | T69: LBSI
B70: 94 | C70: MASS 3 | D70: FEN 2 | E70: Japy à 14h | F70: =IFERROR(VLOOKUP($B70,'Cls M2'!$A$1:$G$54,4,FALSE),"") ->  | G70: =IFERROR(VLOOKUP($B70,'Cls M2'!$A$1:$G$54,5,FALSE),"") ->  | P70: 98 | Q70: 8 | R70: 7 | S70: MASS 3 | T70: MASS 2
B71: 85 | C71: =VLOOKUP($B71,$P$14:$T$70,4) -> MASS 2 | D71: =VLOOKUP($B71,$P$14:$T$70,5) -> FEN 2 | F71: =IFERROR(VLOOKUP($B71,'Cls M2'!$A$1:$G$54,4,FALSE),"") -> 0 | G71: =IFERROR(VLOOKUP($B71,'Cls M2'!$A$1:$G$54,5,FALSE),"") -> 0
B72: DIVISION FILLE
A75: 2022-03-23 | B75: DIVISION 1
B76: 4 | C76: =VLOOKUP($B76,$J$12:$N$42,4) -> SBE 2 | D76: =VLOOKUP($B76,$J$12:$N$42,5) -> SJFF 1 | E76: SMSM à 14h | F76: =IFERROR(VLOOKUP($B76,'Cls M1'!$A$1:$G$33,4,FALSE),"") -> 0 | G76: =IFERROR(VLOOKUP($B76,'Cls M1'!$A$1:$G$33,5,FALSE),"") -> 0
B77: 8 | C77: =VLOOKUP($B77,$J$12:$N$42,4) -> SJFF 1 | D77: =VLOOKUP($B77,$J$12:$N$42,5) -> SBE 1 | F77: =IFERROR(VLOOKUP($B77,'Cls M1'!$A$1:$G$33,4,FALSE),"") -> 0 | G77: =IFERROR(VLOOKUP($B77,'Cls M1'!$A$1:$G$33,5,FALSE),"") -> 0
B78: DIVISION 2
B79: 58 | C79: =VLOOKUP($B79,$P$14:$T$63,4) -> LR | D79: =VLOOKUP($B79,$P$14:$T$63,5) -> LBSI | E79: LBSI à 13h45 | F79: =IFERROR(VLOOKUP($B79,'Cls M2'!$A$1:$G$54,4,FALSE),"") -> 0 | G79: =IFERROR(VLOOKUP($B79,'Cls M2'!$A$1:$G$54,5,FALSE),"") -> 0
B80: 62 | C80: MASS 2 | D80: LR | F80: =IFERROR(VLOOKUP($B80,'Cls M2'!$A$1:$G$54,4,FALSE),"") -> 0 | G80: =IFERROR(VLOOKUP($B80,'Cls M2'!$A$1:$G$54,5,FALSE),"") -> 0
B81: 79 | C81: MASS 2 | D81: LBSI | F81: =IFERROR(VLOOKUP($B81,'Cls M2'!$A$1:$G$54,4,FALSE),"") -> 0 | G81: =IFERROR(VLOOKUP($B81,'Cls M2'!$A$1:$G$54,5,FALSE),"") -> 0
B82: 49 | C82: SJFF 2 | D82: SMSM | E82: SMSM à 14h
B83: 66 | C83: FEN 2 | D83: MASS 3 | E83: Fragonard à 14h
B84: DIVISION FILLE
B85: 99 | C85: =VLOOKUP($B85,$V$14:$Z$26,4) -> SBE | D85: =VLOOKUP($B85,$V$14:$Z$26,5) -> SJFF | E85: SMSM à 14h
A87: 2022-03-30 | B87: DIVISION 1
B88: 21 | C88: =VLOOKUP($B88,$J$12:$N$42,4) -> FEN 1 | D88: =VLOOKUP($B88,$J$12:$N$42,5) -> SJFF 1 | E88: Japy à 14h | F88: =IFERROR(VLOOKUP($B88,'Cls M1'!$A$1:$G$33,4,FALSE),"") -> 0 | G88: =IFERROR(VLOOKUP($B88,'Cls M1'!$A$1:$G$33,5,FALSE),"") -> 0 | H88: MASS
B89: 18 | C89: =VLOOKUP($B89,$J$12:$N$42,4) -> SBE 1 | D89: =VLOOKUP($B89,$J$12:$N$42,5) -> FEN 1 | F89: =IFERROR(VLOOKUP($B89,'Cls M1'!$A$1:$G$33,4,FALSE),"") -> 0 | G89: =IFERROR(VLOOKUP($B89,'Cls M1'!$A$1:$G$33,5,FALSE),"") -> 0
B90: 19 | C90: SJFF 1 | D90: SBE 2 | F90: =IFERROR(VLOOKUP($B90,'Cls M1'!$A$1:$G$33,4,FALSE),"") -> 0 | G90: =IFERROR(VLOOKUP($B90,'Cls M1'!$A$1:$G$33,5,FALSE),"") -> 0
B91: DIVISION 2
B92: 75 | C92: =VLOOKUP($B92,$P$14:$T$63,4) -> SJFF 2 | D92: =VLOOKUP($B92,$P$14:$T$63,5) -> FEN 2 | E92: SJFF à 14h | F92: =IFERROR(VLOOKUP($B92,'Cls M2'!$A$1:$G$54,4,FALSE),"") -> 0 | G92: =IFERROR(VLOOKUP($B92,'Cls M2'!$A$1:$G$54,5,FALSE),"") -> 0 | H92: MASS
B93: 86 | C93: LBSI | D93: LR | E93: LR à 14h | F93: =IFERROR(VLOOKUP($B93,'Cls M2'!$A$1:$G$54,4,FALSE),"") -> 0 | G93: =IFERROR(VLOOKUP($B93,'Cls M2'!$A$1:$G$54,5,FALSE),"") -> 0
B94: 76 | C94: LBSI | D94: SJG | F94: =IFERROR(VLOOKUP($B94,'Cls M2'!$A$1:$G$54,4,FALSE),"") -> 0 | G94: =IFERROR(VLOOKUP($B94,'Cls M2'!$A$1:$G$54,5,FALSE),"") -> 0
B95: 78 | C95: LR | D95: SJG | F95: =IFERROR(VLOOKUP($B95,'Cls M2'!$A$1:$G$54,4,FALSE),"") -> 0 | G95: =IFERROR(VLOOKUP($B95,'Cls M2'!$A$1:$G$54,5,FALSE),"") -> 0
B96: DIVISION FILLE
B97: 105 | C97: =VLOOKUP($B97,$V$14:$Z$26,4) -> SJFF | D97: =VLOOKUP($B97,$V$14:$Z$26,5) -> SBE | E97: Japy à 14h | H97: MASS

Sheet Cls M1
A1: MINIMES DIVISION 1
A3: N° Match | B3: Equipe A | C3: Equipe B | D3: Scores | F3: Vainqueur | G3: Perdant | J3: SIGLE | K3: Etablissement | L3: Matchs joués | M3: Victoires | N3: Nuls | O3: Défaites | P3: Points Pour | Q3: Points Contre | R3: Différence | S3: Points
A4: 1 | B4: ='Calendrier MG'!M13 -> SBE 1 | C4: ='Calendrier MG'!N13 -> SBE 2 | F4: =IF(D4<>"",IF(D4>E4,B4,IF(D4<E4,C4,"nul")),"") ->  | G4: =IF(E4<>"",IF(E4<D4,C4,IF(E4>D4,B4,"nul")),"") ->  | I4: =RANK(T4,$T$4:$T$8) -> 2 | J4: ='Calendrier MG'!K4 -> FEN 1 | K4: Fénelon 1 | L4: =COUNT(D6,D9,D14,D18,D21,D24,D29,D33) -> 3 | M4: =COUNTIF($F$3:$F$33,J4) -> 1 | N4: =L4-M4-O4 -> 0 | O4: =COUNTIF(G3:G33,J4) -> 2 | P4: =SUM(D6,E9,E14,D18,E21,D24,D29,E33) -> 31 | Q4: =SUM(E6,D9,D14,E18,D21,E24,E29,D33) -> 45 | R4: =P4-Q4 -> -14 | S4: =M4*3+N4*2+O4*1 -> 5 | T4: =SUM(S4*1000000+R4*10000+P4*100+L4*10) -> 4863130
A5: 2 | B5: ='Calendrier MG'!M14 -> FEN 1 | C5: ='Calendrier MG'!N14 -> SMP | F5: =IF(D5<>"",IF(D5>E5,B5,IF(D5<E5,C5,"nul")),"") ->  | G5: =IF(E5<>"",IF(E5<D5,C5,IF(E5>D5,B5,"nul")),"") ->  | I5: =RANK(T5,$T$4:$T$8) -> 4 | J5: ='Calendrier MG'!K5 -> SBE 1 | K5: Saint Benoist de l'Europe 1 | L5: =COUNT(D4,D6,D11,D15,D19,D21,D26,D30) -> 2 | M5: =COUNTIF($F$3:$F$33,J5) -> 0 | N5: =L5-M5-O5 -> 0 | O5: =COUNTIF(G4:G34,J5) -> 2 | P5: =SUM(D4,E6,E11,D15,E19,D21,D26,E30) -> 23 | Q5: =SUM(E4,D6,D11,E15,D19,E21,E26,D30) -> 31 | R5: =P5-Q5 -> -8 | S5: =M5*3+N5*2+O5*1 -> 2 | T5: 1922320
A6: 3 | B6: ='Calendrier MG'!M15 -> FEN 1 | C6: ='Calendrier MG'!N15 -> SBE 1 | D6: 14 | E6: 9 | F6: FEN 1 | G6: SBE 1 | I6: 3 | J6: ='Calendrier MG'!K6 -> SBE 2 | K6: Saint Benoist de l'Europe 2 | L6: =COUNT(D4,D7,D12,D18,D22,D27,D33,D19) -> 2 | M6: 1 | N6: 0 | O6: 1 | P6: =SUM(E4,D7,D12,E18,E22,E27,D33,D19) -> 19 | Q6: =SUM(D4,E7,E12,D18,D22,D27,E33,E19) -> 25 | R6: -6 | S6: 4 | T6: 3941920
A7: 4 | B7: ='Calendrier MG'!M16 -> SBE 2 | C7: ='Calendrier MG'!N16 -> SJFF 1 | I7: 5 | J7: ='Calendrier MG'!K7 -> SJFF 1 | K7: Saint Joseph 1 | L7: =COUNT(D7,D11,D17,D22,D24,D26,D32,D9) -> 0 | M7: 0 | N7: 0 | O7: 0 | P7: =SUM(E7,D11,D17,D22,E24,E26,E32,D9) -> 0 | Q7: =SUM(D7,E11,E17,E22,D24,D26,D32,E9) -> 0 | R7: 0 | S7: 0 | T7: 0
A8: 5 | B8: ='Calendrier MG'!M17 -> SMP | C8: ='Calendrier MG'!N17 -> MASS 1 | I8: 1 | J8: MASS 1 | K8: Massillon 1 | L8: =COUNT(D12,D15,D14,D17,D27,D29,D32,D30) -> 3 | M8: =COUNTIF($F$3:$F$33,J8) -> 3 | N8: =L8-M8-O8 -> 0 | O8: 0 | P8: =SUM(E12,E15,D14,E17,D27,E29,D32,D30) -> 53 | Q8: =SUM(D12,D15,E14,D17,E27,D29,E32,E30) -> 25 | R8: =P8-Q8 -> 28 | S8: =M8*3+N8*2+O8*1 -> 9 | T8: =SUM(S8*1000000+R8*10000+P8*100+L8*10) -> 9285330
A9: 6 | B9: ='Calendrier MG'!M18 -> SJFF 1 | C9: ='Calendrier MG'!N18 -> FEN 1
A10: 7 | B10: ='Calendrier MG'!M19 -> SMP | C10: ='Calendrier MG'!N19 -> SBE 1 | I10: Classement | J10: SIGLE | K10: Etablissement | L10: Matchs joués | M10: Victoires | N10: Nuls | O10: Défaites | P10: Points Pour | Q10: Points Contre | R10: Différence | S10: Points
A11: 8 | B11: ='Calendrier MG'!M20 -> SJFF 1 | C11: ='Calendrier MG'!N20 -> SBE 1 | I11: 1 | J11: =VLOOKUP($I11,$I$3:$S$8,COLUMNS($J10:J10)+1,FALSE) -> MASS 1 | K11: =VLOOKUP($I11,$I$3:$S$8,COLUMNS($J10:K10)+1,FALSE) -> Massillon 1 | L11: =VLOOKUP($I11,$I$3:$S$8,COLUMNS($J10:L10)+1,FALSE) -> 3 | M11: =VLOOKUP($I11,$I$3:$S$8,COLUMNS($J10:M10)+1,FALSE) -> 3 | N11: =VLOOKUP($I11,$I$3:$S$8,COLUMNS($J10:N10)+1,FALSE) -> 0 | O11: =VLOOKUP($I11,$I$3:$S$8,COLUMNS($J10:O10)+1,FALSE) -> 0 | P11: =VLOOKUP($I11,$I$3:$S$8,COLUMNS($J10:P10)+1,FALSE) -> 53 | Q11: =VLOOKUP($I11,$I$3:$S$8,COLUMNS($J10:Q10)+1,FALSE) -> 25 | R11: =VLOOKUP($I11,$I$3:$S$8,COLUMNS($J10:R10)+1,FALSE) -> 28 | S11: =VLOOKUP($I11,$I$3:$S$8,COLUMNS($J10:S10)+1,FALSE) -> 9
A12: 9 | B12: ='Calendrier MG'!M21 -> SBE 2 | C12: ='Calendrier MG'!N21 -> MASS 1 | D12: 4 | E12: 15 | F12: =IF(D12<>"",IF(D12>E12,B12,IF(D12<E12,C12,"nul")),"") -> MASS 1 | G12: SBE 2 | I12: 2 | J12: =VLOOKUP($I12,$I$3:$S$8,COLUMNS($J11:J11)+1,FALSE) -> FEN 1 | K12: =VLOOKUP($I12,$I$3:$S$8,COLUMNS($J11:K11)+1,FALSE) -> Fénelon 1 | L12: =VLOOKUP($I12,$I$3:$S$8,COLUMNS($J11:L11)+1,FALSE) -> 3 | M12: =VLOOKUP($I12,$I$3:$S$8,COLUMNS($J11:M11)+1,FALSE) -> 1 | N12: =VLOOKUP($I12,$I$3:$S$8,COLUMNS($J11:N11)+1,FALSE) -> 0 | O12: =VLOOKUP($I12,$I$3:$S$8,COLUMNS($J11:O11)+1,FALSE) -> 2 | P12: =VLOOKUP($I12,$I$3:$S$8,COLUMNS($J11:P11)+1,FALSE) -> 31 | Q12: =VLOOKUP($I12,$I$3:$S$8,COLUMNS($J11:Q11)+1,FALSE) -> 45 | R12: =VLOOKUP($I12,$I$3:$S$8,COLUMNS($J11:R11)+1,FALSE) -> -14 | S12: =VLOOKUP($I12,$I$3:$S$8,COLUMNS($J11:S11)+1,FALSE) -> 5
A13: 10 | B13: ='Calendrier MG'!M22 -> SMP | C13: ='Calendrier MG'!N22 -> SJFF 1 | I13: 3 | J13: =VLOOKUP($I13,$I$3:$S$8,COLUMNS($J12:J12)+1,FALSE) -> SBE 2 | K13: =VLOOKUP($I13,$I$3:$S$8,COLUMNS($J12:K12)+1,FALSE) -> Saint Benoist de l'Europe 2 | L13: =VLOOKUP($I13,$I$3:$S$8,COLUMNS($J12:L12)+1,FALSE) -> 2 | M13: =VLOOKUP($I13,$I$3:$S$8,COLUMNS($J12:M12)+1,FALSE) -> 1 | N13: =VLOOKUP($I13,$I$3:$S$8,COLUMNS($J12:N12)+1,FALSE) -> 0 | O13: =VLOOKUP($I13,$I$3:$S$8,COLUMNS($J12:O12)+1,FALSE) -> 1 | P13: =VLOOKUP($I13,$I$3:$S$8,COLUMNS($J12:P12)+1,FALSE) -> 19 | Q13: =VLOOKUP($I13,$I$3:$S$8,COLUMNS($J12:Q12)+1,FALSE) -> 25 | R13: =VLOOKUP($I13,$I$3:$S$8,COLUMNS($J12:R12)+1,FALSE) -> -6 | S13: =VLOOKUP($I13,$I$3:$S$8,COLUMNS($J12:S12)+1,FALSE) -> 4
A14: 11 | B14: ='Calendrier MG'!M23 -> MASS 1 | C14: ='Calendrier MG'!N23 -> FEN 1 | D14: 21 | E14: 7 | F14: MASS 1 | G14: FEN 1 | I14: 4 | J14: =VLOOKUP($I14,$I$3:$S$8,COLUMNS($J13:J13)+1,FALSE) -> SBE 1 | K14: =VLOOKUP($I14,$I$3:$S$8,COLUMNS($J13:K13)+1,FALSE) -> Saint Benoist de l'Europe 1 | L14: =VLOOKUP($I14,$I$3:$S$8,COLUMNS($J13:L13)+1,FALSE) -> 2 | M14: =VLOOKUP($I14,$I$3:$S$8,COLUMNS($J13:M13)+1,FALSE) -> 0 | N14: =VLOOKUP($I14,$I$3:$S$8,COLUMNS($J13:N13)+1,FALSE) -> 0 | O14: =VLOOKUP($I14,$I$3:$S$8,COLUMNS($J13:O13)+1,FALSE) -> 2 | P14: =VLOOKUP($I14,$I$3:$S$8,COLUMNS($J13:P13)+1,FALSE) -> 23 | Q14: =VLOOKUP($I14,$I$3:$S$8,COLUMNS($J13:Q13)+1,FALSE) -> 31 | R14: =VLOOKUP($I14,$I$3:$S$8,COLUMNS($J13:R13)+1,FALSE) -> -8 | S14: =VLOOKUP($I14,$I$3:$S$8,COLUMNS($J13:S13)+1,FALSE) -> 2
A15: 12 | B15: ='Calendrier MG'!M24 -> SBE 1 | C15: ='Calendrier MG'!N24 -> MASS 1 | D15: 14 | E15: 17 | F15: MASS 1 | G15: SBE 1 | I15: 5 | J15: =VLOOKUP($I15,$I$3:$S$8,COLUMNS($J14:J14)+1,FALSE) -> SJFF 1 | K15: =VLOOKUP($I15,$I$3:$S$8,COLUMNS($J14:K14)+1,FALSE) -> Saint Joseph 1 | L15: =VLOOKUP($I15,$I$3:$S$8,COLUMNS($J14:L14)+1,FALSE) -> 0 | M15: =VLOOKUP($I15,$I$3:$S$8,COLUMNS($J14:M14)+1,FALSE) -> 0 | N15: =VLOOKUP($I15,$I$3:$S$8,COLUMNS($J14:N14)+1,FALSE) -> 0 | O15: =VLOOKUP($I15,$I$3:$S$8,COLUMNS($J14:O14)+1,FALSE) -> 0 | P15: =VLOOKUP($I15,$I$3:$S$8,COLUMNS($J14:P14)+1,FALSE) -> 0 | Q15: =VLOOKUP($I15,$I$3:$S$8,COLUMNS($J14:Q14)+1,FALSE) -> 0 | R15: =VLOOKUP($I15,$I$3:$S$8,COLUMNS($J14:R14)+1,FALSE) -> 0 | S15: =VLOOKUP($I15,$I$3:$S$8,COLUMNS($J14:S14)+1,FALSE) -> 0
A16: 13 | B16: ='Calendrier MG'!M25 -> SBE 2 | C16: ='Calendrier MG'!N25 -> SMP | F16: =IF(D16<>"",IF(D16>E16,B16,IF(D16<E16,C16,"nul")),"") ->  | G16: =IF(E16<>"",IF(E16<D16,C16,IF(E16>D16,B16,"nul")),"") -> 
A17: 14 | B17: ='Calendrier MG'!M26 -> SJFF 1 | C17: ='Calendrier MG'!N26 -> MASS 1
A18: 15 | B18: ='Calendrier MG'!M27 -> FEN 1 | C18: ='Calendrier MG'!N27 -> SBE 2 | D18: 10 | E18: 15 | F18: SBE 2 | G18: FEN 1
A19: 16 | B19: ='Calendrier MG'!M28 -> SBE 2 | C19: ='Calendrier MG'!N28 -> SBE 1
A20: 17 | B20: ='Calendrier MG'!M29 -> SMP | C20: ='Calendrier MG'!N29 -> FEN 1
A21: 18 | B21: ='Calendrier MG'!M30 -> SBE 1 | C21: ='Calendrier MG'!N30 -> FEN 1
A22: 19 | B22: ='Calendrier MG'!M31 -> SJFF 1 | C22: ='Calendrier MG'!N31 -> SBE 2
A23: 20 | B23: ='Calendrier MG'!M32 -> MASS 1 | C23: ='Calendrier MG'!N32 -> SMP
A24: 21 | B24: ='Calendrier MG'!M33 -> FEN 1 | C24: ='Calendrier MG'!N33 -> SJFF 1
A25: 22 | B25: ='Calendrier MG'!M34 -> SBE 1 | C25: ='Calendrier MG'!N34 -> SMP
A26: 23 | B26: ='Calendrier MG'!M35 -> SBE 1 | C26: ='Calendrier MG'!N35 -> SJFF 1
A27: 24 | B27: ='Calendrier MG'!M36 -> MASS 1 | C27: ='Calendrier MG'!N36 -> SBE 2
A28: 25 | B28: ='Calendrier MG'!M37 -> SJFF 1 | C28: ='Calendrier MG'!N37 -> SMP
A29: 26 | B29: ='Calendrier MG'!M38 -> FEN 1 | C29: ='Calendrier MG'!N38 -> MASS 1
A30: 27 | B30: ='Calendrier MG'!M39 -> MASS 1 | C30: ='Calendrier MG'!N39 -> SBE 1
A31: 28 | B31: ='Calendrier MG'!M40 -> SMP | C31: ='Calendrier MG'!N40 -> SBE 2
A32: 29 | B32: ='Calendrier MG'!M41 -> MASS 1 | C32: ='Calendrier MG'!N41 -> SJFF 1
A33: 30 | B33: ='Calendrier MG'!M42 -> SBE 2 | C33: ='Calendrier MG'!N42 -> FEN 1

Sheet Cls M2
A1: MINIMES DIVISION 2
A3: N° Match | B3: Equipe A | C3: Equipe B | D3: Scores | F3: Vainqueur | G3: Perdant | J3: SIGLE | K3: Etablissement | L3: Matchs joués | M3: Victoires | N3: Nuls | O3: Défaites | P3: Points Pour | Q3: Points Contre | R3: Différence | S3: Points
A4: 43 | B4: ='Calendrier MG'!S15 -> LR | C4: ='Calendrier MG'!T15 -> FEN 2 | D4: 18 | E4: 10 | F4: =IF(D4<>"",IF(D4>E4,B4,IF(D4<E4,C4,"nul")),"") -> LR | G4: =IF(E4<>"",IF(E4<D4,C4,IF(E4>D4,B4,"nul")),"") -> FEN 2 | I4: =RANK(T4,$T$4:$T$11) -> 8 | J4: ='Calendrier MG'!Q4 -> SMSM | K4: Saint Michel Saint Mandé | L4: =COUNT(D5,D7,D10,D17,D21,D24,D25,D33,D53,D52,D35,D38,D45,D49) -> 2 | M4: =COUNTIF($F$3:$F$54,J4) -> 1 | N4: =L4-M4-O4 -> 0 | O4: =COUNTIF(G3:G54,J4) -> 1 | P4: =SUM(D5,D7,E10,E17,D21,D24,D25,E33,E53,E52,E35,D38,D45,E49) -> 9 | Q4: =SUM(E5,E7,D10,D17,E21,E24,E25,D33,D53,D52,D35,E38,E45,D49) -> 12 | R4: =P4-Q4 -> -3 | S4: =M4*3+N4*2+O4*1 -> 4 | T4: =SUM(S4*1000000+R4*10000+P4*100+L4*10) -> 3970920
A5: 44 | B5: ='Calendrier MG'!S16 -> SMSM | C5: ='Calendrier MG'!T16 -> SJG | F5: =IF(D5<>"",IF(D5>E5,B5,IF(D5<E5,C5,"nul")),"") ->  | G5: =IF(E5<>"",IF(E5<D5,C5,IF(E5>D5,B5,"nul")),"") ->  | I5: =RANK(T5,$T$4:$T$11) -> 3 | J5: ='Calendrier MG'!Q5 -> LR | K5: La Rochefoucauld | L5: =COUNT(D4,D7,D11,D13,D19,D23,D26,D32,D54,D51,D35,D39,D41,D47) -> 3 | M5: =COUNTIF($F$3:$F$54,J5) -> 3 | N5: 0 | O5: =COUNTIF(G4:G55,J5) -> 0 | P5: =SUM(D4,E7,E11,E13,D19,E23,D26,E32,E54,D51,D35,D39,D41,E47) -> 42 | Q5: =SUM(E4,D7,D11,D13,E19,D23,E26,D32,D54,E51,E35,E39,E41,D47) -> 16 | R5: =P5-Q5 -> 26 | S5: =M5*3+N5*2+O5*1 -> 9 | T5: =SUM(S5*1000000+R5*10000+P5*100+L5*10) -> 9264230
A6: 45 | B6: ='Calendrier MG'!S17 -> MASS 2 | C6: ='Calendrier MG'!T17 -> SJFF 2 | D6: 22 | E6: 0 | F6: MASS 2 | G6: SJFF 2 | I6: 6 | J6: ='Calendrier MG'!Q6 -> FEN 2 | K6: Fénelon Sainte Marie 2 | L6: =COUNT(D4,D8,D15,D18,D20,D24,D27,D32,D55,D52,D36,D43,D46,D48) -> 6 | M6: 0 | N6: 1 | O6: 5 | P6: =SUM(E4,D8,D15,D18,D20,E24,D27,D32,E55,D52,E36,E43,E46,E48) -> 27 | Q6: =SUM(D4,E8,E15,E18,E20,D24,E27,E32,D55,E52,D36,E43,D46,D48) -> 115 | R6: =P6-Q6 -> -88 | S6: 7 | T6: 6122760
A7: 46 | B7: ='Calendrier MG'!S18 -> SMSM | C7: ='Calendrier MG'!T18 -> LR | D7: 0 | E7: 8 | F7: LR | G7: SMSM | I7: 5 | J7: ='Calendrier MG'!Q7 -> SJFF 2 | K7: Saint Joseph 2 | L7: =COUNT(D8,D10,D13,D16,D22,D6,D28,D34,D56,D36,D38,D41,D44,D50) -> 5 | M7: 1 | N7: 0 | O7: 4 | P7: =SUM(E8,D10,D13,E16,D22,E6,D28,D34,E56,D36,E38,E41,D44,E50) -> 20 | Q7: =SUM(D8,E10,E13,D16,E22,D6,E28,E34,D56,E36,D38,D41,E44,D50) -> 79 | R7: -59 | S7: 7 | T7: 6412050
A8: 47 | B8: ='Calendrier MG'!S19 -> FEN 2 | C8: ='Calendrier MG'!T19 -> SJFF 2 | D8: 5 | E8: 6 | F8: SJFF 2 | G8: FEN 2 | I8: 2 | J8: ='Calendrier MG'!Q8 -> SJG | K8: Saint Jean Gabriel | L8: =COUNT(D5,D9,D11,D14,D16,D20,D29,D33,D57,D48,D37,D39,D42,D44) -> 4 | M8: 3 | N8: 0 | O8: 1 | P8: =SUM(E5,D9,D11,E14,D16,E20,D29,D33,E57,D48,E37,E39,D42,E44) -> 124 | Q8: =SUM(D5,E9,E11,D14,E16,D20,E29,E33,D57,E48,D37,D39,E42,D44) -> 38 | R8: 86 | S8: 10 | T8: 10872440
A9: 48 | B9: ='Calendrier MG'!S20 -> SJG | C9: ='Calendrier MG'!T20 -> LBSI | D9: 11 | E9: 30 | F9: LBSI | G9: SJG | I9: 1 | J9: ='Calendrier MG'!Q9 -> LBSI | K9: La Bruyère Sainte Isabelle | L9: =COUNT(D9,D12,D15,D17,D19,D22,D30,D37,D58,D50,D40,D43,D45,D47) -> 4 | M9: 4 | N9: =L9-M9-O9 -> 0 | O9: 0 | P9: =SUM(E9,D12,E15,D17,E19,E22,D30,D37,E58,D50,E40,D43,E45,D47) -> 107 | Q9: =SUM(D9,E12,D15,E17,D19,D22,E30,E37,D58,E50,D40,E43,D45,E47) -> 25 | R9: =P9-Q9 -> 82 | S9: =M9*3+N9*2+O9*1 -> 12 | T9: =SUM(S9*1000000+R9*10000+P9*100+L9*10) -> 12830740
A10: 49 | B10: ='Calendrier MG'!S21 -> SJFF 2 | C10: ='Calendrier MG'!T21 -> SMSM | I10: 4 | J10: ='Calendrier MG'!Q10 -> MASS 2 | K10: Massillon 2 | L10: =COUNT(D6,D12,D14,D18,D21,D23,D31,D34,D59,D51,D40,D42,D46,D49) -> 3 | M10: 2 | N10: =L10-M10-O10 -> 0 | O10: =COUNTIF(G9:G59,J10) -> 1 | P10: =SUM(D6,E12,D14,E18,E21,D23,D31,E34,E59,E51,D40,E42,D46,D49) -> 46 | Q10: =SUM(E6,D12,E14,D18,D21,E23,E31,D34,D59,D51,E40,D42,E46,E49) -> 22 | R10: =P10-Q10 -> 24 | S10: =M10*3+N10*2+O10*1 -> 7 | T10: =SUM(S10*1000000+R10*10000+P10*100+L10*10) -> 7244630
A11: 50 | B11: ='Calendrier MG'!S22 -> SJG | C11: ='Calendrier MG'!T22 -> LR | I11: 7 | J11: ='Calendrier MG'!Q11 -> MASS 3 | K11: Massillon 3 | L11: =COUNT(D25,D31,D26,D27,D28,D29,D30,D54,D59,D55,D56,D57,D58,D53) -> 3 | M11: 1 | N11: 0 | O11: =COUNTIF(G10:G59,J11) -> 2 | P11: =SUM(D25,D31,D26,D27,D28,D29,D30,E54,E59,E55,E56,E57,E58,E53) -> 84 | Q11: =SUM(E25,E31,E26,E27,E28,E29,E30,D54,D59,D55,D56,D57,D58,D53) -> 16 | R11: 68 | S11: 5 | T11: 5688430
A12: 51 | B12: ='Calendrier MG'!S23 -> LBSI | C12: ='Calendrier MG'!T23 -> MASS 2 | D12: 18 | E12: 4 | F12: =IF(D12<>"",IF(D12>E12,B12,IF(D12<E12,C12,"nul")),"") -> LBSI | G12: MASS 2
A13: 52 | B13: ='Calendrier MG'!S24 -> SJFF 2 | C13: ='Calendrier MG'!T24 -> LR | D13: 6 | E13: 16 | F13: LR | G13: SJFF 2 | I13: Classement | J13: SIGLE | K13: Etablissement | L13: Matchs joués | M13: Victoires | N13: Nuls | O13: Défaites | P13: Points Pour | Q13: Points Contre | R13: Différence | S13: Points
A14: 53 | B14: ='Calendrier MG'!S25 -> MASS 2 | C14: ='Calendrier MG'!T25 -> SJG | I14: 1 | J14: =VLOOKUP($I14,$I$3:$S$11,COLUMNS($J13:J13)+1,FALSE) -> LBSI | K14: =VLOOKUP($I14,$I$3:$S$11,COLUMNS($J13:K13)+1,FALSE) -> La Bruyère Sainte Isabelle | L14: =VLOOKUP($I14,$I$3:$S$11,COLUMNS($J13:L13)+1,FALSE) -> 4 | M14: =VLOOKUP($I14,$I$3:$S$11,COLUMNS($J13:M13)+1,FALSE) -> 4 | N14: =VLOOKUP($I14,$I$3:$S$11,COLUMNS($J13:N13)+1,FALSE) -> 0 | O14: =VLOOKUP($I14,$I$3:$S$11,COLUMNS($J13:O13)+1,FALSE) -> 0 | P14: =VLOOKUP($I14,$I$3:$S$11,COLUMNS($J13:P13)+1,FALSE) -> 107 | Q14: =VLOOKUP($I14,$I$3:$S$11,COLUMNS($J13:Q13)+1,FALSE) -> 25 | R14: =VLOOKUP($I14,$I$3:$S$11,COLUMNS($J13:R13)+1,FALSE) -> 82 | S14: =VLOOKUP($I14,$I$3:$S$11,COLUMNS($J13:S13)+1,FALSE) -> 12
A15: 54 | B15: ='Calendrier MG'!S26 -> FEN 2 | C15: ='Calendrier MG'!T26 -> LBSI | D15: 2 | E15: 18 | F15: LBSI | G15: FEN 2 | I15: 2 | J15: =VLOOKUP($I15,$I$3:$S$11,COLUMNS($J14:J14)+1,FALSE) -> SJG | K15: =VLOOKUP($I15,$I$3:$S$11,COLUMNS($J14:K14)+1,FALSE) -> Saint Jean Gabriel | L15: =VLOOKUP($I15,$I$3:$S$11,COLUMNS($J14:L14)+1,FALSE) -> 4 | M15: =VLOOKUP($I15,$I$3:$S$11,COLUMNS($J14:M14)+1,FALSE) -> 3 | N15: =VLOOKUP($I15,$I$3:$S$11,COLUMNS($J14:N14)+1,FALSE) -> 0 | O15: =VLOOKUP($I15,$I$3:$S$11,COLUMNS($J14:O14)+1,FALSE) -> 1 | P15: =VLOOKUP($I15,$I$3:$S$11,COLUMNS($J14:P14)+1,FALSE) -> 124 | Q15: =VLOOKUP($I15,$I$3:$S$11,COLUMNS($J14:Q14)+1,FALSE) -> 38 | R15: =VLOOKUP($I15,$I$3:$S$11,COLUMNS($J14:R14)+1,FALSE) -> 86 | S15: =VLOOKUP($I15,$I$3:$S$11,COLUMNS($J14:S14)+1,FALSE) -> 10
A16: 55 | B16: ='Calendrier MG'!S27 -> SJG | C16: ='Calendrier MG'!T27 -> SJFF 2 | D16: 30 | E16: 4 | F16: SJG | G16: SJFF 2 | I16: 3 | J16: =VLOOKUP($I16,$I$3:$S$11,COLUMNS($J15:J15)+1,FALSE) -> LR | K16: =VLOOKUP($I16,$I$3:$S$11,COLUMNS($J15:K15)+1,FALSE) -> La Rochefoucauld | L16: =VLOOKUP($I16,$I$3:$S$11,COLUMNS($J15:L15)+1,FALSE) -> 3 | M16: =VLOOKUP($I16,$I$3:$S$11,COLUMNS($J15:M15)+1,FALSE) -> 3 | N16: =VLOOKUP($I16,$I$3:$S$11,COLUMNS($J15:N15)+1,FALSE) -> 0 | O16: =VLOOKUP($I16,$I$3:$S$11,COLUMNS($J15:O15)+1,FALSE) -> 0 | P16: =VLOOKUP($I16,$I$3:$S$11,COLUMNS($J15:P15)+1,FALSE) -> 42 | Q16: =VLOOKUP($I16,$I$3:$S$11,COLUMNS($J15:Q15)+1,FALSE) -> 16 | R16: =VLOOKUP($I16,$I$3:$S$11,COLUMNS($J15:R15)+1,FALSE) -> 26 | S16: =VLOOKUP($I16,$I$3:$S$11,COLUMNS($J15:S15)+1,FALSE) -> 9
A17: 56 | B17: ='Calendrier MG'!S28 -> LBSI | C17: ='Calendrier MG'!T28 -> SMSM | I17: 4 | J17: =VLOOKUP($I17,$I$3:$S$11,COLUMNS($J16:J16)+1,FALSE) -> MASS 2 | K17: =VLOOKUP($I17,$I$3:$S$11,COLUMNS($J16:K16)+1,FALSE) -> Massillon 2 | L17: =VLOOKUP($I17,$I$3:$S$11,COLUMNS($J16:L16)+1,FALSE) -> 3 | M17: =VLOOKUP($I17,$I$3:$S$11,COLUMNS($J16:M16)+1,FALSE) -> 2 | N17: =VLOOKUP($I17,$I$3:$S$11,COLUMNS($J16:N16)+1,FALSE) -> 0 | O17: =VLOOKUP($I17,$I$3:$S$11,COLUMNS($J16:O16)+1,FALSE) -> 1 | P17: =VLOOKUP($I17,$I$3:$S$11,COLUMNS($J16:P16)+1,FALSE) -> 46 | Q17: =VLOOKUP($I17,$I$3:$S$11,COLUMNS($J16:Q16)+1,FALSE) -> 22 | R17: =VLOOKUP($I17,$I$3:$S$11,COLUMNS($J16:R16)+1,FALSE) -> 24 | S17: =VLOOKUP($I17,$I$3:$S$11,COLUMNS($J16:S16)+1,FALSE) -> 7
A18: 57 | B18: ='Calendrier MG'!S29 -> FEN 2 | C18: ='Calendrier MG'!T29 -> MASS 2 | D18: 4 | E18: 20 | F18: MASS 2 | G18: FEN 2 | I18: 5 | J18: =VLOOKUP($I18,$I$3:$S$11,COLUMNS($J17:J17)+1,FALSE) -> SJFF 2 | K18: =VLOOKUP($I18,$I$3:$S$11,COLUMNS($J17:K17)+1,FALSE) -> Saint Joseph 2 | L18: =VLOOKUP($I18,$I$3:$S$11,COLUMNS($J17:L17)+1,FALSE) -> 5 | M18: =VLOOKUP($I18,$I$3:$S$11,COLUMNS($J17:M17)+1,FALSE) -> 1 | N18: =VLOOKUP($I18,$I$3:$S$11,COLUMNS($J17:N17)+1,FALSE) -> 0 | O18: =VLOOKUP($I18,$I$3:$S$11,COLUMNS($J17:O17)+1,FALSE) -> 4 | P18: =VLOOKUP($I18,$I$3:$S$11,COLUMNS($J17:P17)+1,FALSE) -> 20 | Q18: =VLOOKUP($I18,$I$3:$S$11,COLUMNS($J17:Q17)+1,FALSE) -> 79 | R18: =VLOOKUP($I18,$I$3:$S$11,COLUMNS($J17:R17)+1,FALSE) -> -59 | S18: =VLOOKUP($I18,$I$3:$S$11,COLUMNS($J17:S17)+1,FALSE) -> 7
A19: 58 | B19: ='Calendrier MG'!S30 -> LR | C19: ='Calendrier MG'!T30 -> LBSI | I19: 6 | J19: =VLOOKUP($I19,$I$3:$S$11,COLUMNS($J18:J18)+1,FALSE) -> FEN 2 | K19: =VLOOKUP($I19,$I$3:$S$11,COLUMNS($J18:K18)+1,FALSE) -> Fénelon Sainte Marie 2 | L19: =VLOOKUP($I19,$I$3:$S$11,COLUMNS($J18:L18)+1,FALSE) -> 6 | M19: =VLOOKUP($I19,$I$3:$S$11,COLUMNS($J18:M18)+1,FALSE) -> 0 | N19: =VLOOKUP($I19,$I$3:$S$11,COLUMNS($J18:N18)+1,FALSE) -> 1 | O19: =VLOOKUP($I19,$I$3:$S$11,COLUMNS($J18:O18)+1,FALSE) -> 5 | P19: =VLOOKUP($I19,$I$3:$S$11,COLUMNS($J18:P18)+1,FALSE) -> 27 | Q19: =VLOOKUP($I19,$I$3:$S$11,COLUMNS($J18:Q18)+1,FALSE) -> 115 | R19: =VLOOKUP($I19,$I$3:$S$11,COLUMNS($J18:R18)+1,FALSE) -> -88 | S19: =VLOOKUP($I19,$I$3:$S$11,COLUMNS($J18:S18)+1,FALSE) -> 7
A20: 59 | B20: ='Calendrier MG'!S31 -> FEN 2 | C20: ='Calendrier MG'!T31 -> SJG | D20: 2 | E20: 44 | F20: SJG | G20: FEN 2 | I20: 7 | J20: =VLOOKUP($I20,$I$3:$S$11,COLUMNS($J19:J19)+1,FALSE) -> MASS 3 | K20: =VLOOKUP($I20,$I$3:$S$11,COLUMNS($J19:K19)+1,FALSE) -> Massillon 3 | L20: =VLOOKUP($I20,$I$3:$S$11,COLUMNS($J19:L19)+1,FALSE) -> 3 | M20: =VLOOKUP($I20,$I$3:$S$11,COLUMNS($J19:M19)+1,FALSE) -> 1 | N20: =VLOOKUP($I20,$I$3:$S$11,COLUMNS($J19:N19)+1,FALSE) -> 0 | O20: =VLOOKUP($I20,$I$3:$S$11,COLUMNS($J19:O19)+1,FALSE) -> 2 | P20: =VLOOKUP($I20,$I$3:$S$11,COLUMNS($J19:P19)+1,FALSE) -> 84 | Q20: =VLOOKUP($I20,$I$3:$S$11,COLUMNS($J19:Q19)+1,FALSE) -> 16 | R20: =VLOOKUP($I20,$I$3:$S$11,COLUMNS($J19:R19)+1,FALSE) -> 68 | S20: =VLOOKUP($I20,$I$3:$S$11,COLUMNS($J19:S19)+1,FALSE) -> 5
A21: 60 | B21: ='Calendrier MG'!S32 -> SMSM | C21: ='Calendrier MG'!T32 -> MASS 2 | I21: 8 | J21: =VLOOKUP($I21,$I$3:$S$11,COLUMNS($J20:J20)+1,FALSE) -> SMSM | K21: =VLOOKUP($I21,$I$3:$S$11,COLUMNS($J20:K20)+1,FALSE) -> Saint Michel Saint Mandé | L21: =VLOOKUP($I21,$I$3:$S$11,COLUMNS($J20:L20)+1,FALSE) -> 2 | M21: =VLOOKUP($I21,$I$3:$S$11,COLUMNS($J20:M20)+1,FALSE) -> 1 | N21: =VLOOKUP($I21,$I$3:$S$11,COLUMNS($J20:N20)+1,FALSE) -> 0 | O21: =VLOOKUP($I21,$I$3:$S$11,COLUMNS($J20:O20)+1,FALSE) -> 1 | P21: =VLOOKUP($I21,$I$3:$S$11,COLUMNS($J20:P20)+1,FALSE) -> 9 | Q21: =VLOOKUP($I21,$I$3:$S$11,COLUMNS($J20:Q20)+1,FALSE) -> 12 | R21: =VLOOKUP($I21,$I$3:$S$11,COLUMNS($J20:R20)+1,FALSE) -> -3 | S21: =VLOOKUP($I21,$I$3:$S$11,COLUMNS($J20:S20)+1,FALSE) -> 4
A22: 61 | B22: ='Calendrier MG'!S33 -> SJFF 2 | C22: ='Calendrier MG'!T33 -> LBSI
A23: 62 | B23: ='Calendrier MG'!S34 -> MASS 2 | C23: ='Calendrier MG'!T34 -> LR
A24: 63 | B24: ='Calendrier MG'!S35 -> SMSM | C24: ='Calendrier MG'!T35 -> FEN 2 | D24: 9 | E24: 4 | F24: =IF(D24<>"",IF(D24>E24,B24,IF(D24<E24,C24,"nul")),"") -> SMSM | G24: =IF(E24<>"",IF(E24<D24,C24,IF(E24>D24,B24,"nul")),"") -> FEN 2
A25: 64 | B25: ='Calendrier MG'!S36 -> SMSM | C25: ='Calendrier MG'!T36 -> MASS 3
A26: 65 | B26: ='Calendrier MG'!S37 -> LR | C26: ='Calendrier MG'!T37 -> MASS 3
A27: 66 | B27: ='Calendrier MG'!S38 -> FEN 2 | C27: ='Calendrier MG'!T38 -> MASS 3
A28: 67 | B28: ='Calendrier MG'!S39 -> SJFF 2 | C28: ='Calendrier MG'!T39 -> MASS 3 | D28: 4 | E28: 6 | F28: MASS 3 | G28: SJFF 2
A29: 68 | B29: ='Calendrier MG'!S40 -> SJG | C29: ='Calendrier MG'!T40 -> MASS 3 | D29: 39 | E29: 2 | F29: SJG | G29: MASS 3
A30: 69 | B30: ='Calendrier MG'!S41 -> LBSI | C30: ='Calendrier MG'!T41 -> MASS 3 | D30: 41 | E30: 8 | F30: LBSI | G30: MASS 3
A31: 70 | B31: ='Calendrier MG'!S42 -> MASS 2 | C31: ='Calendrier MG'!T42 -> MASS 3
A32: 71 | B32: ='Calendrier MG'!S43 -> FEN 2 | C32: ='Calendrier MG'!T43 -> LR
A33: 72 | B33: ='Calendrier MG'!S44 -> SJG | C33: ='Calendrier MG'!T44 -> SMSM
A34: 73 | B34: ='Calendrier MG'!S45 -> SJFF 2 | C34: ='Calendrier MG'!T45 -> MASS 2
A35: 74 | B35: ='Calendrier MG'!S46 -> LR | C35: ='Calendrier MG'!T46 -> SMSM
A36: 75 | B36: ='Calendrier MG'!S47 -> SJFF 2 | C36: ='Calendrier MG'!T47 -> FEN 2
A37: 76 | B37: ='Calendrier MG'!S48 -> LBSI | C37: ='Calendrier MG'!T48 -> SJG
A38: 77 | B38: ='Calendrier MG'!S49 -> SMSM | C38: ='Calendrier MG'!T49 -> SJFF 2
A39: 78 | B39: ='Calendrier MG'!S50 -> LR | C39: ='Calendrier MG'!T50 -> SJG
A40: 79 | B40: ='Calendrier MG'!S51 -> MASS 2 | C40: ='Calendrier MG'!T51 -> LBSI
A41: 80 | B41: ='Calendrier MG'!S52 -> LR | C41: ='Calendrier MG'!T52 -> SJFF 2
A42: 81 | B42: ='Calendrier MG'!S53 -> SJG | C42: ='Calendrier MG'!T53 -> MASS 2
A43: 82 | B43: ='Calendrier MG'!S54 -> LBSI | C43: ='Calendrier MG'!T54 -> FEN 2
A44: 83 | B44: ='Calendrier MG'!S55 -> SJFF 2 | C44: ='Calendrier MG'!T55 -> SJG
A45: 84 | B45: ='Calendrier MG'!S56 -> SMSM | C45: ='Calendrier MG'!T56 -> LBSI
A46: 85 | B46: ='Calendrier MG'!S57 -> MASS 2 | C46: ='Calendrier MG'!T57 -> FEN 2
A47: 86 | B47: ='Calendrier MG'!S58 -> LBSI | C47: ='Calendrier MG'!T58 -> LR
A48: 87 | B48: ='Calendrier MG'!S59 -> SJG | C48: ='Calendrier MG'!T59 -> FEN 2
A49: 88 | B49: ='Calendrier MG'!S60 -> MASS 2 | C49: ='Calendrier MG'!T60 -> SMSM
A50: 89 | B50: ='Calendrier MG'!S61 -> LBSI | C50: ='Calendrier MG'!T61 -> SJFF 2
A51: 90 | B51: ='Calendrier MG'!S62 -> LR | C51: ='Calendrier MG'!T62 -> MASS 2
A52: 91 | B52: ='Calendrier MG'!S63 -> FEN 2 | C52: ='Calendrier MG'!T63 -> SMSM
A53: 92 | B53: ='Calendrier MG'!S64 -> MASS 3 | C53: ='Calendrier MG'!T64 -> SMSM
A54: 93 | B54: ='Calendrier MG'!S65 -> MASS 3 | C54: ='Calendrier MG'!T65 -> LR
A55: 94 | B55: ='Calendrier MG'!S66 -> MASS 3 | C55: ='Calendrier MG'!T66 -> FEN 2
A56: 95 | B56: ='Calendrier MG'!S67 -> MASS 3 | C56: ='Calendrier MG'!T67 -> SJFF 2
A57: 96 | B57: ='Calendrier MG'!S68 -> MASS 3 | C57: ='Calendrier MG'!T68 -> SJG
A58: 97 | B58: ='Calendrier MG'!S69 -> MASS 3 | C58: ='Calendrier MG'!T69 -> LBSI
A59: 98 | B59: ='Calendrier MG'!S70 -> MASS 3 | C59: ='Calendrier MG'!T70 -> MASS 2

Sheet Cls Mixte
A1: MINIMES DIVISION Mixte
A3: N° Match | B3: Equipe A | C3: Equipe B | D3: Scores | F3: Vainqueur | G3: Perdant | J3: SIGLE | K3: Etablissement | L3: Matchs joués | M3: Victoires | N3: Nuls | O3: Défaites | P3: Points Pour | Q3: Points Contre | R3: Différence | S3: Points
A4: 99 | B4: ='Calendrier MG'!Y15 -> SBE | C4: ='Calendrier MG'!Z15 -> SJFF | F4: =IF(D4<>"",IF(D4>E4,B4,IF(D4<E4,C4,"nul")),"") ->  | G4: =IF(E4<>"",IF(E4<D4,C4,IF(E4>D4,B4,"nul")),"") ->  | I4: =RANK(T4,$T$4:$T$6) -> 3 | J4: ='Calendrier MG'!W4 -> SBE | K4: Saint Benoist de l'Europe | L4: =COUNT(D4,D8,D10,D14) -> 0 | M4: =COUNTIF($F$3:$F$15,J4) -> 0 | N4: =L4-M4-O4 -> 0 | O4: =COUNTIF(G3:G15,J4) -> 0 | P4: =SUM(D4,D8,E10,E14) -> 0 | Q4: =SUM(E4,E8,D10,D14) -> 0 | R4: =P4-Q4 -> 0 | S4: =M4*3+N4*2+O4*1 -> 0 | T4: =SUM(S4*1000000+R4*10000+P4*100+L4*10) -> 0
A5: 100 | B5: ='Calendrier MG'!Y16 -> SMP | C5: ='Calendrier MG'!Z16 -> SJG | F5: =IF(D5<>"",IF(D5>E5,B5,IF(D5<E5,C5,"nul")),"") ->  | G5: =IF(E5<>"",IF(E5<D5,C5,IF(E5>D5,B5,"nul")),"") ->  | I5: =RANK(T5,$T$4:$T$6) -> 1 | J5: ='Calendrier MG'!W5 -> SJFF | K5: Saint Joseph 2 | L5: =COUNT(D4,D7,D10,D13) -> 1 | M5: =COUNTIF($F$3:$F$15,J5) -> 1 | N5: 0 | O5: =COUNTIF(G4:G15,J5) -> 0 | P5: =SUM(E4,D7,D10,E13) -> 12 | Q5: =SUM(D4,E7,E10,D13) -> 4 | R5: =P5-Q5 -> 8 | S5: =M5*3+N5*2+O5*1 -> 3 | T5: =SUM(S5*1000000+R5*10000+P5*100+L5*10) -> 3081210
A6: 101 | B6: ='Calendrier MG'!Y17 -> SBE | C6: ='Calendrier MG'!Z17 -> SMP | I6: =RANK(T6,$T$4:$T$6) -> 2 | J6: ='Calendrier MG'!W7 -> SJG | K6: Saint Jean Gabriel | L6: =COUNT(D7,D8,D13,D14) -> 1 | M6: =COUNTIF($F$3:$F$15,J6) -> 0 | N6: 0 | O6: =COUNTIF(G6:G15,J6) -> 1 | P6: =SUM(E7,E8,D13,D14) -> 4 | Q6: =SUM(D7,D8,E13,E14) -> 12 | R6: -8 | S6: 1 | T6: 920410
A7: 102 | B7: ='Calendrier MG'!Y18 -> SJFF | C7: ='Calendrier MG'!Z18 -> SJG | D7: 12 | E7: 4 | F7: SJFF | G7: SJG
A8: 103 | B8: ='Calendrier MG'!Y19 -> SBE | C8: ='Calendrier MG'!Z19 -> SJG
A9: 104 | B9: ='Calendrier MG'!Y20 -> SJFF | C9: ='Calendrier MG'!Z20 -> SMP | I9: Classement | J9: SIGLE | K9: Etablissement | L9: Matchs joués | M9: Victoires | N9: Nuls | O9: Défaites | P9: Points Pour | Q9: Points Contre | R9: Différence | S9: Points
A10: 105 | B10: ='Calendrier MG'!Y21 -> SJFF | C10: ='Calendrier MG'!Z21 -> SBE | I10: 1 | J10: =VLOOKUP($I10,$I$3:$S$6,COLUMNS($J9:J9)+1,FALSE) -> SJFF | K10: =VLOOKUP($I10,$I$3:$S$6,COLUMNS($J9:K9)+1,FALSE) -> Saint Joseph 2 | L10: =VLOOKUP($I10,$I$3:$S$6,COLUMNS($J9:L9)+1,FALSE) -> 1 | M10: =VLOOKUP($I10,$I$3:$S$6,COLUMNS($J9:M9)+1,FALSE) -> 1 | N10: =VLOOKUP($I10,$I$3:$S$6,COLUMNS($J9:N9)+1,FALSE) -> 0 | O10: =VLOOKUP($I10,$I$3:$S$6,COLUMNS($J9:O9)+1,FALSE) -> 0 | P10: =VLOOKUP($I10,$I$3:$S$6,COLUMNS($J9:P9)+1,FALSE) -> 12 | Q10: =VLOOKUP($I10,$I$3:$S$6,COLUMNS($J9:Q9)+1,FALSE) -> 4 | R10: =VLOOKUP($I10,$I$3:$S$6,COLUMNS($J9:R9)+1,FALSE) -> 8 | S10: =VLOOKUP($I10,$I$3:$S$6,COLUMNS($J9:S9)+1,FALSE) -> 3
A11: 106 | B11: ='Calendrier MG'!Y22 -> SJG | C11: ='Calendrier MG'!Z22 -> SMP | I11: 2 | J11: =VLOOKUP($I11,$I$3:$S$6,COLUMNS($J10:J10)+1,FALSE) -> SJG | K11: =VLOOKUP($I11,$I$3:$S$6,COLUMNS($J10:K10)+1,FALSE) -> Saint Jean Gabriel | L11: =VLOOKUP($I11,$I$3:$S$6,COLUMNS($J10:L10)+1,FALSE) -> 1 | M11: =VLOOKUP($I11,$I$3:$S$6,COLUMNS($J10:M10)+1,FALSE) -> 0 | N11: =VLOOKUP($I11,$I$3:$S$6,COLUMNS($J10:N10)+1,FALSE) -> 0 | O11: =VLOOKUP($I11,$I$3:$S$6,COLUMNS($J10:O10)+1,FALSE) -> 1 | P11: =VLOOKUP($I11,$I$3:$S$6,COLUMNS($J10:P10)+1,FALSE) -> 4 | Q11: =VLOOKUP($I11,$I$3:$S$6,COLUMNS($J10:Q10)+1,FALSE) -> 12 | R11: =VLOOKUP($I11,$I$3:$S$6,COLUMNS($J10:R10)+1,FALSE) -> -8 | S11: =VLOOKUP($I11,$I$3:$S$6,COLUMNS($J10:S10)+1,FALSE) -> 1
A12: 107 | B12: ='Calendrier MG'!Y23 -> SMP | C12: ='Calendrier MG'!Z23 -> SBE | F12: =IF(D12<>"",IF(D12>E12,B12,IF(D12<E12,C12,"nul")),"") ->  | I12: 3 | J12: =VLOOKUP($I12,$I$3:$S$6,COLUMNS($J11:J11)+1,FALSE) -> SBE | K12: =VLOOKUP($I12,$I$3:$S$6,COLUMNS($J11:K11)+1,FALSE) -> Saint Benoist de l'Europe | L12: =VLOOKUP($I12,$I$3:$S$6,COLUMNS($J11:L11)+1,FALSE) -> 0 | M12: =VLOOKUP($I12,$I$3:$S$6,COLUMNS($J11:M11)+1,FALSE) -> 0 | N12: =VLOOKUP($I12,$I$3:$S$6,COLUMNS($J11:N11)+1,FALSE) -> 0 | O12: =VLOOKUP($I12,$I$3:$S$6,COLUMNS($J11:O11)+1,FALSE) -> 0 | P12: =VLOOKUP($I12,$I$3:$S$6,COLUMNS($J11:P11)+1,FALSE) -> 0 | Q12: =VLOOKUP($I12,$I$3:$S$6,COLUMNS($J11:Q11)+1,FALSE) -> 0 | R12: =VLOOKUP($I12,$I$3:$S$6,COLUMNS($J11:R11)+1,FALSE) -> 0 | S12: =VLOOKUP($I12,$I$3:$S$6,COLUMNS($J11:S11)+1,FALSE) -> 0
A13: 108 | B13: ='Calendrier MG'!Y24 -> SJG | C13: ='Calendrier MG'!Z24 -> SJFF
A14: 109 | B14: ='Calendrier MG'!Y25 -> SJG | C14: ='Calendrier MG'!Z25 -> SBE
A15: 110 | B15: ='Calendrier MG'!Y26 -> SMP | C15: ='Calendrier MG'!Z26 -> SJFF

Sheet Calendriers CG
B1: CALENDRIER LYCEE | J1: POULES ET MATCHS CADETS ET CADETTES/JUNIORS FILLES
A2: Date | B2: Match | C2: Equipe A | D2: Equipe B | E2: Lieux | F2: Résultats | H2: Indisponibilités | J2: CADETS | M2: JUNIORS
A3: 2021-11-17 | B3: CADETS | J3: Etablissements | M3: Etablissements
B4: 1 | C4: =VLOOKUP($B4,$J$10:$N$28,4) -> SBE | D4: =VLOOKUP($B4,$J$10:$N$28,5) -> SMP | E4: LR à 14h | F4: 30 | G4: 26 | J4: 1 | K4: SBE | M4: 1 | N4: SMP (JG)
B5: 2 | C5: =VLOOKUP($B5,$J$10:$N$28,4) -> SBE | D5: =VLOOKUP($B5,$J$10:$N$28,5) -> LR | F5: 53 | G5: 10 | J5: 2 | K5: SMP
B6: 3 | C6: =VLOOKUP($B6,$J$10:$N$28,4) -> SMP | D6: =VLOOKUP($B6,$J$10:$N$28,5) -> LR | F6: 57 | G6: 27 | J6: 3 | K6: LR
B7: 18 | C7: =VLOOKUP($B7,$J$10:$N$28,4) -> SMP (JG) | D7: =VLOOKUP($B7,$J$10:$N$28,5) -> SMSM | E7: SMP à 14h | F7: =IFERROR(VLOOKUP($B7,'Cls B2'!$A$1:$G$15,4,FALSE),"") ->  | G7: =IFERROR(VLOOKUP($B7,'Cls B2'!$A$1:$G$15,5,FALSE),"") ->  | J7: 4 | K7: SMSM
A8: 2021-11-24 | J8: 5 | K8: SMP (JG)
J10: N° Match | K10: Equipe A | L10: Equipe B | M10: Match
J11: 1 | K11: 1 | L11: 2 | M11: =VLOOKUP(K11,$J$2:$K$9,2) -> SBE | N11: =VLOOKUP(L11,$J$2:$K$9,2) -> SMP
J12: 2 | K12: 1 | L12: 3 | M12: SBE | N12: LR
J13: 3 | K13: 2 | L13: 3 | M13: SMP | N13: LR
A14: 2021-12-01 | B14: 7 | C14: =VLOOKUP($B14,$J$10:$N$28,4) -> SBE | D14: =VLOOKUP($B14,$J$10:$N$28,5) -> SMSM | E14: SMSM à 14h | F14: 36 | G14: 29 | J14: 4 | K14: 2 | L14: 1 | M14: SMP | N14: SBE
C15: =VLOOKUP($B15,$J$10:$N$28,4) ->  | D15: =VLOOKUP($B15,$J$10:$N$28,5) ->  | J15: 5 | K15: 3 | L15: 1 | M15: LR | N15: SBE
C16: =VLOOKUP($B16,$J$10:$N$28,4) ->  | D16: =VLOOKUP($B16,$J$10:$N$28,5) ->  | J16: 6 | K16: 3 | L16: 2 | M16: LR | N16: SMP
C17: =VLOOKUP($B17,$J$10:$N$28,4) ->  | D17: =VLOOKUP($B17,$J$10:$N$28,5) ->  | J17: 7 | K17: 1 | L17: 4 | M17: SBE | N17: SMSM
J18: 8 | K18: 2 | L18: 4 | M18: SMP | N18: SMSM
J19: 9 | K19: 3 | L19: 4 | M19: LR | N19: SMSM
A20: 2021-12-08 | B20: CADETS | J20: 10 | K20: 4 | L20: 1 | M20: SMSM | N20: SBE
C21: =VLOOKUP($B21,$J$10:$N$28,4) ->  | D21: =VLOOKUP($B21,$J$10:$N$28,5) ->  | H21: LR | J21: 11 | K21: 4 | L21: 2 | M21: SMSM | N21: SMP
C22: =VLOOKUP($B22,$J$10:$N$28,4) ->  | D22: =VLOOKUP($B22,$J$10:$N$28,5) ->  | J22: 12 | K22: 4 | L22: 3 | M22: SMSM | N22: LR
C23: =VLOOKUP($B23,$J$10:$N$28,4) ->  | D23: =VLOOKUP($B23,$J$10:$N$28,5) ->  | J23: 13 | K23: 1 | L23: 5 | M23: SBE | N23: SMP (JG)
C24: =VLOOKUP($B24,$J$10:$N$28,4) ->  | D24: =VLOOKUP($B24,$J$10:$N$28,5) ->  | F24: =IFERROR(VLOOKUP($B24,'Cls B2'!$A$1:$G$15,4,FALSE),"") ->  | G24: =IFERROR(VLOOKUP($B24,'Cls B2'!$A$1:$G$15,5,FALSE),"") ->  | J24: 14 | K24: 3 | L24: 5 | M24: LR | N24: SMP (JG)
A25: 2021-12-15 | B25: CADETS | J25: 15 | K25: 4 | L25: 5 | M25: SMSM | N25: SMP (JG)
C26: =VLOOKUP($B26,$J$10:$N$28,4) ->  | D26: =VLOOKUP($B26,$J$10:$N$28,5) ->  | H26: SBE | J26: 16 | K26: 5 | L26: 1 | M26: SMP (JG) | N26: SBE
C27: =VLOOKUP($B27,$J$10:$N$28,4) ->  | D27: =VLOOKUP($B27,$J$10:$N$28,5) ->  | J27: 17 | K27: 5 | L27: 3 | M27: SMP (JG) | N27: LR
C28: =VLOOKUP($B28,$J$10:$N$28,4) ->  | D28: =VLOOKUP($B28,$J$10:$N$28,5) ->  | J28: 18 | K28: 5 | L28: 4 | M28: SMP (JG) | N28: SMSM
C29: =VLOOKUP($B29,$J$10:$N$28,4) ->  | D29: =VLOOKUP($B29,$J$10:$N$28,5) ->  | F29: =IFERROR(VLOOKUP($B29,'Cls B2'!$A$1:$G$15,4,FALSE),"") ->  | G29: =IFERROR(VLOOKUP($B29,'Cls B2'!$A$1:$G$15,5,FALSE),"") -> 
A30: 2021-01-05 | B30: CADETS
C31: =VLOOKUP($B31,$J$10:$N$28,4) ->  | D31: =VLOOKUP($B31,$J$10:$N$28,5) -> 
C32: =VLOOKUP($B32,$J$10:$N$28,4) ->  | D32: =VLOOKUP($B32,$J$10:$N$28,5) -> 
C33: =VLOOKUP($B33,$J$10:$N$28,4) ->  | D33: =VLOOKUP($B33,$J$10:$N$28,5) -> 
C34: =VLOOKUP($B34,$J$10:$N$28,4) ->  | D34: =VLOOKUP($B34,$J$10:$N$28,5) ->  | F34: =IFERROR(VLOOKUP($B34,'Cls B2'!$A$1:$G$15,4,FALSE),"") ->  | G34: =IFERROR(VLOOKUP($B34,'Cls B2'!$A$1:$G$15,5,FALSE),"") -> 
A35: 2022-01-26 | B35: CADETS
B36: 5 | C36: =VLOOKUP($B36,$J$10:$N$28,4) -> LR | D36: =VLOOKUP($B36,$J$10:$N$28,5) -> SBE | E36: SMSM ou Fragonard 14h ?
B37: 9 | C37: =VLOOKUP($B37,$J$10:$N$28,4) -> LR | D37: =VLOOKUP($B37,$J$10:$N$28,5) -> SMSM
B38: 10 | C38: =VLOOKUP($B38,$J$10:$N$28,4) -> SMSM | D38: =VLOOKUP($B38,$J$10:$N$28,5) -> SBE
C39: =VLOOKUP($B39,$J$10:$N$28,4) ->  | D39: =VLOOKUP($B39,$J$10:$N$28,5) ->  | F39: =IFERROR(VLOOKUP($B39,'Cls B2'!$A$1:$G$15,4,FALSE),"") ->  | G39: =IFERROR(VLOOKUP($B39,'Cls B2'!$A$1:$G$15,5,FALSE),"") -> 

Sheet Cls CG
A1: CADETS GARCONS
J2: SIGLE | K2: Etablissement | L2: Matchs joués | M2: Victoires | N2: Nuls | O2: Défaites | P2: Points Pour | Q2: Points Contre | R2: Différence | S2: Points
A3: N° Match | B3: Equipe A | C3: Equipe B | D3: Scores | F3: Vainqueur | G3: Perdant | I3: =RANK(T3,$T$3:$T$5) -> 1 | J3: ='Calendriers CG'!K4 -> SBE | K3: Saint Benoist de l'Europe | L3: =COUNT(D5,D8,D10,D13) -> 2 | M3: =COUNTIF($F$3:$F$21,J3) -> 2 | N3: =L3-M3-O3 -> 0 | O3: =COUNTIF(G3:G21,J3) -> 0 | P3: =SUM(D5,E8,D10,E13) -> 89 | Q3: =SUM(E5,D8,E10,D13) -> 39 | R3: =P3-Q3 -> 50 | S3: =M3*3+N3*2+O3*1 -> 6 | T3: =SUM(S3*1000000+R3*10000+P3*100+L3*10) -> 6508920
A4: 1 | B4: ='Calendriers CG'!M11 -> SBE | C4: ='Calendriers CG'!N11 -> SMP | F4: =IF(D4<>"",IF(D4>E4,B4,IF(D4<E4,C4,"nul")),"") ->  | G4: =IF(E4<>"",IF(E4<D4,C4,IF(E4>D4,B4,"nul")),"") ->  | I4: =RANK(T4,$T$3:$T$5) -> 3 | J4: ='Calendriers CG'!K6 -> LR | K4: La Rochefoucauld | L4: =COUNT(D5,D8,D12,D15) -> 1 | M4: =COUNTIF($F$3:$F$21,J4) -> 0 | N4: =L4-M4-O4 -> 0 | O4: =COUNTIF(G4:G22,J4) -> 1 | P4: =SUM(E5,D8,D12,E15) -> 10 | Q4: =SUM(D5,E8,E12,D15) -> 53 | R4: =P4-Q4 -> -43 | S4: =M4*3+N4*2+O4*1 -> 1 | T4: =SUM(S4*1000000+R4*10000+P4*100+L4*10) -> 571010
A5: 2 | B5: ='Calendriers CG'!M12 -> SBE | C5: ='Calendriers CG'!N12 -> LR | D5: 53 | E5: 10 | F5: =IF(D5<>"",IF(D5>E5,B5,IF(D5<E5,C5,"nul")),"") -> SBE | G5: =IF(E5<>"",IF(E5<D5,C5,IF(E5>D5,B5,"nul")),"") -> LR | I5: =RANK(T5,$T$3:$T$5) -> 2 | J5: ='Calendriers CG'!K7 -> SMSM | K5: Saint Michel Saint Mandé | L5: =COUNT(D13,D10,D12,D15) -> 1 | M5: 0 | N5: 0 | O5: 1 | P5: =SUM(D13,E10,E12,D15) -> 29 | Q5: =SUM(E13,D10,D12,E15) -> 36 | R5: -7 | S5: 1 | T5: 932910
A6: 3 | B6: ='Calendriers CG'!M13 -> SMP | C6: ='Calendriers CG'!N13 -> LR | F6: =IF(D6<>"",IF(D6>E6,B6,IF(D6<E6,C6,"nul")),"") ->  | G6: =IF(E6<>"",IF(E6<D6,C6,IF(E6>D6,B6,"nul")),"") -> 
A7: 4 | B7: ='Calendriers CG'!M14 -> SMP | C7: ='Calendriers CG'!N14 -> SBE | I7: Classement | J7: SIGLE | K7: Etablissement | L7: Matchs joués | M7: Victoires | N7: Nuls | O7: Défaites | P7: Points Pour | Q7: Points Contre | R7: Différence | S7: Points
A8: 5 | B8: ='Calendriers CG'!M15 -> LR | C8: ='Calendriers CG'!N15 -> SBE | I8: 1 | J8: =VLOOKUP($I8,$I$2:$S$5,COLUMNS($J7:J7)+1,FALSE) -> SBE | K8: =VLOOKUP($I8,$I$2:$S$5,COLUMNS($J7:K7)+1,FALSE) -> Saint Benoist de l'Europe | L8: =VLOOKUP($I8,$I$2:$S$5,COLUMNS($J7:L7)+1,FALSE) -> 2 | M8: =VLOOKUP($I8,$I$2:$S$5,COLUMNS($J7:M7)+1,FALSE) -> 2 | N8: =VLOOKUP($I8,$I$2:$S$5,COLUMNS($J7:N7)+1,FALSE) -> 0 | O8: =VLOOKUP($I8,$I$2:$S$5,COLUMNS($J7:O7)+1,FALSE) -> 0 | P8: =VLOOKUP($I8,$I$2:$S$5,COLUMNS($J7:P7)+1,FALSE) -> 89 | Q8: =VLOOKUP($I8,$I$2:$S$5,COLUMNS($J7:Q7)+1,FALSE) -> 39 | R8: =VLOOKUP($I8,$I$2:$S$5,COLUMNS($J7:R7)+1,FALSE) -> 50 | S8: =VLOOKUP($I8,$I$2:$S$5,COLUMNS($J7:S7)+1,FALSE) -> 6
A9: 6 | B9: ='Calendriers CG'!M16 -> LR | C9: ='Calendriers CG'!N16 -> SMP | I9: 2 | J9: =VLOOKUP($I9,$I$2:$S$5,COLUMNS($J8:J8)+1,FALSE) -> SMSM | K9: =VLOOKUP($I9,$I$2:$S$5,COLUMNS($J8:K8)+1,FALSE) -> Saint Michel Saint Mandé | L9: =VLOOKUP($I9,$I$2:$S$5,COLUMNS($J8:L8)+1,FALSE) -> 1 | M9: =VLOOKUP($I9,$I$2:$S$5,COLUMNS($J8:M8)+1,FALSE) -> 0 | N9: =VLOOKUP($I9,$I$2:$S$5,COLUMNS($J8:N8)+1,FALSE) -> 0 | O9: =VLOOKUP($I9,$I$2:$S$5,COLUMNS($J8:O8)+1,FALSE) -> 1 | P9: =VLOOKUP($I9,$I$2:$S$5,COLUMNS($J8:P8)+1,FALSE) -> 29 | Q9: =VLOOKUP($I9,$I$2:$S$5,COLUMNS($J8:Q8)+1,FALSE) -> 36 | R9: =VLOOKUP($I9,$I$2:$S$5,COLUMNS($J8:R8)+1,FALSE) -> -7 | S9: =VLOOKUP($I9,$I$2:$S$5,COLUMNS($J8:S8)+1,FALSE) -> 1
A10: 7 | B10: ='Calendriers CG'!M17 -> SBE | C10: ='Calendriers CG'!N17 -> SMSM | D10: 36 | E10: 29 | F10: SBE | G10: SMSM | I10: 3 | J10: =VLOOKUP($I10,$I$2:$S$5,COLUMNS($J9:J9)+1,FALSE) -> LR | K10: =VLOOKUP($I10,$I$2:$S$5,COLUMNS($J9:K9)+1,FALSE) -> La Rochefoucauld | L10: =VLOOKUP($I10,$I$2:$S$5,COLUMNS($J9:L9)+1,FALSE) -> 1 | M10: =VLOOKUP($I10,$I$2:$S$5,COLUMNS($J9:M9)+1,FALSE) -> 0 | N10: =VLOOKUP($I10,$I$2:$S$5,COLUMNS($J9:N9)+1,FALSE) -> 0 | O10: =VLOOKUP($I10,$I$2:$S$5,COLUMNS($J9:O9)+1,FALSE) -> 1 | P10: =VLOOKUP($I10,$I$2:$S$5,COLUMNS($J9:P9)+1,FALSE) -> 10 | Q10: =VLOOKUP($I10,$I$2:$S$5,COLUMNS($J9:Q9)+1,FALSE) -> 53 | R10: =VLOOKUP($I10,$I$2:$S$5,COLUMNS($J9:R9)+1,FALSE) -> -43 | S10: =VLOOKUP($I10,$I$2:$S$5,COLUMNS($J9:S9)+1,FALSE) -> 1
A11: 8 | B11: ='Calendriers CG'!M18 -> SMP | C11: ='Calendriers CG'!N18 -> SMSM
A12: 9 | B12: ='Calendriers CG'!M19 -> LR | C12: ='Calendriers CG'!N19 -> SMSM
A13: 10 | B13: ='Calendriers CG'!M20 -> SMSM | C13: ='Calendriers CG'!N20 -> SBE
A14: 11 | B14: ='Calendriers CG'!M21 -> SMSM | C14: ='Calendriers CG'!N21 -> SMP
A15: 12 | B15: ='Calendriers CG'!M22 -> SMSM | C15: ='Calendriers CG'!N22 -> LR
A16: 13 | B16: ='Calendriers CG'!M23 -> SBE | C16: ='Calendriers CG'!N23 -> SMP (JG)
A17: 14 | B17: ='Calendriers CG'!M24 -> LR | C17: ='Calendriers CG'!N24 -> SMP (JG)
A18: 15 | B18: ='Calendriers CG'!M25 -> SMSM | C18: ='Calendriers CG'!N25 -> SMP (JG)
A19: 16 | B19: ='Calendriers CG'!M26 -> SMP (JG) | C19: ='Calendriers CG'!N26 -> SBE
A20: 17 | B20: ='Calendriers CG'!M27 -> SMP (JG) | C20: ='Calendriers CG'!N27 -> LR
A21: 18 | B21: ='Calendriers CG'!M28 -> SMP (JG) | C21: ='Calendriers CG'!N28 -> SMSM

Sheet Classements
A1: CLASSEMENT ELITE BENJAMINS DIVISION 1 2021-2022 | M1: CLASSEMENT ELITE MINIMES DIVISION 1 2021-2022
A3: Classement | B3: SIGLE | C3: ='Cls B1'!K11 -> Etablissement | D3: ='Cls B1'!L11 -> Matchs joués | E3: ='Cls B1'!M11 -> Victoires | F3: ='Cls B1'!N11 -> Nuls | G3: ='Cls B1'!O11 -> Défaites | H3: ='Cls B1'!P11 -> Points Pour | I3: ='Cls B1'!Q11 -> Points Contre | J3: ='Cls B1'!R11 -> Différence | K3: ='Cls B1'!S11 -> Points | M3: Classement | N3: SIGLE | O3: Etablissement | P3: Matchs joués | Q3: Victoires | R3: Nuls | S3: Défaites | T3: Points Pour | U3: Points Contre | V3: Différence | W3: Points
A4: 1 | B4: ='Cls B1'!J12 -> FEN 1 | C4: ='Cls B1'!K12 -> Fénelon Ste Marie 1 | D4: ='Cls B1'!L12 -> 5 | E4: ='Cls B1'!M12 -> 2 | F4: ='Cls B1'!N12 -> 0 | G4: ='Cls B1'!O12 -> 3 | H4: ='Cls B1'!P12 -> 48 | I4: ='Cls B1'!Q12 -> 62 | J4: ='Cls B1'!R12 -> -14 | K4: ='Cls B1'!S12 -> 9 | M4: 1 | N4: ='Cls M1'!J11 -> MASS 1 | O4: ='Cls M1'!K11 -> Massillon 1 | P4: ='Cls M1'!L11 -> 3 | Q4: ='Cls M1'!M11 -> 3 | R4: ='Cls M1'!N11 -> 0 | S4: ='Cls M1'!O11 -> 0 | T4: ='Cls M1'!P11 -> 53 | U4: ='Cls M1'!Q11 -> 25 | V4: ='Cls M1'!R11 -> 28 | W4: ='Cls M1'!S11 -> 9
A5: 2 | B5: ='Cls B1'!J13 -> LR | C5: ='Cls B1'!K13 -> La Rochefoucauld | D5: ='Cls B1'!L13 -> 3 | E5: ='Cls B1'!M13 -> 2 | F5: ='Cls B1'!N13 -> 0 | G5: ='Cls B1'!O13 -> 1 | H5: ='Cls B1'!P13 -> 32 | I5: ='Cls B1'!Q13 -> 20 | J5: ='Cls B1'!R13 -> 12 | K5: ='Cls B1'!S13 -> 7 | M5: 2 | N5: ='Cls M1'!J12 -> FEN 1 | O5: ='Cls M1'!K12 -> Fénelon 1 | P5: ='Cls M1'!L12 -> 3 | Q5: ='Cls M1'!M12 -> 1 | R5: ='Cls M1'!N12 -> 0 | S5: ='Cls M1'!O12 -> 2 | T5: ='Cls M1'!P12 -> 31 | U5: ='Cls M1'!Q12 -> 45 | V5: ='Cls M1'!R12 -> -14 | W5: ='Cls M1'!S12 -> 5
A6: 3 | B6: ='Cls B1'!J14 -> MASS 1 | C6: ='Cls B1'!K14 -> Massillon 1 | D6: ='Cls B1'!L14 -> 5 | E6: ='Cls B1'!M14 -> 1 | F6: ='Cls B1'!N14 -> 0 | G6: ='Cls B1'!O14 -> 4 | H6: ='Cls B1'!P14 -> 27 | I6: ='Cls B1'!Q14 -> 55 | J6: ='Cls B1'!R14 -> -28 | K6: ='Cls B1'!S14 -> 7 | M6: 3 | N6: ='Cls M1'!J13 -> SBE 2 | O6: ='Cls M1'!K13 -> Saint Benoist de l'Europe 2 | P6: ='Cls M1'!L13 -> 2 | Q6: ='Cls M1'!M13 -> 1 | R6: ='Cls M1'!N13 -> 0 | S6: ='Cls M1'!O13 -> 1 | T6: ='Cls M1'!P13 -> 19 | U6: ='Cls M1'!Q13 -> 25 | V6: ='Cls M1'!R13 -> -6 | W6: ='Cls M1'!S13 -> 4
A7: 4 | B7: ='Cls B1'!J15 -> LBSI | C7: ='Cls B1'!K15 -> La Bruyère Sainte Isabelle | D7: ='Cls B1'!L15 -> 2 | E7: ='Cls B1'!M15 -> 2 | F7: ='Cls B1'!N15 -> 0 | G7: ='Cls B1'!O15 -> 0 | H7: ='Cls B1'!P15 -> 35 | I7: ='Cls B1'!Q15 -> 8 | J7: ='Cls B1'!R15 -> 27 | K7: ='Cls B1'!S15 -> 6 | M7: 4 | N7: ='Cls M1'!J14 -> SBE 1 | O7: ='Cls M1'!K14 -> Saint Benoist de l'Europe 1 | P7: ='Cls M1'!L14 -> 2 | Q7: ='Cls M1'!M14 -> 0 | R7: ='Cls M1'!N14 -> 0 | S7: ='Cls M1'!O14 -> 2 | T7: ='Cls M1'!P14 -> 23 | U7: ='Cls M1'!Q14 -> 31 | V7: ='Cls M1'!R14 -> -8 | W7: ='Cls M1'!S14 -> 2
A8: 5 | B8: ='Cls B1'!J16 -> SJFF 1 | C8: ='Cls B1'!K16 -> Saint Joseph 1 | D8: ='Cls B1'!L16 -> 2 | E8: ='Cls B1'!M16 -> 2 | F8: ='Cls B1'!N16 -> 0 | G8: ='Cls B1'!O16 -> 0 | H8: ='Cls B1'!P16 -> 30 | I8: ='Cls B1'!Q16 -> 21 | J8: ='Cls B1'!R16 -> 9 | K8: ='Cls B1'!S16 -> 6 | M8: 5 | N8: ='Cls M1'!J15 -> SJFF 1 | O8: ='Cls M1'!K15 -> Saint Joseph 1 | P8: ='Cls M1'!L15 -> 0 | Q8: ='Cls M1'!M15 -> 0 | R8: ='Cls M1'!N15 -> 0 | S8: ='Cls M1'!O15 -> 0 | T8: ='Cls M1'!P15 -> 0 | U8: ='Cls M1'!Q15 -> 0 | V8: ='Cls M1'!R15 -> 0 | W8: ='Cls M1'!S15 -> 0
A9: 6 | B9: ='Cls B1'!J17 -> SMSM | C9: ='Cls B1'!K17 -> Saint Michel Saint Mandé | D9: ='Cls B1'!L17 -> 3 | E9: ='Cls B1'!M17 -> 1 | F9: ='Cls B1'!N17 -> 0 | G9: ='Cls B1'!O17 -> 2 | H9: ='Cls B1'!P17 -> 16 | I9: ='Cls B1'!Q17 -> 22 | J9: ='Cls B1'!R17 -> -6 | K9: ='Cls B1'!S17 -> 5 | M9: CLASSEMENT ELITE MINIMES DIVISION 2 2021-2022
A10: CLASSEMENT ELITE BENJAMINS DIVISION 2 2021-2022
M11: Classement | N11: SIGLE | O11: Etablissement | P11: Matchs joués | Q11: Victoires | R11: Nuls | S11: Défaites | T11: Points Pour | U11: Points Contre | V11: Différence | W11: Points
A12: Classement | B12: SIGLE | C12: ='Cls B2'!K14 -> Etablissement | D12: ='Cls B2'!L14 -> Matchs joués | E12: ='Cls B2'!M14 -> Victoires | F12: ='Cls B2'!N14 -> Nuls | G12: ='Cls B2'!O14 -> Défaites | H12: ='Cls B2'!P14 -> Points Pour | I12: ='Cls B2'!Q14 -> Points Contre | J12: ='Cls B2'!R14 -> Différence | K12: ='Cls B2'!S14 -> Points | M12: 1 | N12: ='Cls M2'!J14 -> LBSI | O12: ='Cls M2'!K14 -> La Bruyère Sainte Isabelle | P12: ='Cls M2'!L14 -> 4 | Q12: ='Cls M2'!M14 -> 4 | R12: ='Cls M2'!N14 -> 0 | S12: ='Cls M2'!O14 -> 0 | T12: ='Cls M2'!P14 -> 107 | U12: ='Cls M2'!Q14 -> 25 | V12: ='Cls M2'!R14 -> 82 | W12: ='Cls M2'!S14 -> 12
A13: 1 | B13: ='Cls B2'!J15 -> NDF | C13: ='Cls B2'!K15 -> Notre Dame de France | D13: ='Cls B2'!L15 -> 4 | E13: ='Cls B2'!M15 -> 3 | F13: ='Cls B2'!N15 -> 0 | G13: ='Cls B2'!O15 -> 1 | H13: ='Cls B2'!P15 -> 80 | I13: ='Cls B2'!Q15 -> 31 | J13: ='Cls B2'!R15 -> 49 | K13: ='Cls B2'!S15 -> 10 | M13: 2 | N13: ='Cls M2'!J15 -> SJG | O13: ='Cls M2'!K15 -> Saint Jean Gabriel | P13: ='Cls M2'!L15 -> 4 | Q13: ='Cls M2'!M15 -> 3 | R13: ='Cls M2'!N15 -> 0 | S13: ='Cls M2'!O15 -> 1 | T13: ='Cls M2'!P15 -> 124 | U13: ='Cls M2'!Q15 -> 38 | V13: ='Cls M2'!R15 -> 86 | W13: ='Cls M2'!S15 -> 10
A14: 2 | B14: ='Cls B2'!J16 -> SJG | C14: ='Cls B2'!K16 -> Saint Jean Gabriel | D14: ='Cls B2'!L16 -> 3 | E14: ='Cls B2'!M16 -> 3 | F14: ='Cls B2'!N16 -> 0 | G14: ='Cls B2'!O16 -> 0 | H14: ='Cls B2'!P16 -> 143 | I14: ='Cls B2'!Q16 -> 15 | J14: ='Cls B2'!R16 -> 128 | K14: ='Cls B2'!S16 -> 9 | M14: 3 | N14: ='Cls M2'!J16 -> LR | O14: ='Cls M2'!K16 -> La Rochefoucauld | P14: ='Cls M2'!L16 -> 3 | Q14: ='Cls M2'!M16 -> 3 | R14: ='Cls M2'!N16 -> 0 | S14: ='Cls M2'!O16 -> 0 | T14: ='Cls M2'!P16 -> 42 | U14: ='Cls M2'!Q16 -> 16 | V14: ='Cls M2'!R16 -> 26 | W14: ='Cls M2'!S16 -> 9
A15: 3 | B15: ='Cls B2'!J17 -> MASS 2 | C15: ='Cls B2'!K17 -> Massillon 2 | D15: ='Cls B2'!L17 -> 4 | E15: ='Cls B2'!M17 -> 2 | F15: ='Cls B2'!N17 -> 0 | G15: ='Cls B2'!O17 -> 2 | H15: ='Cls B2'!P17 -> 19 | I15: ='Cls B2'!Q17 -> 63 | J15: ='Cls B2'!R17 -> -44 | K15: ='Cls B2'!S17 -> 8 | M15: 4 | N15: ='Cls M2'!J17 -> MASS 2 | O15: ='Cls M2'!K17 -> Massillon 2 | P15: ='Cls M2'!L17 -> 3 | Q15: ='Cls M2'!M17 -> 2 | R15: ='Cls M2'!N17 -> 0 | S15: ='Cls M2'!O17 -> 1 | T15: ='Cls M2'!P17 -> 46 | U15: ='Cls M2'!Q17 -> 22 | V15: ='Cls M2'!R17 -> 24 | W15: ='Cls M2'!S17 -> 7
A16: 4 | B16: ='Cls B2'!J18 -> FEN 2 | C16: ='Cls B2'!K18 -> Fénelon 2 | D16: ='Cls B2'!L18 -> 4 | E16: ='Cls B2'!M18 -> 1 | F16: ='Cls B2'!N18 -> 0 | G16: ='Cls B2'!O18 -> 3 | H16: ='Cls B2'!P18 -> 6 | I16: ='Cls B2'!Q18 -> 115 | J16: ='Cls B2'!R18 -> -109 | K16: ='Cls B2'!S18 -> 6 | M16: 5 | N16: ='Cls M2'!J18 -> SJFF 2 | O16: ='Cls M2'!K18 -> Saint Joseph 2 | P16: ='Cls M2'!L18 -> 5 | Q16: ='Cls M2'!M18 -> 1 | R16: ='Cls M2'!N18 -> 0 | S16: ='Cls M2'!O18 -> 4 | T16: ='Cls M2'!P18 -> 20 | U16: ='Cls M2'!Q18 -> 79 | V16: ='Cls M2'!R18 -> -59 | W16: ='Cls M2'!S18 -> 7
A17: 5 | B17: ='Cls B2'!J19 -> SJFF 2 | C17: ='Cls B2'!K19 -> Saint Joseph 2 | D17: ='Cls B2'!L19 -> 3 | E17: ='Cls B2'!M19 -> 0 | F17: ='Cls B2'!N19 -> 0 | G17: ='Cls B2'!O19 -> 3 | H17: ='Cls B2'!P19 -> 4 | I17: ='Cls B2'!Q19 -> 28 | J17: ='Cls B2'!R19 -> -24 | K17: ='Cls B2'!S19 -> 3 | M17: 6 | N17: ='Cls M2'!J19 -> FEN 2 | O17: ='Cls M2'!K19 -> Fénelon Sainte Marie 2 | P17: ='Cls M2'!L19 -> 6 | Q17: ='Cls M2'!M19 -> 0 | R17: ='Cls M2'!N19 -> 1 | S17: ='Cls M2'!O19 -> 5 | T17: ='Cls M2'!P19 -> 27 | U17: ='Cls M2'!Q19 -> 115 | V17: ='Cls M2'!R19 -> -88 | W17: ='Cls M2'!S19 -> 7
A18: CLASSEMENT PROMO ELITE MIXTE 2021-2022 | M18: 7 | N18: ='Cls M2'!J20 -> MASS 3 | O18: ='Cls M2'!K20 -> Massillon 3 | P18: ='Cls M2'!L20 -> 3 | Q18: ='Cls M2'!M20 -> 1 | R18: ='Cls M2'!N20 -> 0 | S18: ='Cls M2'!O20 -> 2 | T18: ='Cls M2'!P20 -> 84 | U18: ='Cls M2'!Q20 -> 16 | V18: ='Cls M2'!R20 -> 68 | W18: ='Cls M2'!S20 -> 5
M19: 8 | N19: ='Cls M2'!J21 -> SMSM | O19: ='Cls M2'!K21 -> Saint Michel Saint Mandé | P19: ='Cls M2'!L21 -> 2 | Q19: ='Cls M2'!M21 -> 1 | R19: ='Cls M2'!N21 -> 0 | S19: ='Cls M2'!O21 -> 1 | T19: ='Cls M2'!P21 -> 9 | U19: ='Cls M2'!Q21 -> 12 | V19: ='Cls M2'!R21 -> -3 | W19: ='Cls M2'!S21 -> 4
A20: Classement | B20: SIGLE | C20: ='Cls BMixte'!K8 -> Etablissement | D20: ='Cls BMixte'!L8 -> Matchs joués | E20: ='Cls BMixte'!M8 -> Victoires | F20: ='Cls BMixte'!N8 -> Nuls | G20: ='Cls BMixte'!O8 -> Défaites | H20: ='Cls BMixte'!P8 -> Points Pour | I20: ='Cls BMixte'!Q8 -> Points Contre | J20: ='Cls BMixte'!R8 -> Différence | K20: ='Cls BMixte'!S8 -> Points | M20: CLASSEMENT ELITE MINIMES DIVISION 2 2021-2022
A21: 1 | B21: ='Cls BMixte'!J9 -> LR 2 (F) | C21: ='Cls BMixte'!K9 -> La Rochefoucauld 2 | D21: ='Cls BMixte'!L9 -> 1 | E21: ='Cls BMixte'!M9 -> 1 | F21: ='Cls BMixte'!N9 -> 0 | G21: ='Cls BMixte'!O9 -> 0 | H21: ='Cls BMixte'!P9 -> 16 | I21: ='Cls BMixte'!Q9 -> 4 | J21: ='Cls BMixte'!R9 -> 12 | K21: ='Cls BMixte'!S9 -> 3
A22: 2 | B22: ='Cls BMixte'!J10 -> SJFF 3 (F) | C22: ='Cls BMixte'!K10 -> Saint Joseph 3 | D22: ='Cls BMixte'!L10 -> 1 | E22: ='Cls BMixte'!M10 -> 1 | F22: ='Cls BMixte'!N10 -> 0 | G22: ='Cls BMixte'!O10 -> 0 | H22: ='Cls BMixte'!P10 -> 14 | I22: ='Cls BMixte'!Q10 -> 4 | J22: ='Cls BMixte'!R10 -> 10 | K22: ='Cls BMixte'!S10 -> 3 | M22: Classement | N22: SIGLE | O22: Etablissement | P22: Matchs joués | Q22: Victoires | R22: Nuls | S22: Défaites | T22: Points Pour | U22: Points Contre | V22: Différence | W22: Points
A23: 3 | B23: ='Cls BMixte'!J11 -> MASS 3 | C23: ='Cls BMixte'!K11 -> Massillon 3 | D23: ='Cls BMixte'!L11 -> 2 | E23: ='Cls BMixte'!M11 -> 0 | F23: ='Cls BMixte'!N11 -> 0 | G23: ='Cls BMixte'!O11 -> 2 | H23: ='Cls BMixte'!P11 -> 8 | I23: ='Cls BMixte'!Q11 -> 30 | J23: ='Cls BMixte'!R11 -> -22 | K23: ='Cls BMixte'!S11 -> 2 | M23: 1 | N23: ='Cls Mixte'!J10 -> SJFF | O23: ='Cls Mixte'!K10 -> Saint Joseph 2 | P23: ='Cls Mixte'!L10 -> 1 | Q23: ='Cls Mixte'!M10 -> 1 | R23: ='Cls Mixte'!N10 -> 0 | S23: ='Cls Mixte'!O10 -> 0 | T23: ='Cls Mixte'!P10 -> 12 | U23: ='Cls Mixte'!Q10 -> 4 | V23: ='Cls Mixte'!R10 -> 8 | W23: ='Cls Mixte'!S10 -> 3
A24: CLASSEMENT ELITE CADETS 2021-2022 | M24: 2 | N24: ='Cls Mixte'!J11 -> SJG | O24: ='Cls Mixte'!K11 -> Saint Jean Gabriel | P24: ='Cls Mixte'!L11 -> 1 | Q24: ='Cls Mixte'!M11 -> 0 | R24: ='Cls Mixte'!N11 -> 0 | S24: ='Cls Mixte'!O11 -> 1 | T24: ='Cls Mixte'!P11 -> 4 | U24: ='Cls Mixte'!Q11 -> 12 | V24: ='Cls Mixte'!R11 -> -8 | W24: ='Cls Mixte'!S11 -> 1
M25: 3 | N25: ='Cls Mixte'!J12 -> SBE | O25: ='Cls Mixte'!K12 -> Saint Benoist de l'Europe | P25: ='Cls Mixte'!L12 -> 0 | Q25: ='Cls Mixte'!M12 -> 0 | R25: ='Cls Mixte'!N12 -> 0 | S25: ='Cls Mixte'!O12 -> 0 | T25: ='Cls Mixte'!P12 -> 0 | U25: ='Cls Mixte'!Q12 -> 0 | V25: ='Cls Mixte'!R12 -> 0 | W25: ='Cls Mixte'!S12 -> 0
A26: Classement | B26: SIGLE | C26: Etablissement | D26: Matchs joués | E26: Victoires | F26: Nuls | G26: Défaites | H26: Points Pour | I26: Points Contre | J26: Différence | K26: Points
A27: 1 | B27: ='Cls CG'!J8 -> SBE | C27: ='Cls CG'!K8 -> Saint Benoist de l'Europe | D27: ='Cls CG'!L8 -> 2 | E27: ='Cls CG'!M8 -> 2 | F27: ='Cls CG'!N8 -> 0 | G27: ='Cls CG'!O8 -> 0 | H27: ='Cls CG'!P8 -> 89 | I27: ='Cls CG'!Q8 -> 39 | J27: ='Cls CG'!R8 -> 50 | K27: ='Cls CG'!S8 -> 6
A28: 2 | B28: ='Cls CG'!J9 -> SMSM | C28: ='Cls CG'!K9 -> Saint Michel Saint Mandé | D28: ='Cls CG'!L9 -> 1 | E28: ='Cls CG'!M9 -> 0 | F28: ='Cls CG'!N9 -> 0 | G28: ='Cls CG'!O9 -> 1 | H28: ='Cls CG'!P9 -> 29 | I28: ='Cls CG'!Q9 -> 36 | J28: ='Cls CG'!R9 -> -7 | K28: ='Cls CG'!S9 -> 1
A29: 3 | B29: ='Cls CG'!J10 -> LR | C29: ='Cls CG'!K10 -> La Rochefoucauld | D29: ='Cls CG'!L10 -> 1 | E29: ='Cls CG'!M10 -> 0 | F29: ='Cls CG'!N10 -> 0 | G29: ='Cls CG'!O10 -> 1 | H29: ='Cls CG'!P10 -> 10 | I29: ='Cls CG'!Q10 -> 53 | J29: ='Cls CG'!R10 -> -43 | K29: ='Cls CG'!S10 -> 1

Sheet Indispos profs
A1: DATES D'INDISPONIBILITES DES ETABLISSEMENTS
A2: SIGLES | B2: Benjamins | G2: Minimes | L2: Lycée
A3: ASVP
A4: FEN | G4: 2021-01-12
A5: SMSM
A6: MASS | B6: 2021-01-12 | C6: 2022-03-30 | G6: 2021-01-12 | H6: 2022-03-30 | L6: 2022-03-30
A7: SJFF
A8: SLM
A9: NDF
A10: SGC
A11: SBE | G11: 15 dec | H11: 2021-01-12 | L11: 15 dec | M11: 2021-01-05 | N11: 2021-01-12
A12: SMP | B12: 9 fev | C12: 2021-04-20 | D12: 2021-05-11 | E12: 2021-05-25 | G12: 9 fev | H12: 16 fev | I12: 2021-03-23 | J12: 2021-05-11 | K12: 2021-05-25 | L12: 15 dec | M12: 2021-03-09 | N12: 2021-05-11 | O12: 2021-05-25
A13: LR | L13: 8 dec
A14: LBSI | B14: 15 dec | G14: 15 dec
A30: Disponibilités Gymnase SMP | G30: 15 dec | H30: 2021-01-05
A31: Occupation LR BAD | D31: 1 dec | E31: 15 dec | F31: 2021-01-19 | G31: 2021-01-26 | H31: 9 fev
A32: Camou | D32: 15 dec
A33: Fédération | D33: 2021-01-12
A34: Alain Mimoun | D34: 2021-01-26
A35: Carpentier | D35: 9 fev

Sheet Listing profs
A1: LISTING PROFESSEURS BASKET-BALL 2021-2022
A2: NOM D'ETABLISSEMENT | B2: SIGLE | C2: NOM et PRENOM | D2: N° MOBILE | E2: MAIL
A3: FENELON SAINTE-MARIE | B3: 75-FENP | C3: LEROY Jeanne | D3: 06 34 17 84 05 | E3: jleroy@groupefenelon.org
C4: HEBERT Thomas | D4: 07 87 35 57 63 | E4: thebert@groupefenelon.org
A5: LA BRUYERE ST ISABELLE | B5: 75-CLBIP | C5: HETAULT Valentin | D5: 06 31 28 48 28 | E5: vhetault@lbsi14.fr
A6: LA ROCHEFOUCAULD | B6: 75-LRPA | C6: HENRY Romuald | D6: 06 82 87 26 85 | E6: rhenry@laroche.org
A7: MASSILLON | B7: 75-MASSP | C7: OGOREK Nicolas | D7: 06 51 97 18 47 | E7: ogorek.eps@gmail.com
C8: CHARLES Amandine | D8: 06 89 13 38 86 | E8: amandinecharles10@gmail.com
C9: CAVALADE Clément | D9: 06 49 23 52 35 | E9: c.cavalade@outlook.fr
A10: NOTRE DAME DE France | B10: 75-NDFP | C10: MARCELINE Laurent | D10: 06 88 81 13 19 | E10: laurentand1@hotmail.com
A11: ST BENOIST DE L'EUROPE | B11: 93-SBEB | C11: ONDEE Derick | D11: 06 12 58 81 36 | E11: ondee.prof@sfr.fr
A12: ST JOSEPH | B12: 75-CSJP | C12: SECRETANT Eric | D12: 06 11 03 14 27 | E12: tractoeric@gmail.com
A13: ST JEAN GABRIEL | B13: 75-CSJGP | C13: BARRACHIN Philippe | D13: 06 72 15 66 29 | E13: barrachinp@gmail.com
A14: ST MICHEL DE PICPUS | B14: 75-SMPP | C14: ISKER Lamine | D14: 06 33 59 32 65 | E14: lams115@hotmail.com
C15: TAVARES Raphaël | D15: 06 14 58 01 84 | E15: rtavares@ffbb.com
C16: CAMILUS Jude | D16: 06 31 83 64 75 | E16: judepommes@hotmail.com
A17: ST MICHEL SAINT MANDE | B17: 94-SMSM | C17: DIALLO Zacharie | D17: 06 85 97 50 39 | E17: zachdiallo@yahoo.fr

Sheet Installations
A1: INSTALLATIONS BASKET-BALL 2021-2022
A2: NOM DU TERRAIN | B2: COORDONNEES | C2: MOYENS D'ACCES | D2: HORAIRES | E2: TERRAINS
A4: GYMNASE FRAGONARD | B4: 10 rue Fragonard 75017 Paris | C4: Métro 13 Porte de Clichy | D4: 13h30-17h | E4: 1 terrain couvert
A5: GYMNASE JAPY | B5: 2 rue Japy 75011 Paris | C5: Métro 9 Voltaire | D5: 13h30-17h30 | E5: 1 terrain couvert
A6: GYMNASE CAMOU | B6: 35 Avenue de la Bourdonnais 75007 Paris | C6: Métro 8 Ecole Militaire / RER C Pont de l'Alma / Métro 6 Bir Hakeim | D6: 13h30 à 16h30 | E6: 1 terrain couvert
A7: St BENOIST DE L'EUROPE Gymnase Cifarielo FANARA | B7: 72 rue Jeanne Hornet | C7: Métro Gallieni Ligne 3 puis Bus 318 direction Romainville Chantaloups, arrêt Cimetière de Bagnolet, Métro Porte des Lilas ligne 11 puis Bus 115 direction Chateau de Vincennes, arret Rue de Pantin/Rue Girardot | D7: 13h30 à 16h30 | E7: 1 terrain couvert | F7: En travaux
A8: GYMNASE LA ROCHEFOUCAULD | B8: 22 rue Malar 75 007 Paris | C8: Métro tour maubourg ou RER C pont de l'Alma | D8: 13h30 à 16h30 | E8: 1 terrain couvert
A9: COLLEGE SAINT JOSEPH | B9: 13 place Etiennes Pernet 75015 Paris | C9: Métro felix faure | D9: 13h30 au collège SJFF | E9: 1 terrain découvert
A10: CROIX DE NIVERT TEP | B10: 107 rue de la Croix de Nivert 75015 Paris | D10: 14h | E10: 2 terrains découvert pour les BGF
A11: ST MICHEL DE PICPUS | B11: 53 rue de la Gare de Reuilly 75012 Paris | C11: Métro Daumesnil ou Bel Air | D11: 14h à 16h30 | E11: 1 terrain couvert
A12: SAINT JEAN GABRIEL | B12: Square St Paul rue des jardins St Paul 75004 Paris | C12: Métro St Paul | D12: 13h30 à 15h30 | E12: 1 terrain extérieur
A13: LA BRUYERE STE ISABELLE | B13: 66 rue l'abbé carton 75014 Paris | C13: Métro Plaisance ou Alésia | D13: 13h30 à 16h30 | E13: 1 terrain couvert
A14: SAINT MICHEL SAINT MANDE | B14: 10Ter Rue Jeanne d'Arc, 94160 Saint-Mandé | C14: Métro Saint Mandé | D14: 14h à 16h30 | E14: 1 terrain couvert
A15: NOTRE DAME DE France | B15: 63 Rue de la Santé, 75013 Paris | C15: Métro Glacière ou Saint Jacques | D15: 13h30 à 16h30 | E15: 1 terrain extérieur

Sheet Répart Japy-Frag
A1: REPARTITION FRAGONARD/JAPY
A2: UNSS/UGSEL Année Scolaire 2021-2022
A4: DATES | B4: JAPY | C4: FRAGONARD
A5: Du Samedi 23 Octobre au Lundi 8 Novembre matin – vacances de Toussaint
A6: 2021-11-10 | B6: UNSS | C6: UGSEL
A7: 2021-11-17 | B7: UGSEL | C7: UNSS
A8: 2021-11-24 | B8: UNSS | C8: UGSEL
A9: 01 DECEMBRE 2021 | B9: UGSEL | C9: UNSS
A10: 08 DECEMBRE 2021 | B10: UNSS | C10: UGSEL
A11: 15 DECEMBRE 2021 | B11: UGSEL | C11: UNSS
A12: Du Samedi 18 Décembre au Lundi 3 Janvier matin – vacances de Noël
A13: 2022-01-05 | B13: UGSEL | C13: UNSS
A14: 2022-01-12 | B14: UNSS | C14: UGSEL
A15: 2022-01-19 | B15: UGSEL | C15: UNSS
A16: 2022-01-26 | B16: UNSS | C16: UGSEL
A17: 02 FEVRIER 2022 | B17: UGSEL | C17: UNSS
A18: 09 FEVRIER 2022 | B18: UNSS | C18: UGSEL
A19: 16 FEVRIER 2022 | B19: UGSEL | C19: UNSS
A20: Du Samedi 19 Février au Lundi 07 Mars matin – Vacances d’Hiver
A21: 2022-03-09 | B21: UNSS | C21: UGSEL
A22: 2022-03-16 | B22: UGSEL | C22: UNSS
A23: 2022-03-23 | B23: UNSS | C23: UGSEL
A24: 2022-03-30 | B24: UGSEL | C24: UNSS
A25: 2022-04-06 | B25: UNSS | C25: UGSEL
A26: 2022-04-13 | B26: UGSEL | C26: UNSS
A27: 2022-04-20 | B27: UNSS | C27: UGSEL
A28: Du Samedi 23 Avril au Lundi 09 Mai matin – Vacances de printemps
A29: 2022-05-11 | B29: UGSEL | C29: UNSS
A30: 2022-05-18 | B30: UNSS | C30: UGSEL
A31: 2022-05-25 | B31: UGSEL | C31: UNSS
A32: 2022-06-01 | B32: UNSS | C32: UGSEL
A33: 2022-06-08 | B33: UGSEL | C33: UNSS
A34: 2022-06-15 | B34: UNSS | C34: UGSEL
A35: 2022-06-22 | B35: UGSEL | C35: UNSS
A36: 2022-06-29 | B36: UNSS | C36: UGSEL
